Organisation name,Organisation Code,Directorate,Service Category label,Service Category code,Supplier name,Payment date,Transaction number, Net Amount ,Purpose of spend,Procurement category name
Southend-on-Sea Borough Council,http://www.opendatacommunities.org/id/unitary-authority/southend,ED Growth & Housing,Housing Services,9007,(G) Eurovia Infrastructure Limited,01/06/2022,12071703,"15,734.14",Main Contractor,Main Contractor
Southend-on-Sea Borough Council,http://www.opendatacommunities.org/id/unitary-authority/southend,ED Growth & Housing,Housing Services,9005,(G) Gracelands Cms Ltd,01/06/2022,12071703,"9,910.09",Contractors General,Contractors General
Southend-on-Sea Borough Council,http://www.opendatacommunities.org/id/unitary-authority/southend,ED Adults & Communities,Adult Social Care,9010,(G) Kieran Lucas Contractors Ltd,01/06/2022,12071703,"1,504.72",Main Contractor,Main Contractor
Southend-on-Sea Borough Council,http://www.opendatacommunities.org/id/unitary-authority/southend,ED Finance & Resources,Central Services,8605,(G) Mansard Roofing Ltd,01/06/2022,12071703,"6,030.00",Private Contractors,Other Agencies
Southend-on-Sea Borough Council,http://www.opendatacommunities.org/id/unitary-authority/southend,ED Adults & Communities,Adult Social Care,9010,(G) Millane Contract Services Ltd,01/06/2022,12071703,"24,975.00",Main Contractor,Main Contractor
Southend-on-Sea Borough Council,http://www.opendatacommunities.org/id/unitary-authority/southend,ED Growth & Housing,Housing Services,9005,(G) Trinity Construction Services Ltd,01/06/2022,12071703,"10,533.80",Contractors General,Contractors General
Southend-on-Sea Borough Council,http://www.opendatacommunities.org/id/unitary-authority/southend,ED Neighbourhoods & Environment,Cultural And Related Services,4201,(N) Playfix Limited,01/06/2022,12071703,"1,045.00",Private Contractors,Other Agencies
Southend-on-Sea Borough Council,http://www.opendatacommunities.org/id/unitary-authority/southend,"ED Strategy, Change & Governance",Central Services,7105,42 Bedford Row Chambers No 2 A/C T/A Andrew Carter,01/06/2022,12071703,700,Barristers fees,Services
Southend-on-Sea Borough Council,http://www.opendatacommunities.org/id/unitary-authority/southend,"ED Strategy, Change & Governance",Central Services,9012,Abavus Limited,01/06/2022,12071703,"9,360.00",ICT Infrastructure (Network/Security/Business Continuity),ICT Infrastructure (Network/Security/Business Continuity)
Southend-on-Sea Borough Council,http://www.opendatacommunities.org/id/unitary-authority/southend,ED Children & Public Health,Children And Education Services,3250,Affinity Fostering Services Ltd,01/06/2022,12071703,"4,180.00",Private Contractors,Other Agencies
Southend-on-Sea Borough Council,http://www.opendatacommunities.org/id/unitary-authority/southend,ED Children & Public Health,Children And Education Services,3250,Affinity Fostering Services Ltd,01/06/2022,12071703,"3,396.00",Private Contractors,Other Agencies
Southend-on-Sea Borough Council,http://www.opendatacommunities.org/id/unitary-authority/southend,ED Children & Public Health,Children And Education Services,3250,Affinity Fostering Services Ltd,01/06/2022,12071703,"3,226.20",Private Contractors,Other Agencies
Southend-on-Sea Borough Council,http://www.opendatacommunities.org/id/unitary-authority/southend,ED Children & Public Health,Children And Education Services,3250,Affinity Fostering Services Ltd,01/06/2022,12071703,"3,396.00",Private Contractors,Other Agencies
Southend-on-Sea Borough Council,http://www.opendatacommunities.org/id/unitary-authority/southend,ED Children & Public Health,Children And Education Services,3250,Affinity Fostering Services Ltd,01/06/2022,12071703,"4,400.00",Private Contractors,Other Agencies
Southend-on-Sea Borough Council,http://www.opendatacommunities.org/id/unitary-authority/southend,ED Neighbourhoods & Environment,Cultural and Related Services,7505,Agrovista Uk Ltd,01/06/2022,12071703,"3,552.00",Materials,Equipment Furniture And Materials
Southend-on-Sea Borough Council,http://www.opendatacommunities.org/id/unitary-authority/southend,ED Adults & Communities,Adult Social Care,1209,Aidapt Bathrooms Ltd,01/06/2022,12071703,991.5,Tools And Equipment Purchase,Equipment Furniture And Materials
Southend-on-Sea Borough Council,http://www.opendatacommunities.org/id/unitary-authority/southend,ED Adults & Communities,Adult Social Care,1105,Ashley Community Care Services Ltd T/A Ashley Care,01/06/2022,12071703,"14,055.86",Private Contractors,Other Agencies
Southend-on-Sea Borough Council,http://www.opendatacommunities.org/id/unitary-authority/southend,ED Adults & Communities,Adult Social Care,1205,Ashley Community Care Services Ltd T/A Ashley Care,01/06/2022,12071703,"1,131.79",Private Contractors,Other Agencies
Southend-on-Sea Borough Council,http://www.opendatacommunities.org/id/unitary-authority/southend,ED Adults & Communities,Adult Social Care,1260,Ashtead House Limited,01/06/2022,12071703,"5,931.52",Private Contractors,Other Agencies
Southend-on-Sea Borough Council,http://www.opendatacommunities.org/id/unitary-authority/southend,ED Adults & Communities,Cultural And Related Services,4261,Askews And Holts Library Services Ltd,01/06/2022,12071703,516.17,Books & education equipment,Printing Stationery And General Office Expenses
Southend-on-Sea Borough Council,http://www.opendatacommunities.org/id/unitary-authority/southend,ED Neighbourhoods & Environment,Cultural And Related Services,4201,B & S Chains (Midlands) Ltd,01/06/2022,12071703,927,Materials,Equipment Furniture And Materials
Southend-on-Sea Borough Council,http://www.opendatacommunities.org/id/unitary-authority/southend,ED Children & Public Health,Children And Education Services,3010,Best For Training Ltd,01/06/2022,12071703,500,3rd Party training,Services
Southend-on-Sea Borough Council,http://www.opendatacommunities.org/id/unitary-authority/southend,ED Children & Public Health,Children And Education Services,3010,Best For Training Ltd,01/06/2022,12071703,780,3rd Party training,Services
Southend-on-Sea Borough Council,http://www.opendatacommunities.org/id/unitary-authority/southend,ED Children & Public Health,Children And Education Services,3010,Best For Training Ltd,01/06/2022,12071703,600,3rd Party training,Services
Southend-on-Sea Borough Council,http://www.opendatacommunities.org/id/unitary-authority/southend,ED Adults & Communities,Cultural And Related Services,4262,Bolinda Uk Ltd,01/06/2022,12071703,"1,469.18",Books & education equipment,Printing Stationery And General Office Expenses
Southend-on-Sea Borough Council,http://www.opendatacommunities.org/id/unitary-authority/southend,ED Adults & Communities,Adult Social Care,1105,Brooks Care & Nursing Services Ltd,01/06/2022,12071703,"3,027.95",Private Contractors,Other Agencies
Southend-on-Sea Borough Council,http://www.opendatacommunities.org/id/unitary-authority/southend,ED Children & Public Health,Children And Education Services,3250,Caldecott Fostering Ltd,01/06/2022,12071703,"5,760.00",Private Contractors,Other Agencies
Southend-on-Sea Borough Council,http://www.opendatacommunities.org/id/unitary-authority/southend,ED Children & Public Health,Children And Education Services,3250,Cambian Childcare Limited,01/06/2022,12071703,"-21,522.99",Private Contractors,Other Agencies
Southend-on-Sea Borough Council,http://www.opendatacommunities.org/id/unitary-authority/southend,ED Children & Public Health,Children And Education Services,3250,Cambian Childcare Limited,01/06/2022,12071703,"13,885.80",Private Contractors,Other Agencies
Southend-on-Sea Borough Council,http://www.opendatacommunities.org/id/unitary-authority/southend,ED Children & Public Health,Children And Education Services,3250,Cambian Childcare Limited,01/06/2022,12071703,"25,427.10",Private Contractors,Other Agencies
Southend-on-Sea Borough Council,http://www.opendatacommunities.org/id/unitary-authority/southend,ED Adults & Communities,Adult Social Care,1105,Caring Carers Ltd,01/06/2022,12071703,"10,813.31",Private Contractors,Other Agencies
Southend-on-Sea Borough Council,http://www.opendatacommunities.org/id/unitary-authority/southend,ED Adults & Communities,Adult Social Care,1205,Caring Carers Ltd,01/06/2022,12071703,"1,690.91",Private Contractors,Other Agencies
Southend-on-Sea Borough Council,http://www.opendatacommunities.org/id/unitary-authority/southend,ED Growth & Housing,Planning Services,5637,Deyton Bell Limited,01/06/2022,12071703,"5,109.52",Consultancy Services,Services
Southend-on-Sea Borough Council,http://www.opendatacommunities.org/id/unitary-authority/southend,ED Children & Public Health,Children And Education Services,3455,Dr N Emcy,01/06/2022,12071703,"6,500.00",Medical And Health Services,Services
Southend-on-Sea Borough Council,http://www.opendatacommunities.org/id/unitary-authority/southend,ED Adults & Communities,Adult Social Care,1209,Drive Devilbiss Healthcare Limited,01/06/2022,12071703,"2,036.88",Tools And Equipment Repair And Maintenance,Equipment Furniture And Materials
Southend-on-Sea Borough Council,http://www.opendatacommunities.org/id/unitary-authority/southend,"ED Strategy, Change & Governance",Central Services,7105,East Anglian Chambers T/A Lorene Hodkinson,01/06/2022,12071703,650,Barristers fees,Services
Southend-on-Sea Borough Council,http://www.opendatacommunities.org/id/unitary-authority/southend,"ED Strategy, Change & Governance",Central Services,7105,East Anglian Chambers T/A Lorene Hodkinson,01/06/2022,12071703,550,Barristers fees,Services
Southend-on-Sea Borough Council,http://www.opendatacommunities.org/id/unitary-authority/southend,ED Adults & Communities,Adult Social Care,1105,Erbil Gulhan T/A Palm2Palm Care And Reablement Services,01/06/2022,12071703,637.56,Private Contractors,Other Agencies
Southend-on-Sea Borough Council,http://www.opendatacommunities.org/id/unitary-authority/southend,ED Neighbourhoods & Environment,Cultural And Related Services,4201,Ernest Doe And Sons Ltd,01/06/2022,12071703,950,Tools And Equipment Repair And Maintenance,Equipment Furniture And Materials
Southend-on-Sea Borough Council,http://www.opendatacommunities.org/id/unitary-authority/southend,ED Growth & Housing,Housing Services,9005,Essex Legal Services Ltd,01/06/2022,12071703,"1,261.50",Legal Fees,Legal Fees
Southend-on-Sea Borough Council,http://www.opendatacommunities.org/id/unitary-authority/southend,ED Children & Public Health,Children And Education Services,3020,Fairways Pre School Playgroup,01/06/2022,12071703,"3,200.00",Other Establishments,Other Establishments
Southend-on-Sea Borough Council,http://www.opendatacommunities.org/id/unitary-authority/southend,ED Children & Public Health,Children And Education Services,3020,Fairways Pre School Playgroup,01/06/2022,12071703,"2,692.00",Other Establishments,Other Establishments
Southend-on-Sea Borough Council,http://www.opendatacommunities.org/id/unitary-authority/southend,ED Neighbourhoods & Environment,Highways And Transport Services,5230,Flowbird Smart City Uk Limited,01/06/2022,12071703,"6,393.36",Services,Services
Southend-on-Sea Borough Council,http://www.opendatacommunities.org/id/unitary-authority/southend,ED Neighbourhoods & Environment,Highways And Transport Services,5350,Formara Limited T/A Formara Print,01/06/2022,12071703,550,Services Design And Photography,Services
Southend-on-Sea Borough Council,http://www.opendatacommunities.org/id/unitary-authority/southend,ED Adults & Communities,Adult Social Care,1365,Hays Specialist Recruitment Ltd Receipts Recruitment File Only,01/06/2022,12071703,"1,083.60",Agency Staff,Direct Employee Expenses
Southend-on-Sea Borough Council,http://www.opendatacommunities.org/id/unitary-authority/southend,ED Adults & Communities,Adult Social Care,1365,Hays Specialist Recruitment Ltd Receipts Recruitment File Only,01/06/2022,12071703,541.8,Agency Staff,Direct Employee Expenses
Southend-on-Sea Borough Council,http://www.opendatacommunities.org/id/unitary-authority/southend,ED Adults & Communities,Adult Social Care,1357,Hays Specialist Recruitment Ltd Receipts Recruitment File Only,01/06/2022,12071703,"1,625.88",Recruitment,Indirect Employee Expenses
Southend-on-Sea Borough Council,http://www.opendatacommunities.org/id/unitary-authority/southend,ED Adults & Communities,Adult Social Care,1490,Hays Specialist Recruitment Ltd Receipts Recruitment File Only,01/06/2022,12071703,"1,046.34",Agency Staff,Direct Employee Expenses
Southend-on-Sea Borough Council,http://www.opendatacommunities.org/id/unitary-authority/southend,ED Adults & Communities,Adult Social Care,1490,Hays Specialist Recruitment Ltd Receipts Recruitment File Only,01/06/2022,12071703,"1,046.34",Agency Staff,Direct Employee Expenses
Southend-on-Sea Borough Council,http://www.opendatacommunities.org/id/unitary-authority/southend,ED Adults & Communities,Adult Social Care,1490,Hays Specialist Recruitment Ltd Receipts Recruitment File Only,01/06/2022,12071703,"1,046.34",Agency Staff,Direct Employee Expenses
Southend-on-Sea Borough Council,http://www.opendatacommunities.org/id/unitary-authority/southend,ED Adults & Communities,Adult Social Care,1490,Hays Specialist Recruitment Ltd Receipts Recruitment File Only,01/06/2022,12071703,"1,395.12",Agency Staff,Direct Employee Expenses
Southend-on-Sea Borough Council,http://www.opendatacommunities.org/id/unitary-authority/southend,ED Adults & Communities,Adult Social Care,1350,Hays Specialist Recruitment Ltd Receipts Recruitment File Only,01/06/2022,12071703,"1,071.33",Agency Staff,Direct Employee Expenses
Southend-on-Sea Borough Council,http://www.opendatacommunities.org/id/unitary-authority/southend,ED Adults & Communities,Adult Social Care,1490,Hays Specialist Recruitment Ltd Receipts Recruitment File Only,01/06/2022,12071703,"1,046.34",Agency Staff,Direct Employee Expenses
Southend-on-Sea Borough Council,http://www.opendatacommunities.org/id/unitary-authority/southend,ED Adults & Communities,Adult Social Care,1351,Hays Specialist Recruitment Ltd Receipts Recruitment File Only,01/06/2022,12071703,"1,336.44",Agency Staff,Direct Employee Expenses
Southend-on-Sea Borough Council,http://www.opendatacommunities.org/id/unitary-authority/southend,ED Adults & Communities,Adult Social Care,1461,Hays Specialist Recruitment Ltd Receipts Recruitment File Only,01/06/2022,12071703,"2,605.20",Agency Staff,Direct Employee Expenses
Southend-on-Sea Borough Council,http://www.opendatacommunities.org/id/unitary-authority/southend,ED Adults & Communities,Adult Social Care,1461,Hays Specialist Recruitment Ltd Receipts Recruitment File Only,01/06/2022,12071703,"2,605.20",Agency Staff,Direct Employee Expenses
Southend-on-Sea Borough Council,http://www.opendatacommunities.org/id/unitary-authority/southend,ED Adults & Communities,Adult Social Care,1353,Hays Specialist Recruitment Ltd Receipts Recruitment File Only,01/06/2022,12071703,507.9,Agency Staff,Direct Employee Expenses
Southend-on-Sea Borough Council,http://www.opendatacommunities.org/id/unitary-authority/southend,ED Adults & Communities,Adult Social Care,1060,Hays Specialist Recruitment Ltd Receipts Recruitment File Only,01/06/2022,12071703,626.43,Agency Staff,Direct Employee Expenses
Southend-on-Sea Borough Council,http://www.opendatacommunities.org/id/unitary-authority/southend,ED Adults & Communities,Adult Social Care,1490,Hays Specialist Recruitment Ltd Receipts Recruitment File Only,01/06/2022,12071703,697.56,Agency Staff,Direct Employee Expenses
Southend-on-Sea Borough Council,http://www.opendatacommunities.org/id/unitary-authority/southend,ED Adults & Communities,Adult Social Care,1051,Hays Specialist Recruitment Ltd Receipts Recruitment File Only,01/06/2022,12071703,650.16,Agency Staff,Direct Employee Expenses
Southend-on-Sea Borough Council,http://www.opendatacommunities.org/id/unitary-authority/southend,ED Adults & Communities,Adult Social Care,1051,Hays Specialist Recruitment Ltd Receipts Recruitment File Only,01/06/2022,12071703,"1,300.32",Agency Staff,Direct Employee Expenses
Southend-on-Sea Borough Council,http://www.opendatacommunities.org/id/unitary-authority/southend,ED Adults & Communities,Adult Social Care,1051,Hays Specialist Recruitment Ltd Receipts Recruitment File Only,01/06/2022,12071703,"1,300.32",Agency Staff,Direct Employee Expenses
Southend-on-Sea Borough Council,http://www.opendatacommunities.org/id/unitary-authority/southend,ED Adults & Communities,Adult Social Care,1180,Hays Specialist Recruitment Ltd Receipts Recruitment File Only,01/06/2022,12071703,698.04,Agency Staff,Direct Employee Expenses
Southend-on-Sea Borough Council,http://www.opendatacommunities.org/id/unitary-authority/southend,ED Adults & Communities,Cultural And Related Services,4120,Hays Specialist Recruitment Ltd Receipts Recruitment File Only,01/06/2022,12071703,871.01,Agency Staff,Direct Employee Expenses
Southend-on-Sea Borough Council,http://www.opendatacommunities.org/id/unitary-authority/southend,ED Adults & Communities,Cultural And Related Services,4120,Hays Specialist Recruitment Ltd Receipts Recruitment File Only,01/06/2022,12071703,543.67,Agency Staff,Direct Employee Expenses
Southend-on-Sea Borough Council,http://www.opendatacommunities.org/id/unitary-authority/southend,ED Adults & Communities,Cultural And Related Services,4120,Hays Specialist Recruitment Ltd Receipts Recruitment File Only,01/06/2022,12071703,681.05,Agency Staff,Direct Employee Expenses
Southend-on-Sea Borough Council,http://www.opendatacommunities.org/id/unitary-authority/southend,ED Adults & Communities,Cultural And Related Services,4120,Hays Specialist Recruitment Ltd Receipts Recruitment File Only,01/06/2022,12071703,871.01,Agency Staff,Direct Employee Expenses
Southend-on-Sea Borough Council,http://www.opendatacommunities.org/id/unitary-authority/southend,ED Adults & Communities,Cultural And Related Services,4120,Hays Specialist Recruitment Ltd Receipts Recruitment File Only,01/06/2022,12071703,961.8,Agency Staff,Direct Employee Expenses
Southend-on-Sea Borough Council,http://www.opendatacommunities.org/id/unitary-authority/southend,ED Adults & Communities,Cultural And Related Services,4120,Hays Specialist Recruitment Ltd Receipts Recruitment File Only,01/06/2022,12071703,540.44,Agency Staff,Direct Employee Expenses
Southend-on-Sea Borough Council,http://www.opendatacommunities.org/id/unitary-authority/southend,ED Adults & Communities,Cultural And Related Services,4120,Hays Specialist Recruitment Ltd Receipts Recruitment File Only,01/06/2022,12071703,623.5,Agency Staff,Direct Employee Expenses
Southend-on-Sea Borough Council,http://www.opendatacommunities.org/id/unitary-authority/southend,ED Adults & Communities,Cultural And Related Services,4120,Hays Specialist Recruitment Ltd Receipts Recruitment File Only,01/06/2022,12071703,860.51,Agency Staff,Direct Employee Expenses
Southend-on-Sea Borough Council,http://www.opendatacommunities.org/id/unitary-authority/southend,ED Adults & Communities,Cultural And Related Services,4120,Hays Specialist Recruitment Ltd Receipts Recruitment File Only,01/06/2022,12071703,641.98,Agency Staff,Direct Employee Expenses
Southend-on-Sea Borough Council,http://www.opendatacommunities.org/id/unitary-authority/southend,ED Adults & Communities,Cultural And Related Services,4120,Hays Specialist Recruitment Ltd Receipts Recruitment File Only,01/06/2022,12071703,726.3,Agency Staff,Direct Employee Expenses
Southend-on-Sea Borough Council,http://www.opendatacommunities.org/id/unitary-authority/southend,ED Adults & Communities,Cultural And Related Services,4120,Hays Specialist Recruitment Ltd Receipts Recruitment File Only,01/06/2022,12071703,643.78,Agency Staff,Direct Employee Expenses
Southend-on-Sea Borough Council,http://www.opendatacommunities.org/id/unitary-authority/southend,ED Adults & Communities,Housing Services,1011,Hays Specialist Recruitment Ltd Receipts Recruitment File Only,01/06/2022,12071703,"2,280.00",Agency Staff,Direct Employee Expenses
Southend-on-Sea Borough Council,http://www.opendatacommunities.org/id/unitary-authority/southend,ED Adults & Communities,Housing Services,1011,Hays Specialist Recruitment Ltd Receipts Recruitment File Only,01/06/2022,12071703,"2,625.35",Agency Staff,Direct Employee Expenses
Southend-on-Sea Borough Council,http://www.opendatacommunities.org/id/unitary-authority/southend,ED Children & Public Health,Children And Education Services,3590,Hays Specialist Recruitment Ltd Receipts Recruitment File Only,01/06/2022,12071703,"1,082.30",Agency Staff,Direct Employee Expenses
Southend-on-Sea Borough Council,http://www.opendatacommunities.org/id/unitary-authority/southend,ED Children & Public Health,Children And Education Services,3590,Hays Specialist Recruitment Ltd Receipts Recruitment File Only,01/06/2022,12071703,"1,059.02",Agency Staff,Direct Employee Expenses
Southend-on-Sea Borough Council,http://www.opendatacommunities.org/id/unitary-authority/southend,ED Children & Public Health,Children And Education Services,3590,Hays Specialist Recruitment Ltd Receipts Recruitment File Only,01/06/2022,12071703,858.92,Agency Staff,Direct Employee Expenses
Southend-on-Sea Borough Council,http://www.opendatacommunities.org/id/unitary-authority/southend,ED Children & Public Health,Children And Education Services,3590,Hays Specialist Recruitment Ltd Receipts Recruitment File Only,01/06/2022,12071703,858.61,Agency Staff,Direct Employee Expenses
Southend-on-Sea Borough Council,http://www.opendatacommunities.org/id/unitary-authority/southend,ED Children & Public Health,Children And Education Services,3790,Hays Specialist Recruitment Ltd Receipts Recruitment File Only,01/06/2022,12071703,"1,448.92",Agency Staff,Direct Employee Expenses
Southend-on-Sea Borough Council,http://www.opendatacommunities.org/id/unitary-authority/southend,ED Children & Public Health,Children And Education Services,3790,Hays Specialist Recruitment Ltd Receipts Recruitment File Only,01/06/2022,12071703,"1,448.92",Agency Staff,Direct Employee Expenses
Southend-on-Sea Borough Council,http://www.opendatacommunities.org/id/unitary-authority/southend,ED Children & Public Health,Children And Education Services,3790,Hays Specialist Recruitment Ltd Receipts Recruitment File Only,01/06/2022,12071703,"1,174.80",Agency Staff,Direct Employee Expenses
Southend-on-Sea Borough Council,http://www.opendatacommunities.org/id/unitary-authority/southend,ED Children & Public Health,Children And Education Services,3790,Hays Specialist Recruitment Ltd Receipts Recruitment File Only,01/06/2022,12071703,"1,174.80",Agency Staff,Direct Employee Expenses
Southend-on-Sea Borough Council,http://www.opendatacommunities.org/id/unitary-authority/southend,ED Children & Public Health,Children And Education Services,3790,Hays Specialist Recruitment Ltd Receipts Recruitment File Only,01/06/2022,12071703,"1,448.92",Agency Staff,Direct Employee Expenses
Southend-on-Sea Borough Council,http://www.opendatacommunities.org/id/unitary-authority/southend,ED Children & Public Health,Children And Education Services,3790,Hays Specialist Recruitment Ltd Receipts Recruitment File Only,01/06/2022,12071703,721.59,Agency Staff,Direct Employee Expenses
Southend-on-Sea Borough Council,http://www.opendatacommunities.org/id/unitary-authority/southend,ED Children & Public Health,Children And Education Services,3790,Hays Specialist Recruitment Ltd Receipts Recruitment File Only,01/06/2022,12071703,994.18,Agency Staff,Direct Employee Expenses
Southend-on-Sea Borough Council,http://www.opendatacommunities.org/id/unitary-authority/southend,ED Children & Public Health,Children And Education Services,3143,Hays Specialist Recruitment Ltd Receipts Recruitment File Only,01/06/2022,12071703,744.25,Agency Staff,Direct Employee Expenses
Southend-on-Sea Borough Council,http://www.opendatacommunities.org/id/unitary-authority/southend,ED Children & Public Health,Children And Education Services,3131,Hays Specialist Recruitment Ltd Receipts Recruitment File Only,01/06/2022,12071703,"4,625.10",Agency Staff,Direct Employee Expenses
Southend-on-Sea Borough Council,http://www.opendatacommunities.org/id/unitary-authority/southend,ED Children & Public Health,Children And Education Services,3265,Hays Specialist Recruitment Ltd Receipts Recruitment File Only,01/06/2022,12071703,"1,266.00",Agency Staff,Direct Employee Expenses
Southend-on-Sea Borough Council,http://www.opendatacommunities.org/id/unitary-authority/southend,ED Children & Public Health,Children And Education Services,3890,Hays Specialist Recruitment Ltd Receipts Recruitment File Only,01/06/2022,12071703,"1,448.92",Agency Staff,Direct Employee Expenses
Southend-on-Sea Borough Council,http://www.opendatacommunities.org/id/unitary-authority/southend,ED Children & Public Health,Children And Education Services,3590,Hays Specialist Recruitment Ltd Receipts Recruitment File Only,01/06/2022,12071703,"1,636.14",Agency Staff,Direct Employee Expenses
Southend-on-Sea Borough Council,http://www.opendatacommunities.org/id/unitary-authority/southend,ED Children & Public Health,Children And Education Services,3480,Hays Specialist Recruitment Ltd Receipts Recruitment File Only,01/06/2022,12071703,"1,448.92",Agency Staff,Direct Employee Expenses
Southend-on-Sea Borough Council,http://www.opendatacommunities.org/id/unitary-authority/southend,ED Children & Public Health,Children And Education Services,3590,Hays Specialist Recruitment Ltd Receipts Recruitment File Only,01/06/2022,12071703,"1,561.40",Agency Staff,Direct Employee Expenses
Southend-on-Sea Borough Council,http://www.opendatacommunities.org/id/unitary-authority/southend,ED Children & Public Health,Children And Education Services,3590,Hays Specialist Recruitment Ltd Receipts Recruitment File Only,01/06/2022,12071703,844.6,Agency Staff,Direct Employee Expenses
Southend-on-Sea Borough Council,http://www.opendatacommunities.org/id/unitary-authority/southend,ED Children & Public Health,Children And Education Services,3590,Hays Specialist Recruitment Ltd Receipts Recruitment File Only,01/06/2022,12071703,"1,040.64",Agency Staff,Direct Employee Expenses
Southend-on-Sea Borough Council,http://www.opendatacommunities.org/id/unitary-authority/southend,ED Children & Public Health,Children And Education Services,3231,Hays Specialist Recruitment Ltd Receipts Recruitment File Only,01/06/2022,12071703,"3,470.85",Agency Staff,Direct Employee Expenses
Southend-on-Sea Borough Council,http://www.opendatacommunities.org/id/unitary-authority/southend,ED Children & Public Health,Children And Education Services,3590,Hays Specialist Recruitment Ltd Receipts Recruitment File Only,01/06/2022,12071703,"1,804.86",Agency Staff,Direct Employee Expenses
Southend-on-Sea Borough Council,http://www.opendatacommunities.org/id/unitary-authority/southend,ED Children & Public Health,Children And Education Services,3200,Hays Specialist Recruitment Ltd Receipts Recruitment File Only,01/06/2022,12071703,996.78,Agency Staff,Direct Employee Expenses
Southend-on-Sea Borough Council,http://www.opendatacommunities.org/id/unitary-authority/southend,ED Children & Public Health,Children And Education Services,3590,Hays Specialist Recruitment Ltd Receipts Recruitment File Only,01/06/2022,12071703,"1,636.14",Agency Staff,Direct Employee Expenses
Southend-on-Sea Borough Council,http://www.opendatacommunities.org/id/unitary-authority/southend,ED Children & Public Health,Children And Education Services,3200,Hays Specialist Recruitment Ltd Receipts Recruitment File Only,01/06/2022,12071703,996.78,Agency Staff,Direct Employee Expenses
Southend-on-Sea Borough Council,http://www.opendatacommunities.org/id/unitary-authority/southend,ED Children & Public Health,Children And Education Services,3590,Hays Specialist Recruitment Ltd Receipts Recruitment File Only,01/06/2022,12071703,792.68,Agency Staff,Direct Employee Expenses
Southend-on-Sea Borough Council,http://www.opendatacommunities.org/id/unitary-authority/southend,ED Children & Public Health,Children And Education Services,3590,Hays Specialist Recruitment Ltd Receipts Recruitment File Only,01/06/2022,12071703,"1,266.00",Agency Staff,Direct Employee Expenses
Southend-on-Sea Borough Council,http://www.opendatacommunities.org/id/unitary-authority/southend,ED Children & Public Health,Children And Education Services,3265,Hays Specialist Recruitment Ltd Receipts Recruitment File Only,01/06/2022,12071703,928.4,Agency Staff,Direct Employee Expenses
Southend-on-Sea Borough Council,http://www.opendatacommunities.org/id/unitary-authority/southend,ED Children & Public Health,Children And Education Services,3265,Hays Specialist Recruitment Ltd Receipts Recruitment File Only,01/06/2022,12071703,"1,174.80",Agency Staff,Direct Employee Expenses
Southend-on-Sea Borough Council,http://www.opendatacommunities.org/id/unitary-authority/southend,ED Children & Public Health,Children And Education Services,3154,Hays Specialist Recruitment Ltd Receipts Recruitment File Only,01/06/2022,12071703,"1,625.88",Recruitment,Indirect Employee Expenses
Southend-on-Sea Borough Council,http://www.opendatacommunities.org/id/unitary-authority/southend,ED Children & Public Health,Public Health,7713,Hays Specialist Recruitment Ltd Receipts Recruitment File Only,01/06/2022,12071703,"1,859.65",Agency Staff,Direct Employee Expenses
Southend-on-Sea Borough Council,http://www.opendatacommunities.org/id/unitary-authority/southend,ED Finance & Resources,Central Services,7070,Hays Specialist Recruitment Ltd Receipts Recruitment File Only,01/06/2022,12071703,"3,887.60",Agency Staff,Direct Employee Expenses
Southend-on-Sea Borough Council,http://www.opendatacommunities.org/id/unitary-authority/southend,ED Finance & Resources,Central Services,2156,Hays Specialist Recruitment Ltd Receipts Recruitment File Only,01/06/2022,12071703,"1,625.88",Recruitment,Indirect Employee Expenses
Southend-on-Sea Borough Council,http://www.opendatacommunities.org/id/unitary-authority/southend,ED Finance & Resources,Central Services,7096,Hays Specialist Recruitment Ltd Receipts Recruitment File Only,01/06/2022,12071703,660.1,Agency Staff,Direct Employee Expenses
Southend-on-Sea Borough Council,http://www.opendatacommunities.org/id/unitary-authority/southend,ED Finance & Resources,Central Services,2156,Hays Specialist Recruitment Ltd Receipts Recruitment File Only,01/06/2022,12071703,937.56,Agency Staff,Direct Employee Expenses
Southend-on-Sea Borough Council,http://www.opendatacommunities.org/id/unitary-authority/southend,ED Finance & Resources,Central Services,7096,Hays Specialist Recruitment Ltd Receipts Recruitment File Only,01/06/2022,12071703,694.5,Agency Staff,Direct Employee Expenses
Southend-on-Sea Borough Council,http://www.opendatacommunities.org/id/unitary-authority/southend,ED Finance & Resources,Housing Services,7150,Hays Specialist Recruitment Ltd Receipts Recruitment File Only,01/06/2022,12071703,"2,491.80",Agency Staff,Direct Employee Expenses
Southend-on-Sea Borough Council,http://www.opendatacommunities.org/id/unitary-authority/southend,ED Finance & Resources,Housing Services,6165,Hays Specialist Recruitment Ltd Receipts Recruitment File Only,01/06/2022,12071703,507.91,Agency Staff,Direct Employee Expenses
Southend-on-Sea Borough Council,http://www.opendatacommunities.org/id/unitary-authority/southend,ED Finance & Resources,Housing Services,6165,Hays Specialist Recruitment Ltd Receipts Recruitment File Only,01/06/2022,12071703,507.91,Agency Staff,Direct Employee Expenses
Southend-on-Sea Borough Council,http://www.opendatacommunities.org/id/unitary-authority/southend,ED Finance & Resources,Housing Services,6165,Hays Specialist Recruitment Ltd Receipts Recruitment File Only,01/06/2022,12071703,507.91,Agency Staff,Direct Employee Expenses
Southend-on-Sea Borough Council,http://www.opendatacommunities.org/id/unitary-authority/southend,ED Finance & Resources,Housing Services,6165,Hays Specialist Recruitment Ltd Receipts Recruitment File Only,01/06/2022,12071703,507.91,Agency Staff,Direct Employee Expenses
Southend-on-Sea Borough Council,http://www.opendatacommunities.org/id/unitary-authority/southend,ED Growth & Housing,Cultural and Related Services,2139,Hays Specialist Recruitment Ltd Receipts Recruitment File Only,01/06/2022,12071703,"1,010.96",Agency Staff,Direct Employee Expenses
Southend-on-Sea Borough Council,http://www.opendatacommunities.org/id/unitary-authority/southend,ED Growth & Housing,Planning Services,5506,Hays Specialist Recruitment Ltd Receipts Recruitment File Only,01/06/2022,12071703,738.52,Agency Staff,Direct Employee Expenses
Southend-on-Sea Borough Council,http://www.opendatacommunities.org/id/unitary-authority/southend,ED Growth & Housing,Planning Services,5535,Hays Specialist Recruitment Ltd Receipts Recruitment File Only,01/06/2022,12071703,"1,074.15",Agency Staff,Direct Employee Expenses
Southend-on-Sea Borough Council,http://www.opendatacommunities.org/id/unitary-authority/southend,ED Growth & Housing,Planning Services,5506,Hays Specialist Recruitment Ltd Receipts Recruitment File Only,01/06/2022,12071703,738.52,Agency Staff,Direct Employee Expenses
Southend-on-Sea Borough Council,http://www.opendatacommunities.org/id/unitary-authority/southend,ED Growth & Housing,Central Services,2137,Hays Specialist Recruitment Ltd Receipts Recruitment File Only,01/06/2022,12071703,801.5,Agency Staff,Direct Employee Expenses
Southend-on-Sea Borough Council,http://www.opendatacommunities.org/id/unitary-authority/southend,ED Neighbourhoods & Environment,Cultural And Related Services,4201,Hays Specialist Recruitment Ltd Receipts Recruitment File Only,01/06/2022,12071703,"2,545.88",Agency Staff,Direct Employee Expenses
Southend-on-Sea Borough Council,http://www.opendatacommunities.org/id/unitary-authority/southend,ED Neighbourhoods & Environment,Cultural and Related Services,7505,Hays Specialist Recruitment Ltd Receipts Recruitment File Only,01/06/2022,12071703,565.75,Agency Staff,Direct Employee Expenses
Southend-on-Sea Borough Council,http://www.opendatacommunities.org/id/unitary-authority/southend,ED Neighbourhoods & Environment,Cultural and Related Services,7505,Hays Specialist Recruitment Ltd Receipts Recruitment File Only,01/06/2022,12071703,565.75,Agency Staff,Direct Employee Expenses
Southend-on-Sea Borough Council,http://www.opendatacommunities.org/id/unitary-authority/southend,ED Neighbourhoods & Environment,Cultural and Related Services,7505,Hays Specialist Recruitment Ltd Receipts Recruitment File Only,01/06/2022,12071703,565.75,Agency Staff,Direct Employee Expenses
Southend-on-Sea Borough Council,http://www.opendatacommunities.org/id/unitary-authority/southend,ED Neighbourhoods & Environment,Cultural and Related Services,7505,Hays Specialist Recruitment Ltd Receipts Recruitment File Only,01/06/2022,12071703,565.75,Agency Staff,Direct Employee Expenses
Southend-on-Sea Borough Council,http://www.opendatacommunities.org/id/unitary-authority/southend,ED Neighbourhoods & Environment,Cultural and Related Services,7505,Hays Specialist Recruitment Ltd Receipts Recruitment File Only,01/06/2022,12071703,565.75,Agency Staff,Direct Employee Expenses
Southend-on-Sea Borough Council,http://www.opendatacommunities.org/id/unitary-authority/southend,ED Neighbourhoods & Environment,Cultural and Related Services,7505,Hays Specialist Recruitment Ltd Receipts Recruitment File Only,01/06/2022,12071703,586.62,Agency Staff,Direct Employee Expenses
Southend-on-Sea Borough Council,http://www.opendatacommunities.org/id/unitary-authority/southend,ED Neighbourhoods & Environment,Cultural and Related Services,7505,Hays Specialist Recruitment Ltd Receipts Recruitment File Only,01/06/2022,12071703,565.75,Agency Staff,Direct Employee Expenses
Southend-on-Sea Borough Council,http://www.opendatacommunities.org/id/unitary-authority/southend,ED Neighbourhoods & Environment,Cultural and Related Services,7505,Hays Specialist Recruitment Ltd Receipts Recruitment File Only,01/06/2022,12071703,565.75,Agency Staff,Direct Employee Expenses
Southend-on-Sea Borough Council,http://www.opendatacommunities.org/id/unitary-authority/southend,ED Neighbourhoods & Environment,Cultural and Related Services,7505,Hays Specialist Recruitment Ltd Receipts Recruitment File Only,01/06/2022,12071703,565.75,Agency Staff,Direct Employee Expenses
Southend-on-Sea Borough Council,http://www.opendatacommunities.org/id/unitary-authority/southend,ED Neighbourhoods & Environment,Cultural and Related Services,7520,Hays Specialist Recruitment Ltd Receipts Recruitment File Only,01/06/2022,12071703,565.75,Agency Staff,Direct Employee Expenses
Southend-on-Sea Borough Council,http://www.opendatacommunities.org/id/unitary-authority/southend,ED Neighbourhoods & Environment,Cultural and Related Services,7505,Hays Specialist Recruitment Ltd Receipts Recruitment File Only,01/06/2022,12071703,565.75,Agency Staff,Direct Employee Expenses
Southend-on-Sea Borough Council,http://www.opendatacommunities.org/id/unitary-authority/southend,ED Neighbourhoods & Environment,Cultural and Related Services,7505,Hays Specialist Recruitment Ltd Receipts Recruitment File Only,01/06/2022,12071703,565.75,Agency Staff,Direct Employee Expenses
Southend-on-Sea Borough Council,http://www.opendatacommunities.org/id/unitary-authority/southend,ED Neighbourhoods & Environment,Cultural and Related Services,7505,Hays Specialist Recruitment Ltd Receipts Recruitment File Only,01/06/2022,12071703,565.75,Agency Staff,Direct Employee Expenses
Southend-on-Sea Borough Council,http://www.opendatacommunities.org/id/unitary-authority/southend,ED Neighbourhoods & Environment,Cultural and Related Services,7505,Hays Specialist Recruitment Ltd Receipts Recruitment File Only,01/06/2022,12071703,565.75,Agency Staff,Direct Employee Expenses
Southend-on-Sea Borough Council,http://www.opendatacommunities.org/id/unitary-authority/southend,ED Neighbourhoods & Environment,Cultural and Related Services,7505,Hays Specialist Recruitment Ltd Receipts Recruitment File Only,01/06/2022,12071703,565.75,Agency Staff,Direct Employee Expenses
Southend-on-Sea Borough Council,http://www.opendatacommunities.org/id/unitary-authority/southend,ED Neighbourhoods & Environment,Cultural and Related Services,7505,Hays Specialist Recruitment Ltd Receipts Recruitment File Only,01/06/2022,12071703,565.75,Agency Staff,Direct Employee Expenses
Southend-on-Sea Borough Council,http://www.opendatacommunities.org/id/unitary-authority/southend,ED Neighbourhoods & Environment,Environmental And Regulatory Services,4526,Hays Specialist Recruitment Ltd Receipts Recruitment File Only,01/06/2022,12071703,747.48,Agency Staff,Direct Employee Expenses
Southend-on-Sea Borough Council,http://www.opendatacommunities.org/id/unitary-authority/southend,ED Neighbourhoods & Environment,Environmental And Regulatory Services,4526,Hays Specialist Recruitment Ltd Receipts Recruitment File Only,01/06/2022,12071703,"1,010.12",Agency Staff,Direct Employee Expenses
Southend-on-Sea Borough Council,http://www.opendatacommunities.org/id/unitary-authority/southend,ED Neighbourhoods & Environment,Environmental And Regulatory Services,4526,Hays Specialist Recruitment Ltd Receipts Recruitment File Only,01/06/2022,12071703,"1,010.12",Agency Staff,Direct Employee Expenses
Southend-on-Sea Borough Council,http://www.opendatacommunities.org/id/unitary-authority/southend,ED Neighbourhoods & Environment,Environmental And Regulatory Services,4535,Hays Specialist Recruitment Ltd Receipts Recruitment File Only,01/06/2022,12071703,525.07,Agency Staff,Direct Employee Expenses
Southend-on-Sea Borough Council,http://www.opendatacommunities.org/id/unitary-authority/southend,ED Neighbourhoods & Environment,Highways And Transport Services,5180,Hays Specialist Recruitment Ltd Receipts Recruitment File Only,01/06/2022,12071703,"1,181.44",Agency Staff,Direct Employee Expenses
Southend-on-Sea Borough Council,http://www.opendatacommunities.org/id/unitary-authority/southend,ED Neighbourhoods & Environment,Highways And Transport Services,5180,Hays Specialist Recruitment Ltd Receipts Recruitment File Only,01/06/2022,12071703,"1,555.10",Agency Staff,Direct Employee Expenses
Southend-on-Sea Borough Council,http://www.opendatacommunities.org/id/unitary-authority/southend,ED Neighbourhoods & Environment,Highways And Transport Services,5055,Hays Specialist Recruitment Ltd Receipts Recruitment File Only,01/06/2022,12071703,"5,528.00",Agency Staff,Direct Employee Expenses
Southend-on-Sea Borough Council,http://www.opendatacommunities.org/id/unitary-authority/southend,ED Neighbourhoods & Environment,Highways And Transport Services,5180,Hays Specialist Recruitment Ltd Receipts Recruitment File Only,01/06/2022,12071703,"1,361.08",Agency Staff,Direct Employee Expenses
Southend-on-Sea Borough Council,http://www.opendatacommunities.org/id/unitary-authority/southend,"ED Strategy, Change & Governance",Central Services,7130,Hays Specialist Recruitment Ltd Receipts Recruitment File Only,01/06/2022,12071703,"1,913.96",Agency Staff,Direct Employee Expenses
Southend-on-Sea Borough Council,http://www.opendatacommunities.org/id/unitary-authority/southend,"ED Strategy, Change & Governance",Central Services,7130,Hays Specialist Recruitment Ltd Receipts Recruitment File Only,01/06/2022,12071703,"5,539.94",Recruitment,Indirect Employee Expenses
Southend-on-Sea Borough Council,http://www.opendatacommunities.org/id/unitary-authority/southend,"ED Strategy, Change & Governance",Central Services,7130,Hays Specialist Recruitment Ltd Receipts Recruitment File Only,01/06/2022,12071703,"2,113.15",Agency Staff,Direct Employee Expenses
Southend-on-Sea Borough Council,http://www.opendatacommunities.org/id/unitary-authority/southend,"ED Strategy, Change & Governance",Central Services,2005,Hays Specialist Recruitment Ltd Receipts Recruitment File Only,01/06/2022,12071703,592.55,Agency Staff,Direct Employee Expenses
Southend-on-Sea Borough Council,http://www.opendatacommunities.org/id/unitary-authority/southend,"ED Strategy, Change & Governance",Central Services,7129,Hays Specialist Recruitment Ltd Receipts Recruitment File Only,01/06/2022,12071703,"3,412.85",Agency Staff,Direct Employee Expenses
Southend-on-Sea Borough Council,http://www.opendatacommunities.org/id/unitary-authority/southend,"ED Strategy, Change & Governance",Central Services,7134,Hays Specialist Recruitment Ltd Receipts Recruitment File Only,01/06/2022,12071703,"4,226.74",Agency Staff,Direct Employee Expenses
Southend-on-Sea Borough Council,http://www.opendatacommunities.org/id/unitary-authority/southend,"ED Strategy, Change & Governance",Central Services,7134,Hays Specialist Recruitment Ltd Receipts Recruitment File Only,01/06/2022,12071703,"3,622.92",Agency Staff,Direct Employee Expenses
Southend-on-Sea Borough Council,http://www.opendatacommunities.org/id/unitary-authority/southend,"ED Strategy, Change & Governance",Central Services,7139,Hays Specialist Recruitment Ltd Receipts Recruitment File Only,01/06/2022,12071703,"2,205.28",Agency Staff,Direct Employee Expenses
Southend-on-Sea Borough Council,http://www.opendatacommunities.org/id/unitary-authority/southend,"ED Strategy, Change & Governance",Central Services,7139,Hays Specialist Recruitment Ltd Receipts Recruitment File Only,01/06/2022,12071703,"2,205.28",Agency Staff,Direct Employee Expenses
Southend-on-Sea Borough Council,http://www.opendatacommunities.org/id/unitary-authority/southend,"ED Strategy, Change & Governance",Central Services,7139,Hays Specialist Recruitment Ltd Receipts Recruitment File Only,01/06/2022,12071703,"2,205.28",Agency Staff,Direct Employee Expenses
Southend-on-Sea Borough Council,http://www.opendatacommunities.org/id/unitary-authority/southend,"ED Strategy, Change & Governance",Central Services,7139,Hays Specialist Recruitment Ltd Receipts Recruitment File Only,01/06/2022,12071703,"2,756.60",Agency Staff,Direct Employee Expenses
Southend-on-Sea Borough Council,http://www.opendatacommunities.org/id/unitary-authority/southend,"ED Strategy, Change & Governance",Central Services,7137,Hays Specialist Recruitment Ltd Receipts Recruitment File Only,01/06/2022,12071703,"2,641.35",Agency Staff,Direct Employee Expenses
Southend-on-Sea Borough Council,http://www.opendatacommunities.org/id/unitary-authority/southend,ED Finance & Resources,Central Services,2116,Hemingways Marketing Services Ltd,01/06/2022,12071703,"11,835.00",Grants,Grants And Subscriptions
Southend-on-Sea Borough Council,http://www.opendatacommunities.org/id/unitary-authority/southend,ED Adults & Communities,Adult Social Care,1105,Homecare Professionals (Essex) Ltd,01/06/2022,12071703,684,Private Contractors,Other Agencies
Southend-on-Sea Borough Council,http://www.opendatacommunities.org/id/unitary-authority/southend,ED Adults & Communities,Adult Social Care,1105,Homecare Professionals (Essex) Ltd,01/06/2022,12071703,912,Private Contractors,Other Agencies
Southend-on-Sea Borough Council,http://www.opendatacommunities.org/id/unitary-authority/southend,ED Adults & Communities,Adult Social Care,1105,Homecare Professionals (Essex) Ltd,01/06/2022,12071703,665,Private Contractors,Other Agencies
Southend-on-Sea Borough Council,http://www.opendatacommunities.org/id/unitary-authority/southend,ED Adults & Communities,Adult Social Care,1490,Id Medical,01/06/2022,12071703,525,Social Care Services,Services
Southend-on-Sea Borough Council,http://www.opendatacommunities.org/id/unitary-authority/southend,ED Adults & Communities,Public Health,7685,Indirock Ltd,01/06/2022,12071703,"10,400.00",Private Contractors,Other Agencies
Southend-on-Sea Borough Council,http://www.opendatacommunities.org/id/unitary-authority/southend,ED Finance & Resources,Central Services,8605,Kennedys Law Llp Client A/C,01/06/2022,12071703,"14,000.00",Court Costs And Legal Fees,Services
Southend-on-Sea Borough Council,http://www.opendatacommunities.org/id/unitary-authority/southend,ED Children & Public Health,Children And Education Services,3011,Le Ballon Rouge Montessori Day Nursery,01/06/2022,12071703,728,Child Minding,Services
Southend-on-Sea Borough Council,http://www.opendatacommunities.org/id/unitary-authority/southend,ED Children & Public Health,Children And Education Services,3011,Le Ballon Rouge Montessori Day Nursery,01/06/2022,12071703,864.5,Child Minding,Services
Southend-on-Sea Borough Council,http://www.opendatacommunities.org/id/unitary-authority/southend,ED Children & Public Health,Children And Education Services,3011,Le Ballon Rouge Montessori Day Nursery,01/06/2022,12071703,864.5,Child Minding,Services
Southend-on-Sea Borough Council,http://www.opendatacommunities.org/id/unitary-authority/southend,ED Children & Public Health,Children And Education Services,3011,Le Ballon Rouge Montessori Day Nursery,01/06/2022,12071703,773.5,Child Minding,Services
Southend-on-Sea Borough Council,http://www.opendatacommunities.org/id/unitary-authority/southend,ED Growth & Housing,Housing Services,6011,Mr & Mrs G Cetnik T/A Pavilion Hotel,01/06/2022,12071703,"4,207.00",Accommodation Costs,Expenses
Southend-on-Sea Borough Council,http://www.opendatacommunities.org/id/unitary-authority/southend,ED Neighbourhoods & Environment,Environmental And Regulatory Services,4506,Mr P G Taylor T/A Taylor & Co Memorial Benches And Garden Supplies,01/06/2022,12071703,760,Crematoria And Cemetery Services,Services
Southend-on-Sea Borough Council,http://www.opendatacommunities.org/id/unitary-authority/southend,ED Growth & Housing,Housing Services,6011,Mrs D D Grattan T/A Elizabeth Guest House,01/06/2022,12071703,"1,140.00",Accommodation Costs,Expenses
Southend-on-Sea Borough Council,http://www.opendatacommunities.org/id/unitary-authority/southend,ED Finance & Resources,Central Services,2190,Ms Carla Sarah Boom T/A Carla Bespoke Flowers,01/06/2022,12071703,660,Alterations And Adaptations,"Repairs, alterations and maintenance of buildings"
Southend-on-Sea Borough Council,http://www.opendatacommunities.org/id/unitary-authority/southend,ED Adults & Communities,Adult Social Care,1641,Ncs T/A Westbury Day Care,01/06/2022,12071703,"1,053.78",Private Contractors,Other Agencies
Southend-on-Sea Borough Council,http://www.opendatacommunities.org/id/unitary-authority/southend,ED Adults & Communities,Adult Social Care,1209,Nymas,01/06/2022,12071703,822.65,Tools And Equipment Purchase,Equipment Furniture And Materials
Southend-on-Sea Borough Council,http://www.opendatacommunities.org/id/unitary-authority/southend,ED Neighbourhoods & Environment,Environmental And Regulatory Services,4575,Osborne Richardson Ltd,01/06/2022,12071703,683,Private Contractors,Other Agencies
Southend-on-Sea Borough Council,http://www.opendatacommunities.org/id/unitary-authority/southend,ED Adults & Communities,Adult Social Care,1209,Ots Limited,01/06/2022,12071703,505,Tools And Equipment Purchase,Equipment Furniture And Materials
Southend-on-Sea Borough Council,http://www.opendatacommunities.org/id/unitary-authority/southend,ED Children & Public Health,Children And Education Services,3250,Pathways Care Group Limited,01/06/2022,12071703,"22,585.71",Private Contractors,Other Agencies
Southend-on-Sea Borough Council,http://www.opendatacommunities.org/id/unitary-authority/southend,ED Adults & Communities,Adult Social Care,1675,Peabody South East Limited,01/06/2022,12071703,"2,631.36",Private Contractors,Other Agencies
Southend-on-Sea Borough Council,http://www.opendatacommunities.org/id/unitary-authority/southend,ED Children & Public Health,Children And Education Services,3590,People Pool Ltd,01/06/2022,12071703,"1,548.50",Agency Staff,Direct Employee Expenses
Southend-on-Sea Borough Council,http://www.opendatacommunities.org/id/unitary-authority/southend,ED Children & Public Health,Children And Education Services,3590,People Pool Ltd,01/06/2022,12071703,"1,313.50",Agency Staff,Direct Employee Expenses
Southend-on-Sea Borough Council,http://www.opendatacommunities.org/id/unitary-authority/southend,ED Children & Public Health,Children And Education Services,3590,People Pool Ltd,01/06/2022,12071703,"1,701.12",Agency Staff,Direct Employee Expenses
Southend-on-Sea Borough Council,http://www.opendatacommunities.org/id/unitary-authority/southend,ED Children & Public Health,Children And Education Services,3590,People Pool Ltd,01/06/2022,12071703,"1,794.50",Agency Staff,Direct Employee Expenses
Southend-on-Sea Borough Council,http://www.opendatacommunities.org/id/unitary-authority/southend,ED Children & Public Health,Children And Education Services,3590,People Pool Ltd,01/06/2022,12071703,"1,535.50",Agency Staff,Direct Employee Expenses
Southend-on-Sea Borough Council,http://www.opendatacommunities.org/id/unitary-authority/southend,"ED Strategy, Change & Governance",Central Services,7105,Phf Training,01/06/2022,12071703,800,3rd Party training,Services
Southend-on-Sea Borough Council,http://www.opendatacommunities.org/id/unitary-authority/southend,ED Neighbourhoods & Environment,Cultural and Related Services,7520,Pmc Polythene Ltd,01/06/2022,12071703,"1,315.20",Materials,Equipment Furniture And Materials
Southend-on-Sea Borough Council,http://www.opendatacommunities.org/id/unitary-authority/southend,ED Neighbourhoods & Environment,Cultural and Related Services,7540,Pmc Polythene Ltd,01/06/2022,12071703,"1,315.20",Materials,Equipment Furniture And Materials
Southend-on-Sea Borough Council,http://www.opendatacommunities.org/id/unitary-authority/southend,ED Children & Public Health,Children And Education Services,3692,Precious Child Contact Services Ltd,01/06/2022,12071703,560,Private Contractors,Other Agencies
Southend-on-Sea Borough Council,http://www.opendatacommunities.org/id/unitary-authority/southend,ED Adults & Communities,Adult Social Care,1213,Quest 88 Limited,01/06/2022,12071703,964.5,Tools And Equipment Purchase,Equipment Furniture And Materials
Southend-on-Sea Borough Council,http://www.opendatacommunities.org/id/unitary-authority/southend,ED Children & Public Health,Children And Education Services,3183,Rawreth Removals Ltd,01/06/2022,12071703,500,Travel Expenses,Car Allowances
Southend-on-Sea Borough Council,http://www.opendatacommunities.org/id/unitary-authority/southend,ED Adults & Communities,Adult Social Care,1320,Re House Limited,01/06/2022,12071703,"1,051.35",Private Contractors,Other Agencies
Southend-on-Sea Borough Council,http://www.opendatacommunities.org/id/unitary-authority/southend,ED Adults & Communities,Adult Social Care,1320,Re House Limited,01/06/2022,12071703,"1,636.47",Private Contractors,Other Agencies
Southend-on-Sea Borough Council,http://www.opendatacommunities.org/id/unitary-authority/southend,ED Adults & Communities,Adult Social Care,1320,Re House Limited,01/06/2022,12071703,805.05,Private Contractors,Other Agencies
Southend-on-Sea Borough Council,http://www.opendatacommunities.org/id/unitary-authority/southend,ED Adults & Communities,Adult Social Care,1320,Re House Limited,01/06/2022,12071703,"1,359.64",Private Contractors,Other Agencies
Southend-on-Sea Borough Council,http://www.opendatacommunities.org/id/unitary-authority/southend,ED Adults & Communities,Adult Social Care,1320,Re House Limited,01/06/2022,12071703,668.5,Private Contractors,Other Agencies
Southend-on-Sea Borough Council,http://www.opendatacommunities.org/id/unitary-authority/southend,ED Adults & Communities,Adult Social Care,1320,Re House Limited,01/06/2022,12071703,634.92,Private Contractors,Other Agencies
Southend-on-Sea Borough Council,http://www.opendatacommunities.org/id/unitary-authority/southend,ED Growth & Housing,Housing Services,6130,REDACTED PERSONAL DATA,01/06/2022,12071703,940,Loans,Services
Southend-on-Sea Borough Council,http://www.opendatacommunities.org/id/unitary-authority/southend,ED Growth & Housing,Housing Services,6130,REDACTED PERSONAL DATA,01/06/2022,12071703,890,Loans,Services
Southend-on-Sea Borough Council,http://www.opendatacommunities.org/id/unitary-authority/southend,ED Adults & Communities,Adult Social Care,1266,REDACTED PERSONAL DATA,01/06/2022,12071703,720.88,Private Contractors,Other Agencies
Southend-on-Sea Borough Council,http://www.opendatacommunities.org/id/unitary-authority/southend,ED Children & Public Health,Children And Education Services,3492,REDACTED PERSONAL DATA,01/06/2022,12071703,650,Accomodation Payment,Services
Southend-on-Sea Borough Council,http://www.opendatacommunities.org/id/unitary-authority/southend,ED Children & Public Health,Children And Education Services,3411,REDACTED PERSONAL DATA,01/06/2022,12071703,550,Grants,Grants And Subscriptions
Southend-on-Sea Borough Council,http://www.opendatacommunities.org/id/unitary-authority/southend,ED Children & Public Health,Children And Education Services,3411,REDACTED PERSONAL DATA,01/06/2022,12071703,500,Grants,Grants And Subscriptions
Southend-on-Sea Borough Council,http://www.opendatacommunities.org/id/unitary-authority/southend,ED Children & Public Health,Children And Education Services,3411,REDACTED PERSONAL DATA,01/06/2022,12071703,880,Grants,Grants And Subscriptions
Southend-on-Sea Borough Council,http://www.opendatacommunities.org/id/unitary-authority/southend,ED Children & Public Health,Children And Education Services,3411,REDACTED PERSONAL DATA,01/06/2022,12071703,500,Grants,Grants And Subscriptions
Southend-on-Sea Borough Council,http://www.opendatacommunities.org/id/unitary-authority/southend,ED Children & Public Health,Children And Education Services,3411,REDACTED PERSONAL DATA,01/06/2022,12071703,500,Grants,Grants And Subscriptions
Southend-on-Sea Borough Council,http://www.opendatacommunities.org/id/unitary-authority/southend,ED Adults & Communities,Adult Social Care,1490,Run Healthcare Ltd,01/06/2022,12071703,"3,850.00",Social Care Services,Services
Southend-on-Sea Borough Council,http://www.opendatacommunities.org/id/unitary-authority/southend,ED Adults & Communities,Adult Social Care,1105,Seven Day Care (Essex) Ltd T/A Surecare Southend,01/06/2022,12071703,522.5,Private Contractors,Other Agencies
Southend-on-Sea Borough Council,http://www.opendatacommunities.org/id/unitary-authority/southend,ED Adults & Communities,Adult Social Care,1105,Seven Day Care (Essex) Ltd T/A Surecare Southend,01/06/2022,12071703,541.5,Private Contractors,Other Agencies
Southend-on-Sea Borough Council,http://www.opendatacommunities.org/id/unitary-authority/southend,ED Adults & Communities,Adult Social Care,1105,Spdns Nurse Care Cic.,01/06/2022,12071703,"10,100.36",Private Contractors,Other Agencies
Southend-on-Sea Borough Council,http://www.opendatacommunities.org/id/unitary-authority/southend,ED Adults & Communities,Adult Social Care,1108,Spdns Nurse Care Cic.,01/06/2022,12071703,551.02,Private Contractors,Other Agencies
Southend-on-Sea Borough Council,http://www.opendatacommunities.org/id/unitary-authority/southend,ED Adults & Communities,Adult Social Care,1205,Spdns Nurse Care Cic.,01/06/2022,12071703,"1,206.50",Private Contractors,Other Agencies
Southend-on-Sea Borough Council,http://www.opendatacommunities.org/id/unitary-authority/southend,ED Children & Public Health,Children And Education Services,3250,St Christopher'S Fellowship,01/06/2022,12071703,"3,799.88",Private Contractors,Other Agencies
Southend-on-Sea Borough Council,http://www.opendatacommunities.org/id/unitary-authority/southend,ED Neighbourhoods & Environment,Highways And Transport Services,5130,Swarco Uk & Ireland Ltd,01/06/2022,12071703,"7,181.52",Private Contractors,Other Agencies
Southend-on-Sea Borough Council,http://www.opendatacommunities.org/id/unitary-authority/southend,ED Neighbourhoods & Environment,Cultural and Related Services,7505,The Petrol Tank Company Ltd,01/06/2022,12071703,572.99,Private Contractors,Other Agencies
Southend-on-Sea Borough Council,http://www.opendatacommunities.org/id/unitary-authority/southend,ED Neighbourhoods & Environment,Cultural and Related Services,7510,The Petrol Tank Company Ltd,01/06/2022,12071703,572.99,Private Contractors,Other Agencies
Southend-on-Sea Borough Council,http://www.opendatacommunities.org/id/unitary-authority/southend,ED Neighbourhoods & Environment,Cultural and Related Services,7520,The Petrol Tank Company Ltd,01/06/2022,12071703,572.99,Private Contractors,Other Agencies
Southend-on-Sea Borough Council,http://www.opendatacommunities.org/id/unitary-authority/southend,ED Neighbourhoods & Environment,Environmental And Regulatory Services,4506,The Petrol Tank Company Ltd,01/06/2022,12071703,573,Private Contractors,Other Agencies
Southend-on-Sea Borough Council,http://www.opendatacommunities.org/id/unitary-authority/southend,ED Neighbourhoods & Environment,Cultural and Related Services,7540,The Petrol Tank Company Ltd,01/06/2022,12071703,572.99,Private Contractors,Other Agencies
Southend-on-Sea Borough Council,http://www.opendatacommunities.org/id/unitary-authority/southend,ED Children & Public Health,Children And Education Services,3483,The St. Christopher School Academy Trust,01/06/2022,12071703,"52,797.00",Private Contractors,Other Agencies
Southend-on-Sea Borough Council,http://www.opendatacommunities.org/id/unitary-authority/southend,ED Growth & Housing,Planning Services,5637,Together Bluewater Limited,01/06/2022,12071703,"10,000.00",Grants,Grants And Subscriptions
Southend-on-Sea Borough Council,http://www.opendatacommunities.org/id/unitary-authority/southend,ED Growth & Housing,Housing Services,6130,Y Commercial Lettings Ltd,01/06/2022,12071703,"1,000.00",Loans,Services
Southend-on-Sea Borough Council,http://www.opendatacommunities.org/id/unitary-authority/southend,ED Growth & Housing,Housing Services,6010,Y Commercial Lettings Ltd,01/06/2022,12071703,500,Accomodation Payment,Services
Southend-on-Sea Borough Council,http://www.opendatacommunities.org/id/unitary-authority/southend,ED Adults & Communities,Adult Social Care,9010,Youngs Flooring,01/06/2022,12071703,"1,510.00",Main Contractor,Main Contractor
Southend-on-Sea Borough Council,http://www.opendatacommunities.org/id/unitary-authority/southend,ED Adults & Communities,Adult Social Care,9010,Youngs Flooring,01/06/2022,12071703,"4,890.00",Main Contractor,Main Contractor
Southend-on-Sea Borough Council,http://www.opendatacommunities.org/id/unitary-authority/southend,ED Growth & Housing,Housing Services,9005,(G) Advanced Building & Maintenance Services Ltd,06/06/2022,12071726,"7,991.10",Contractors General,Contractors General
Southend-on-Sea Borough Council,http://www.opendatacommunities.org/id/unitary-authority/southend,ED Adults & Communities,Adult Social Care,9010,(G) Gracelands Cms Ltd,06/06/2022,12071726,"6,820.80",Grants Paid,Grants Paid
Southend-on-Sea Borough Council,http://www.opendatacommunities.org/id/unitary-authority/southend,ED Adults & Communities,Adult Social Care,9010,(G) Gracelands Cms Ltd,06/06/2022,12071726,"7,050.40",Grants Paid,Grants Paid
Southend-on-Sea Borough Council,http://www.opendatacommunities.org/id/unitary-authority/southend,ED Adults & Communities,Adult Social Care,1115,Ashley Community Care Services Ltd T/A Ashley Care,06/06/2022,12071726,"2,037.00",Contractor - Programmed Works,Other Agencies
Southend-on-Sea Borough Council,http://www.opendatacommunities.org/id/unitary-authority/southend,ED Finance & Resources,Central Services,7140,Biffa Waste Services Ltd,06/06/2022,12071726,"1,329.65",Waste Management,Cleaning And Domestic Supplies
Southend-on-Sea Borough Council,http://www.opendatacommunities.org/id/unitary-authority/southend,ED Adults & Communities,Adult Social Care,1105,Choices Healthcare Ltd,06/06/2022,12071726,"17,304.25",Private Contractors,Other Agencies
Southend-on-Sea Borough Council,http://www.opendatacommunities.org/id/unitary-authority/southend,ED Adults & Communities,Adult Social Care,1108,Choices Healthcare Ltd,06/06/2022,12071726,570,Private Contractors,Other Agencies
Southend-on-Sea Borough Council,http://www.opendatacommunities.org/id/unitary-authority/southend,ED Adults & Communities,Adult Social Care,1205,Choices Healthcare Ltd,06/06/2022,12071726,"1,429.75",Private Contractors,Other Agencies
Southend-on-Sea Borough Council,http://www.opendatacommunities.org/id/unitary-authority/southend,ED Adults & Communities,Adult Social Care,1165,Choices Healthcare Ltd,06/06/2022,12071726,"1,178.00",COVID-19 Response,Other Agencies
Southend-on-Sea Borough Council,http://www.opendatacommunities.org/id/unitary-authority/southend,ED Adults & Communities,Adult Social Care,1105,Choices Healthcare Ltd,06/06/2022,12071726,606.24,Private Contractors,Other Agencies
Southend-on-Sea Borough Council,http://www.opendatacommunities.org/id/unitary-authority/southend,ED Adults & Communities,Adult Social Care,1105,Choices Healthcare Ltd,06/06/2022,12071726,606.24,Private Contractors,Other Agencies
Southend-on-Sea Borough Council,http://www.opendatacommunities.org/id/unitary-authority/southend,ED Adults & Communities,Adult Social Care,1320,Forget Me Not Caring Ltd,06/06/2022,12071726,616.1,Private Contractors,Other Agencies
Southend-on-Sea Borough Council,http://www.opendatacommunities.org/id/unitary-authority/southend,ED Adults & Communities,Adult Social Care,1294,Forget Me Not Caring Ltd,06/06/2022,12071726,"3,240.56",Private Contractors,Other Agencies
Southend-on-Sea Borough Council,http://www.opendatacommunities.org/id/unitary-authority/southend,ED Adults & Communities,Adult Social Care,1294,Forget Me Not Caring Ltd,06/06/2022,12071726,"3,268.20",Private Contractors,Other Agencies
Southend-on-Sea Borough Council,http://www.opendatacommunities.org/id/unitary-authority/southend,ED Adults & Communities,Adult Social Care,1294,Forget Me Not Caring Ltd,06/06/2022,12071726,"3,702.36",Private Contractors,Other Agencies
Southend-on-Sea Borough Council,http://www.opendatacommunities.org/id/unitary-authority/southend,ED Adults & Communities,Adult Social Care,1294,Forget Me Not Caring Ltd,06/06/2022,12071726,"4,163.92",Private Contractors,Other Agencies
Southend-on-Sea Borough Council,http://www.opendatacommunities.org/id/unitary-authority/southend,ED Children & Public Health,Children And Education Services,3250,Fostering London Limited,06/06/2022,12071726,"3,640.00",Private Contractors,Other Agencies
Southend-on-Sea Borough Council,http://www.opendatacommunities.org/id/unitary-authority/southend,ED Adults & Communities,Adult Social Care,1105,Golden Keys Care Agency Limited,06/06/2022,12071726,"2,394.00",Private Contractors,Other Agencies
Southend-on-Sea Borough Council,http://www.opendatacommunities.org/id/unitary-authority/southend,ED Adults & Communities,Adult Social Care,1105,Golden Keys Care Agency Limited,06/06/2022,12071726,"2,660.00",Private Contractors,Other Agencies
Southend-on-Sea Borough Council,http://www.opendatacommunities.org/id/unitary-authority/southend,ED Adults & Communities,Adult Social Care,1294,J M Carehomes Limited,06/06/2022,12071726,"5,446.20",Private Contractors,Other Agencies
Southend-on-Sea Borough Council,http://www.opendatacommunities.org/id/unitary-authority/southend,ED Adults & Communities,Adult Social Care,1294,J M Carehomes Limited,06/06/2022,12071726,"3,933.16",Private Contractors,Other Agencies
Southend-on-Sea Borough Council,http://www.opendatacommunities.org/id/unitary-authority/southend,ED Adults & Communities,Adult Social Care,1391,J M Carehomes Limited,06/06/2022,12071726,"3,615.44",Private Contractors,Other Agencies
Southend-on-Sea Borough Council,http://www.opendatacommunities.org/id/unitary-authority/southend,ED Adults & Communities,Adult Social Care,1294,J M Carehomes Limited,06/06/2022,12071726,"3,499.60",Private Contractors,Other Agencies
Southend-on-Sea Borough Council,http://www.opendatacommunities.org/id/unitary-authority/southend,ED Adults & Communities,Adult Social Care,1391,J M Carehomes Limited,06/06/2022,12071726,"1,903.60",Private Contractors,Other Agencies
Southend-on-Sea Borough Council,http://www.opendatacommunities.org/id/unitary-authority/southend,ED Adults & Communities,Adult Social Care,1294,J M Carehomes Limited,06/06/2022,12071726,"3,837.28",Private Contractors,Other Agencies
Southend-on-Sea Borough Council,http://www.opendatacommunities.org/id/unitary-authority/southend,ED Adults & Communities,Adult Social Care,1294,J M Carehomes Limited,06/06/2022,12071726,"4,465.96",Private Contractors,Other Agencies
Southend-on-Sea Borough Council,http://www.opendatacommunities.org/id/unitary-authority/southend,ED Adults & Communities,Adult Social Care,1294,J M Carehomes Limited,06/06/2022,12071726,"5,078.68",Private Contractors,Other Agencies
Southend-on-Sea Borough Council,http://www.opendatacommunities.org/id/unitary-authority/southend,ED Adults & Communities,Adult Social Care,1675,J M Carehomes Limited,06/06/2022,12071726,"3,630.52",Private Contractors,Other Agencies
Southend-on-Sea Borough Council,http://www.opendatacommunities.org/id/unitary-authority/southend,ED Adults & Communities,Adult Social Care,1391,J M Carehomes Limited,06/06/2022,12071726,"3,158.52",Private Contractors,Other Agencies
Southend-on-Sea Borough Council,http://www.opendatacommunities.org/id/unitary-authority/southend,ED Adults & Communities,Adult Social Care,1391,J M Carehomes Limited,06/06/2022,12071726,"3,769.68",Private Contractors,Other Agencies
Southend-on-Sea Borough Council,http://www.opendatacommunities.org/id/unitary-authority/southend,ED Adults & Communities,Adult Social Care,1391,J M Carehomes Limited,06/06/2022,12071726,"3,642.80",Private Contractors,Other Agencies
Southend-on-Sea Borough Council,http://www.opendatacommunities.org/id/unitary-authority/southend,ED Adults & Communities,Adult Social Care,1644,J M Carehomes Limited,06/06/2022,12071726,"3,493.44",Private Contractors,Other Agencies
Southend-on-Sea Borough Council,http://www.opendatacommunities.org/id/unitary-authority/southend,ED Adults & Communities,Adult Social Care,1294,J M Carehomes Limited,06/06/2022,12071726,"12,086.68",Private Contractors,Other Agencies
Southend-on-Sea Borough Council,http://www.opendatacommunities.org/id/unitary-authority/southend,ED Adults & Communities,Adult Social Care,1294,J M Carehomes Limited,06/06/2022,12071726,"3,987.24",Private Contractors,Other Agencies
Southend-on-Sea Borough Council,http://www.opendatacommunities.org/id/unitary-authority/southend,ED Adults & Communities,Adult Social Care,1294,J M Carehomes Limited,06/06/2022,12071726,"1,825.48",Private Contractors,Other Agencies
Southend-on-Sea Borough Council,http://www.opendatacommunities.org/id/unitary-authority/southend,ED Adults & Communities,Adult Social Care,1195,J M Carehomes Limited,06/06/2022,12071726,"4,431.80",Private Contractors,Other Agencies
Southend-on-Sea Borough Council,http://www.opendatacommunities.org/id/unitary-authority/southend,ED Adults & Communities,Adult Social Care,1294,J M Carehomes Limited,06/06/2022,12071726,"3,664.88",Private Contractors,Other Agencies
Southend-on-Sea Borough Council,http://www.opendatacommunities.org/id/unitary-authority/southend,ED Growth & Housing,Planning Services,5637,Kayley Donovan T/A Kids Party Wheels Ltd,06/06/2022,12071726,"8,280.00",Grants,Grants And Subscriptions
Southend-on-Sea Borough Council,http://www.opendatacommunities.org/id/unitary-authority/southend,ED Children & Public Health,Children And Education Services,3250,Keys Pce Limited,06/06/2022,12071726,"15,980.00",Private Contractors,Other Agencies
Southend-on-Sea Borough Council,http://www.opendatacommunities.org/id/unitary-authority/southend,ED Growth & Housing,Housing Services,9007,Kiwi Community Events C I C,06/06/2022,12071726,"6,862.36",Main Contractor,Main Contractor
Southend-on-Sea Borough Council,http://www.opendatacommunities.org/id/unitary-authority/southend,ED Growth & Housing,Planning Services,5637,Libra Partnership Ltd,06/06/2022,12071726,"2,700.00",Grants,Grants And Subscriptions
Southend-on-Sea Borough Council,http://www.opendatacommunities.org/id/unitary-authority/southend,ED Growth & Housing,Housing Services,6011,Love Southend,06/06/2022,12071726,"14,524.67",Other Agencies,Other Agencies
Southend-on-Sea Borough Council,http://www.opendatacommunities.org/id/unitary-authority/southend,ED Neighbourhoods & Environment,Cultural and Related Services,7515,Premier Plants Uk Ltd,06/06/2022,12071726,615.26,Materials,Equipment Furniture And Materials
Southend-on-Sea Borough Council,http://www.opendatacommunities.org/id/unitary-authority/southend,ED Finance & Resources,Central Services,7111,Royal Mail,06/06/2022,12071726,"1,986.94",Mail Services� Postage,Communications And Computing
Southend-on-Sea Borough Council,http://www.opendatacommunities.org/id/unitary-authority/southend,ED Finance & Resources,Central Services,7111,Royal Mail,06/06/2022,12071726,"3,044.80",Mail Services� Postage,Communications And Computing
Southend-on-Sea Borough Council,http://www.opendatacommunities.org/id/unitary-authority/southend,ED Finance & Resources,Central Services,2114,Savs,06/06/2022,12071726,"100,000.00",Grants,Grants And Subscriptions
Southend-on-Sea Borough Council,http://www.opendatacommunities.org/id/unitary-authority/southend,ED Growth & Housing,Planning Services,5637,Sole Remedy Ltd,06/06/2022,12071726,"1,386.68",Grants,Grants And Subscriptions
Southend-on-Sea Borough Council,http://www.opendatacommunities.org/id/unitary-authority/southend,ED Finance & Resources,Central Services,7160,South Essex Property Services,06/06/2022,12071726,"63,228.79",Cleaning And Janitorial Cleaning Service,Cleaning And Domestic Supplies
Southend-on-Sea Borough Council,http://www.opendatacommunities.org/id/unitary-authority/southend,ED Adults & Communities,Adult Social Care,1466,Southend Care Ltd,06/06/2022,12071726,"250,000.00",COVID-19 Response,Other Agencies
Southend-on-Sea Borough Council,http://www.opendatacommunities.org/id/unitary-authority/southend,ED Neighbourhoods & Environment,Highways And Transport Services,5700,Steves Self Drive Limited Liability Partnership T/A Steve'S Self Drive Hire,06/06/2022,12071726,535.71,Contract Hire Of Vehicles Not Taxis Plant Or Buses,Contract Hire And Operating Leases
Southend-on-Sea Borough Council,http://www.opendatacommunities.org/id/unitary-authority/southend,ED Neighbourhoods & Environment,Highways And Transport Services,5700,Steves Self Drive Limited Liability Partnership T/A Steve'S Self Drive Hire,06/06/2022,12071726,535.71,Contract Hire Of Vehicles Not Taxis Plant Or Buses,Contract Hire And Operating Leases
Southend-on-Sea Borough Council,http://www.opendatacommunities.org/id/unitary-authority/southend,ED Growth & Housing,Planning Services,5637,Tdi Tuning Ltd,06/06/2022,12071726,"10,000.00",Grants,Grants And Subscriptions
Southend-on-Sea Borough Council,http://www.opendatacommunities.org/id/unitary-authority/southend,ED Neighbourhoods & Environment,Cultural and Related Services,7520,Tlm Management Ltd,06/06/2022,12071726,"1,487.50",Private Contractors,Other Agencies
Southend-on-Sea Borough Council,http://www.opendatacommunities.org/id/unitary-authority/southend,ED Neighbourhoods & Environment,Cultural and Related Services,7540,Tlm Management Ltd,06/06/2022,12071726,"2,156.50",Private Contractors,Other Agencies
Southend-on-Sea Borough Council,http://www.opendatacommunities.org/id/unitary-authority/southend,ED Neighbourhoods & Environment,Highways And Transport Services,5115,Tree Fella Limited,06/06/2022,12071726,"3,804.80",Private Contractors,Other Agencies
Southend-on-Sea Borough Council,http://www.opendatacommunities.org/id/unitary-authority/southend,ED Finance & Resources,Central Services,7140,(G) Enerveo Limited,07/06/2022,12071730,"1,885.71",Repairs And Maintenance Contracts,"Repairs, alterations and maintenance of buildings"
Southend-on-Sea Borough Council,http://www.opendatacommunities.org/id/unitary-authority/southend,ED Finance & Resources,Central Services,7140,(G) G4S Secure Solutions (Uk) Ltd T/As Fire & Security,07/06/2022,12071730,756.96,Repairs And Maintenance Contracts,"Repairs, alterations and maintenance of buildings"
Southend-on-Sea Borough Council,http://www.opendatacommunities.org/id/unitary-authority/southend,ED Adults & Communities,Adult Social Care,9010,(G) Mde Power Ltd,07/06/2022,12071730,"12,181.73",Main Contractor,Main Contractor
Southend-on-Sea Borough Council,http://www.opendatacommunities.org/id/unitary-authority/southend,ED Adults & Communities,Adult Social Care,9010,(G) Millane Contract Services Ltd,07/06/2022,12071730,"42,315.34",Main Contractor,Main Contractor
Southend-on-Sea Borough Council,http://www.opendatacommunities.org/id/unitary-authority/southend,ED Adults & Communities,Adult Social Care,9010,(G) Millane Contract Services Ltd,07/06/2022,12071730,"38,549.85",Main Contractor,Main Contractor
Southend-on-Sea Borough Council,http://www.opendatacommunities.org/id/unitary-authority/southend,ED Finance & Resources,Central Services,7140,(G) R & A Mechanical Services Ltd,07/06/2022,12071730,915,Repairs And Maintenance Contracts,"Repairs, alterations and maintenance of buildings"
Southend-on-Sea Borough Council,http://www.opendatacommunities.org/id/unitary-authority/southend,ED Growth & Housing,Housing Services,6130,Acme Developments (Uk) Ltd,07/06/2022,12071730,800,Loans,Services
Southend-on-Sea Borough Council,http://www.opendatacommunities.org/id/unitary-authority/southend,ED Neighbourhoods & Environment,Cultural and Related Services,7515,Agrigem Ltd,07/06/2022,12071730,"1,014.98",Materials,Equipment Furniture And Materials
Southend-on-Sea Borough Council,http://www.opendatacommunities.org/id/unitary-authority/southend,ED Adults & Communities,Cultural And Related Services,4120,Biffa Waste Services Ltd,07/06/2022,12071730,"2,602.66",Waste Management,Cleaning And Domestic Supplies
Southend-on-Sea Borough Council,http://www.opendatacommunities.org/id/unitary-authority/southend,ED Children & Public Health,Children And Education Services,3290,Canary House Care Limited,07/06/2022,12071730,"1,091.42",Accomodation Payment,Services
Southend-on-Sea Borough Council,http://www.opendatacommunities.org/id/unitary-authority/southend,ED Children & Public Health,Children And Education Services,3290,Canary House Care Limited,07/06/2022,12071730,"1,200.00",Accomodation Payment,Services
Southend-on-Sea Borough Council,http://www.opendatacommunities.org/id/unitary-authority/southend,ED Children & Public Health,Children And Education Services,3307,Canary House Care Limited,07/06/2022,12071730,"3,950.00",Accomodation Payment,Services
Southend-on-Sea Borough Council,http://www.opendatacommunities.org/id/unitary-authority/southend,ED Children & Public Health,Children And Education Services,3308,Canary House Care Limited,07/06/2022,12071730,"1,750.00",Accomodation Payment,Services
Southend-on-Sea Borough Council,http://www.opendatacommunities.org/id/unitary-authority/southend,ED Adults & Communities,Adult Social Care,1105,Caring Carers Ltd,07/06/2022,12071730,532,Private Contractors,Other Agencies
Southend-on-Sea Borough Council,http://www.opendatacommunities.org/id/unitary-authority/southend,ED Adults & Communities,Adult Social Care,1105,Choices Healthcare Ltd,07/06/2022,12071730,606.24,Private Contractors,Other Agencies
Southend-on-Sea Borough Council,http://www.opendatacommunities.org/id/unitary-authority/southend,ED Finance & Resources,Central Services,8605,Driscoll Kingston Client Account,07/06/2022,12071730,"10,050.00",Court Costs And Legal Fees,Services
Southend-on-Sea Borough Council,http://www.opendatacommunities.org/id/unitary-authority/southend,ED Neighbourhoods & Environment,Environmental And Regulatory Services,4660,Enovert South Limited,07/06/2022,12071730,"3,655.85",Waste Management,Cleaning And Domestic Supplies
Southend-on-Sea Borough Council,http://www.opendatacommunities.org/id/unitary-authority/southend,ED Neighbourhoods & Environment,Environmental And Regulatory Services,4661,Enovert South Limited,07/06/2022,12071730,"13,107.88",Waste Management,Cleaning And Domestic Supplies
Southend-on-Sea Borough Council,http://www.opendatacommunities.org/id/unitary-authority/southend,ED Neighbourhoods & Environment,Environmental And Regulatory Services,4660,Enovert South Limited,07/06/2022,12071730,"7,302.92",Waste Management,Cleaning And Domestic Supplies
Southend-on-Sea Borough Council,http://www.opendatacommunities.org/id/unitary-authority/southend,ED Neighbourhoods & Environment,Environmental And Regulatory Services,4661,Enovert South Limited,07/06/2022,12071730,"61,544.14",Waste Management,Cleaning And Domestic Supplies
Southend-on-Sea Borough Council,http://www.opendatacommunities.org/id/unitary-authority/southend,ED Adults & Communities,Adult Social Care,1310,Essex Nursing Services,07/06/2022,12071730,513,Private Contractors,Other Agencies
Southend-on-Sea Borough Council,http://www.opendatacommunities.org/id/unitary-authority/southend,ED Neighbourhoods & Environment,Environmental And Regulatory Services,4605,Euroloos Limited,07/06/2022,12071730,525,Repairs And Maintenance Contracts,"Repairs, alterations and maintenance of buildings"
Southend-on-Sea Borough Council,http://www.opendatacommunities.org/id/unitary-authority/southend,ED Neighbourhoods & Environment,Highways And Transport Services,5230,Flowbird Smart City Uk Limited,07/06/2022,12071730,"2,295.00",Tools And Equipment Purchase,Equipment Furniture And Materials
Southend-on-Sea Borough Council,http://www.opendatacommunities.org/id/unitary-authority/southend,ED Children & Public Health,Children And Education Services,3250,Foster Care Uk,07/06/2022,12071730,"4,950.00",Private Contractors,Other Agencies
Southend-on-Sea Borough Council,http://www.opendatacommunities.org/id/unitary-authority/southend,ED Children & Public Health,Children And Education Services,3250,Fostering Support Group,07/06/2022,12071730,"3,568.41",Private Contractors,Other Agencies
Southend-on-Sea Borough Council,http://www.opendatacommunities.org/id/unitary-authority/southend,ED Children & Public Health,Children And Education Services,3250,Fusion Fostering Ltd,07/06/2022,12071730,"3,852.86",Private Contractors,Other Agencies
Southend-on-Sea Borough Council,http://www.opendatacommunities.org/id/unitary-authority/southend,ED Adults & Communities,Adult Social Care,1105,Golden Keys Care Agency Limited,07/06/2022,12071730,"2,394.00",Private Contractors,Other Agencies
Southend-on-Sea Borough Council,http://www.opendatacommunities.org/id/unitary-authority/southend,ED Adults & Communities,Adult Social Care,1205,Golden Keys Care Agency Limited,07/06/2022,12071730,798,Private Contractors,Other Agencies
Southend-on-Sea Borough Council,http://www.opendatacommunities.org/id/unitary-authority/southend,ED Adults & Communities,Adult Social Care,1105,Golden Keys Care Agency Limited,07/06/2022,12071730,"1,168.50",Private Contractors,Other Agencies
Southend-on-Sea Borough Council,http://www.opendatacommunities.org/id/unitary-authority/southend,ED Adults & Communities,Adult Social Care,1105,Golden Keys Care Agency Limited,07/06/2022,12071730,"1,054.50",Private Contractors,Other Agencies
Southend-on-Sea Borough Council,http://www.opendatacommunities.org/id/unitary-authority/southend,ED Adults & Communities,Adult Social Care,1105,Golden Keys Care Agency Limited,07/06/2022,12071730,"1,862.00",Private Contractors,Other Agencies
Southend-on-Sea Borough Council,http://www.opendatacommunities.org/id/unitary-authority/southend,ED Adults & Communities,Adult Social Care,1205,Golden Keys Care Agency Limited,07/06/2022,12071730,665,Private Contractors,Other Agencies
Southend-on-Sea Borough Council,http://www.opendatacommunities.org/id/unitary-authority/southend,ED Adults & Communities,Adult Social Care,1105,Golden Keys Care Agency Limited,07/06/2022,12071730,"2,128.00",Private Contractors,Other Agencies
Southend-on-Sea Borough Council,http://www.opendatacommunities.org/id/unitary-authority/southend,ED Adults & Communities,Adult Social Care,1105,Golden Keys Care Agency Limited,07/06/2022,12071730,665,Private Contractors,Other Agencies
Southend-on-Sea Borough Council,http://www.opendatacommunities.org/id/unitary-authority/southend,ED Adults & Communities,Adult Social Care,1105,Golden Keys Care Agency Limited,07/06/2022,12071730,"2,926.00",Private Contractors,Other Agencies
Southend-on-Sea Borough Council,http://www.opendatacommunities.org/id/unitary-authority/southend,ED Adults & Communities,Adult Social Care,1105,Golden Keys Care Agency Limited,07/06/2022,12071730,"2,128.00",Private Contractors,Other Agencies
Southend-on-Sea Borough Council,http://www.opendatacommunities.org/id/unitary-authority/southend,ED Adults & Communities,Adult Social Care,1105,Golden Keys Care Agency Limited,07/06/2022,12071730,"1,064.00",Private Contractors,Other Agencies
Southend-on-Sea Borough Council,http://www.opendatacommunities.org/id/unitary-authority/southend,ED Children & Public Health,Children And Education Services,3308,Great Future Support Ltd,07/06/2022,12071730,"2,680.00",Accomodation Payment,Services
Southend-on-Sea Borough Council,http://www.opendatacommunities.org/id/unitary-authority/southend,ED Children & Public Health,Children And Education Services,3290,Griha Care And Support Limited,07/06/2022,12071730,"5,614.00",Accomodation Payment,Services
Southend-on-Sea Borough Council,http://www.opendatacommunities.org/id/unitary-authority/southend,ED Children & Public Health,Children And Education Services,3307,Griha Care And Support Limited,07/06/2022,12071730,"4,410.00",Accomodation Payment,Services
Southend-on-Sea Borough Council,http://www.opendatacommunities.org/id/unitary-authority/southend,ED Adults & Communities,Adult Social Care,1105,Hales Group Ltd,07/06/2022,12071730,558.92,Private Contractors,Other Agencies
Southend-on-Sea Borough Council,http://www.opendatacommunities.org/id/unitary-authority/southend,ED Adults & Communities,Adult Social Care,1146,Harwood House Day Centre,07/06/2022,12071730,"1,048.80",Private Contractors,Other Agencies
Southend-on-Sea Borough Council,http://www.opendatacommunities.org/id/unitary-authority/southend,ED Growth & Housing,Housing Services,9007,Kiwi Community Events C I C,07/06/2022,12071730,"17,827.65",Main Contractor,Main Contractor
Southend-on-Sea Borough Council,http://www.opendatacommunities.org/id/unitary-authority/southend,ED Children & Public Health,Children And Education Services,3290,Leighview House Ltd,07/06/2022,12071730,"6,916.00",Accomodation Payment,Services
Southend-on-Sea Borough Council,http://www.opendatacommunities.org/id/unitary-authority/southend,ED Children & Public Health,Children And Education Services,3290,Leighview House Ltd,07/06/2022,12071730,550,Accomodation Payment,Services
Southend-on-Sea Borough Council,http://www.opendatacommunities.org/id/unitary-authority/southend,ED Children & Public Health,Children And Education Services,3307,Leighview House Ltd,07/06/2022,12071730,"2,635.00",Accomodation Payment,Services
Southend-on-Sea Borough Council,http://www.opendatacommunities.org/id/unitary-authority/southend,ED Children & Public Health,Children And Education Services,3308,Leighview House Ltd,07/06/2022,12071730,550,Accomodation Payment,Services
Southend-on-Sea Borough Council,http://www.opendatacommunities.org/id/unitary-authority/southend,ED Children & Public Health,Children And Education Services,3290,Leighview House Ltd T/A Leighview House Romford Ltd,07/06/2022,12071730,"1,700.00",Accomodation Payment,Services
Southend-on-Sea Borough Council,http://www.opendatacommunities.org/id/unitary-authority/southend,ED Children & Public Health,Children And Education Services,3307,Leighview House Ltd T/A Leighview House Romford Ltd,07/06/2022,12071730,"1,995.00",Accomodation Payment,Services
Southend-on-Sea Borough Council,http://www.opendatacommunities.org/id/unitary-authority/southend,ED Adults & Communities,Adult Social Care,1209,Nottingham Rehab Ltd,07/06/2022,12071730,"1,460.30",Tools And Equipment Purchase,Equipment Furniture And Materials
Southend-on-Sea Borough Council,http://www.opendatacommunities.org/id/unitary-authority/southend,ED Adults & Communities,Adult Social Care,1209,Nottingham Rehab Ltd,07/06/2022,12071730,941,Tools And Equipment Purchase,Equipment Furniture And Materials
Southend-on-Sea Borough Council,http://www.opendatacommunities.org/id/unitary-authority/southend,ED Children & Public Health,Children And Education Services,3385,Queensway House,07/06/2022,12071730,"2,020.71",Conveyance of Clients,Contract Hire And Operating Leases
Southend-on-Sea Borough Council,http://www.opendatacommunities.org/id/unitary-authority/southend,ED Children & Public Health,Children And Education Services,3590,Quickline Recruitment Limited,07/06/2022,12071730,"1,905.15",Agency Staff,Direct Employee Expenses
Southend-on-Sea Borough Council,http://www.opendatacommunities.org/id/unitary-authority/southend,ED Children & Public Health,Children And Education Services,3590,Quickline Recruitment Limited,07/06/2022,12071730,"1,780.23",Agency Staff,Direct Employee Expenses
Southend-on-Sea Borough Council,http://www.opendatacommunities.org/id/unitary-authority/southend,ED Children & Public Health,Children And Education Services,3265,REDACTED PERSONAL DATA,07/06/2022,12071730,"1,187.75",Foster Carer Allowance,Other Agencies
Southend-on-Sea Borough Council,http://www.opendatacommunities.org/id/unitary-authority/southend,ED Children & Public Health,Children And Education Services,3265,REDACTED PERSONAL DATA,07/06/2022,12071730,840.63,Foster Carer Fee Paid,Other Agencies
Southend-on-Sea Borough Council,http://www.opendatacommunities.org/id/unitary-authority/southend,ED Children & Public Health,Children And Education Services,3265,REDACTED PERSONAL DATA,07/06/2022,12071730,"1,002.97",Foster Carer Allowance,Other Agencies
Southend-on-Sea Borough Council,http://www.opendatacommunities.org/id/unitary-authority/southend,ED Children & Public Health,Children And Education Services,3265,REDACTED PERSONAL DATA,07/06/2022,12071730,558.21,Foster Carer Specialist,Other Agencies
Southend-on-Sea Borough Council,http://www.opendatacommunities.org/id/unitary-authority/southend,ED Children & Public Health,Children And Education Services,3265,REDACTED PERSONAL DATA,07/06/2022,12071730,558.21,Foster Carer Specialist,Other Agencies
Southend-on-Sea Borough Council,http://www.opendatacommunities.org/id/unitary-authority/southend,ED Children & Public Health,Children And Education Services,3265,REDACTED PERSONAL DATA,07/06/2022,12071730,"5,019.54",Foster Carer Allowance,Other Agencies
Southend-on-Sea Borough Council,http://www.opendatacommunities.org/id/unitary-authority/southend,ED Children & Public Health,Children And Education Services,3265,REDACTED PERSONAL DATA,07/06/2022,12071730,558.21,Foster Carer Specialist,Other Agencies
Southend-on-Sea Borough Council,http://www.opendatacommunities.org/id/unitary-authority/southend,ED Children & Public Health,Children And Education Services,3265,REDACTED PERSONAL DATA,07/06/2022,12071730,558.21,Foster Carer Specialist,Other Agencies
Southend-on-Sea Borough Council,http://www.opendatacommunities.org/id/unitary-authority/southend,ED Children & Public Health,Children And Education Services,3265,REDACTED PERSONAL DATA,07/06/2022,12071730,574.69,Foster Carer Allowance,Other Agencies
Southend-on-Sea Borough Council,http://www.opendatacommunities.org/id/unitary-authority/southend,ED Children & Public Health,Children And Education Services,3265,REDACTED PERSONAL DATA,07/06/2022,12071730,835.52,Foster Carer Allowance,Other Agencies
Southend-on-Sea Borough Council,http://www.opendatacommunities.org/id/unitary-authority/southend,ED Children & Public Health,Children And Education Services,3265,REDACTED PERSONAL DATA,07/06/2022,12071730,657.81,Foster Carer Allowance,Other Agencies
Southend-on-Sea Borough Council,http://www.opendatacommunities.org/id/unitary-authority/southend,ED Neighbourhoods & Environment,Environmental And Regulatory Services,7035,REDACTED PERSONAL DATA,07/06/2022,12071730,562.5,Professional Fees,Services
Southend-on-Sea Borough Council,http://www.opendatacommunities.org/id/unitary-authority/southend,ED Children & Public Health,Children And Education Services,3265,REDACTED PERSONAL DATA,07/06/2022,12071730,616.25,Foster Carer Allowance,Other Agencies
Southend-on-Sea Borough Council,http://www.opendatacommunities.org/id/unitary-authority/southend,ED Children & Public Health,Children And Education Services,3265,REDACTED PERSONAL DATA,07/06/2022,12071730,558.21,Foster Carer Specialist,Other Agencies
Southend-on-Sea Borough Council,http://www.opendatacommunities.org/id/unitary-authority/southend,ED Children & Public Health,Children And Education Services,3265,REDACTED PERSONAL DATA,07/06/2022,12071730,558.21,Foster Carer Specialist,Other Agencies
Southend-on-Sea Borough Council,http://www.opendatacommunities.org/id/unitary-authority/southend,ED Children & Public Health,Children And Education Services,3265,REDACTED PERSONAL DATA,07/06/2022,12071730,500.96,Foster Carer Allowance,Other Agencies
Southend-on-Sea Borough Council,http://www.opendatacommunities.org/id/unitary-authority/southend,ED Children & Public Health,Children And Education Services,3265,REDACTED PERSONAL DATA,07/06/2022,12071730,951.47,Foster Carer Allowance,Other Agencies
Southend-on-Sea Borough Council,http://www.opendatacommunities.org/id/unitary-authority/southend,ED Children & Public Health,Children And Education Services,3455,REDACTED PERSONAL DATA,07/06/2022,12071730,514.28,Guardianship Orders,Other Agencies
Southend-on-Sea Borough Council,http://www.opendatacommunities.org/id/unitary-authority/southend,ED Children & Public Health,Children And Education Services,3265,REDACTED PERSONAL DATA,07/06/2022,12071730,876.78,Foster Carer Allowance,Other Agencies
Southend-on-Sea Borough Council,http://www.opendatacommunities.org/id/unitary-authority/southend,ED Children & Public Health,Children And Education Services,3265,REDACTED PERSONAL DATA,07/06/2022,12071730,719.27,Foster Carer Allowance,Other Agencies
Southend-on-Sea Borough Council,http://www.opendatacommunities.org/id/unitary-authority/southend,ED Children & Public Health,Children And Education Services,3265,REDACTED PERSONAL DATA,07/06/2022,12071730,558.21,Foster Carer Specialist,Other Agencies
Southend-on-Sea Borough Council,http://www.opendatacommunities.org/id/unitary-authority/southend,ED Children & Public Health,Children And Education Services,3265,REDACTED PERSONAL DATA,07/06/2022,12071730,558.21,Foster Carer Specialist,Other Agencies
Southend-on-Sea Borough Council,http://www.opendatacommunities.org/id/unitary-authority/southend,ED Children & Public Health,Children And Education Services,3265,REDACTED PERSONAL DATA,07/06/2022,12071730,620.39,Foster Carer Allowance,Other Agencies
Southend-on-Sea Borough Council,http://www.opendatacommunities.org/id/unitary-authority/southend,ED Children & Public Health,Children And Education Services,3265,REDACTED PERSONAL DATA,07/06/2022,12071730,719.27,Foster Carer Allowance,Other Agencies
Southend-on-Sea Borough Council,http://www.opendatacommunities.org/id/unitary-authority/southend,ED Growth & Housing,Housing Services,6130,Rentguarantor Ltd,07/06/2022,12071730,807.5,Loans,Services
Southend-on-Sea Borough Council,http://www.opendatacommunities.org/id/unitary-authority/southend,ED Children & Public Health,Children And Education Services,3290,Safe Haven Services Ltd,07/06/2022,12071730,"3,715.00",Accomodation Payment,Services
Southend-on-Sea Borough Council,http://www.opendatacommunities.org/id/unitary-authority/southend,ED Children & Public Health,Children And Education Services,3307,Safe Haven Services Ltd,07/06/2022,12071730,"2,080.00",Accomodation Payment,Services
Southend-on-Sea Borough Council,http://www.opendatacommunities.org/id/unitary-authority/southend,ED Children & Public Health,Children And Education Services,3308,Safe Haven Services Ltd,07/06/2022,12071730,941.54,Accomodation Payment,Services
Southend-on-Sea Borough Council,http://www.opendatacommunities.org/id/unitary-authority/southend,ED Adults & Communities,Adult Social Care,1105,Seven Day Care (Essex) Ltd T/A Surecare Southend,07/06/2022,12071730,"10,776.78",Private Contractors,Other Agencies
Southend-on-Sea Borough Council,http://www.opendatacommunities.org/id/unitary-authority/southend,ED Adults & Communities,Adult Social Care,1085,South Essex Property Services,07/06/2022,12071730,"14,285.00",Repairs And Maintenance Contracts,"Repairs, alterations and maintenance of buildings"
Southend-on-Sea Borough Council,http://www.opendatacommunities.org/id/unitary-authority/southend,ED Adults & Communities,Adult Social Care,1231,Southend Central Hotel Ltd,07/06/2022,12071730,"1,599.90",Social Care Services,Services
Southend-on-Sea Borough Council,http://www.opendatacommunities.org/id/unitary-authority/southend,ED Finance & Resources,Central Services,2114,Southend-On-Sea Citizens Advice Bureau,07/06/2022,12071730,"95,000.00",Grants,Grants And Subscriptions
Southend-on-Sea Borough Council,http://www.opendatacommunities.org/id/unitary-authority/southend,ED Adults & Communities,Adult Social Care,1105,Spdns Nurse Care Cic.,07/06/2022,12071730,"10,346.98",Private Contractors,Other Agencies
Southend-on-Sea Borough Council,http://www.opendatacommunities.org/id/unitary-authority/southend,ED Adults & Communities,Adult Social Care,1108,Spdns Nurse Care Cic.,07/06/2022,12071730,589.02,Private Contractors,Other Agencies
Southend-on-Sea Borough Council,http://www.opendatacommunities.org/id/unitary-authority/southend,ED Adults & Communities,Adult Social Care,1205,Spdns Nurse Care Cic.,07/06/2022,12071730,"1,176.16",Private Contractors,Other Agencies
Southend-on-Sea Borough Council,http://www.opendatacommunities.org/id/unitary-authority/southend,ED Adults & Communities,Adult Social Care,1643,Spdns Nurse Care Cic.,07/06/2022,12071730,669.77,Private Contractors,Other Agencies
Southend-on-Sea Borough Council,http://www.opendatacommunities.org/id/unitary-authority/southend,ED Children & Public Health,Children And Education Services,3250,The Loddon Foundation Ltd,07/06/2022,12071730,"21,734.01",Private Contractors,Other Agencies
Southend-on-Sea Borough Council,http://www.opendatacommunities.org/id/unitary-authority/southend,ED Children & Public Health,Children And Education Services,3092,The National Teaching Advisory Service,07/06/2022,12071730,"1,560.00",Private Contractors,Other Agencies
Southend-on-Sea Borough Council,http://www.opendatacommunities.org/id/unitary-authority/southend,ED Children & Public Health,Children And Education Services,3092,The National Teaching Advisory Service,07/06/2022,12071730,"1,312.50",Services On Behalf Of Pupils,Services
Southend-on-Sea Borough Council,http://www.opendatacommunities.org/id/unitary-authority/southend,ED Children & Public Health,Children And Education Services,3092,The National Teaching Advisory Service,07/06/2022,12071730,"2,213.70",Services On Behalf Of Pupils,Services
Southend-on-Sea Borough Council,http://www.opendatacommunities.org/id/unitary-authority/southend,ED Children & Public Health,Children And Education Services,3070,The National Teaching Advisory Service,07/06/2022,12071730,"1,170.00",Direct Payments,Housing Benefits
Southend-on-Sea Borough Council,http://www.opendatacommunities.org/id/unitary-authority/southend,ED Children & Public Health,Children And Education Services,3070,The National Teaching Advisory Service,07/06/2022,12071730,975,Private Contractors,Other Agencies
Southend-on-Sea Borough Council,http://www.opendatacommunities.org/id/unitary-authority/southend,ED Children & Public Health,Children And Education Services,3092,The National Teaching Advisory Service,07/06/2022,12071730,"1,950.00",Services On Behalf Of Pupils,Services
Southend-on-Sea Borough Council,http://www.opendatacommunities.org/id/unitary-authority/southend,ED Children & Public Health,Children And Education Services,3092,The National Teaching Advisory Service,07/06/2022,12071730,"1,560.00",Services On Behalf Of Pupils,Services
Southend-on-Sea Borough Council,http://www.opendatacommunities.org/id/unitary-authority/southend,ED Children & Public Health,Children And Education Services,3092,The National Teaching Advisory Service,07/06/2022,12071730,"1,950.00",Private Contractors,Other Agencies
Southend-on-Sea Borough Council,http://www.opendatacommunities.org/id/unitary-authority/southend,ED Children & Public Health,Children And Education Services,3092,The National Teaching Advisory Service,07/06/2022,12071730,"1,170.00",Private Contractors,Other Agencies
Southend-on-Sea Borough Council,http://www.opendatacommunities.org/id/unitary-authority/southend,ED Neighbourhoods & Environment,Highways And Transport Services,5075,Tmp (Uk) Ltd T/A Tmp Worldwide,07/06/2022,12071730,883.36,Non Staff Advertising,Services
Southend-on-Sea Borough Council,http://www.opendatacommunities.org/id/unitary-authority/southend,ED Neighbourhoods & Environment,Highways And Transport Services,5075,Tmp (Uk) Ltd T/A Tmp Worldwide,07/06/2022,12071730,883.36,Non Staff Advertising,Services
Southend-on-Sea Borough Council,http://www.opendatacommunities.org/id/unitary-authority/southend,ED Neighbourhoods & Environment,Highways And Transport Services,5075,Tmp (Uk) Ltd T/A Tmp Worldwide,07/06/2022,12071730,"1,042.16",Non Staff Advertising,Services
Southend-on-Sea Borough Council,http://www.opendatacommunities.org/id/unitary-authority/southend,ED Neighbourhoods & Environment,Highways And Transport Services,5075,Tmp (Uk) Ltd T/A Tmp Worldwide,07/06/2022,12071730,883.36,Non Staff Advertising,Services
Southend-on-Sea Borough Council,http://www.opendatacommunities.org/id/unitary-authority/southend,ED Neighbourhoods & Environment,Highways And Transport Services,5075,Tmp (Uk) Ltd T/A Tmp Worldwide,07/06/2022,12071730,803.98,Non Staff Advertising,Services
Southend-on-Sea Borough Council,http://www.opendatacommunities.org/id/unitary-authority/southend,ED Neighbourhoods & Environment,Highways And Transport Services,5075,Tmp (Uk) Ltd T/A Tmp Worldwide,07/06/2022,12071730,803.98,Non Staff Advertising,Services
Southend-on-Sea Borough Council,http://www.opendatacommunities.org/id/unitary-authority/southend,ED Neighbourhoods & Environment,Highways And Transport Services,5075,Tmp (Uk) Ltd T/A Tmp Worldwide,07/06/2022,12071730,803.98,Non Staff Advertising,Services
Southend-on-Sea Borough Council,http://www.opendatacommunities.org/id/unitary-authority/southend,ED Neighbourhoods & Environment,Highways And Transport Services,5075,Tmp (Uk) Ltd T/A Tmp Worldwide,07/06/2022,12071730,"2,312.52",Non Staff Advertising,Services
Southend-on-Sea Borough Council,http://www.opendatacommunities.org/id/unitary-authority/southend,ED Neighbourhoods & Environment,Highways And Transport Services,5075,Tmp (Uk) Ltd T/A Tmp Worldwide,07/06/2022,12071730,"1,280.36",Non Staff Advertising,Services
Southend-on-Sea Borough Council,http://www.opendatacommunities.org/id/unitary-authority/southend,ED Neighbourhoods & Environment,Highways And Transport Services,5075,Tmp (Uk) Ltd T/A Tmp Worldwide,07/06/2022,12071730,883.36,Non Staff Advertising,Services
Southend-on-Sea Borough Council,http://www.opendatacommunities.org/id/unitary-authority/southend,ED Neighbourhoods & Environment,Highways And Transport Services,5075,Tmp (Uk) Ltd T/A Tmp Worldwide,07/06/2022,12071730,883.36,Non Staff Advertising,Services
Southend-on-Sea Borough Council,http://www.opendatacommunities.org/id/unitary-authority/southend,ED Neighbourhoods & Environment,Highways And Transport Services,5075,Tmp (Uk) Ltd T/A Tmp Worldwide,07/06/2022,12071730,"1,042.16",Non Staff Advertising,Services
Southend-on-Sea Borough Council,http://www.opendatacommunities.org/id/unitary-authority/southend,ED Neighbourhoods & Environment,Highways And Transport Services,5075,Tmp (Uk) Ltd T/A Tmp Worldwide,07/06/2022,12071730,962.76,Non Staff Advertising,Services
Southend-on-Sea Borough Council,http://www.opendatacommunities.org/id/unitary-authority/southend,ED Neighbourhoods & Environment,Highways And Transport Services,5075,Tmp (Uk) Ltd T/A Tmp Worldwide,07/06/2022,12071730,883.36,Non Staff Advertising,Services
Southend-on-Sea Borough Council,http://www.opendatacommunities.org/id/unitary-authority/southend,ED Neighbourhoods & Environment,Cultural And Related Services,4200,Tree Fella Limited,07/06/2022,12071730,"6,105.19",Private Contractors,Other Agencies
Southend-on-Sea Borough Council,http://www.opendatacommunities.org/id/unitary-authority/southend,ED Neighbourhoods & Environment,Highways And Transport Services,5111,Tree Fella Limited,07/06/2022,12071730,"54,946.67",Private Contractors,Other Agencies
Southend-on-Sea Borough Council,http://www.opendatacommunities.org/id/unitary-authority/southend,ED Children & Public Health,Children And Education Services,3265,Una Macnamara,07/06/2022,12071730,601.79,Foster Carer Allowance,Other Agencies
Southend-on-Sea Borough Council,http://www.opendatacommunities.org/id/unitary-authority/southend,"ED Strategy, Change & Governance",Central Services,8602,Vodafone Corporate Ltd,07/06/2022,12071730,"42,875.86",Telephone - Mobile,Communications And Computing
Southend-on-Sea Borough Council,http://www.opendatacommunities.org/id/unitary-authority/southend,ED Adults & Communities,Cultural And Related Services,4120,(G) Generator Installations (Uk) Ltd,08/06/2022,12071732,"2,180.00",Repairs And Maintenance Contracts,"Repairs, alterations and maintenance of buildings"
Southend-on-Sea Borough Council,http://www.opendatacommunities.org/id/unitary-authority/southend,ED Finance & Resources,Central Services,7120,(G) Generator Installations (Uk) Ltd,08/06/2022,12071732,"1,990.00",Repairs And Maintenance Contracts,"Repairs, alterations and maintenance of buildings"
Southend-on-Sea Borough Council,http://www.opendatacommunities.org/id/unitary-authority/southend,ED Finance & Resources,Central Services,7140,(G) Generator Installations (Uk) Ltd,08/06/2022,12071732,"1,780.00",Repairs And Maintenance Contracts,"Repairs, alterations and maintenance of buildings"
Southend-on-Sea Borough Council,http://www.opendatacommunities.org/id/unitary-authority/southend,ED Neighbourhoods & Environment,Environmental And Regulatory Services,4505,(G) Generator Installations (Uk) Ltd,08/06/2022,12071732,"1,980.00",Repairs And Maintenance Contracts,"Repairs, alterations and maintenance of buildings"
Southend-on-Sea Borough Council,http://www.opendatacommunities.org/id/unitary-authority/southend,ED Adults & Communities,Adult Social Care,9010,(G) Kieran Lucas Contractors Ltd,08/06/2022,12071732,"9,272.35",Main Contractor,Main Contractor
Southend-on-Sea Borough Council,http://www.opendatacommunities.org/id/unitary-authority/southend,ED Neighbourhoods & Environment,Environmental And Regulatory Services,4506,(G) Kieran Lucas Contractors Ltd,08/06/2022,12071732,"2,176.08",Repairs And Maintenance Contracts,"Repairs, alterations and maintenance of buildings"
Southend-on-Sea Borough Council,http://www.opendatacommunities.org/id/unitary-authority/southend,"ED Strategy, Change & Governance",Central Services,2205,(G) Mde Power Ltd,08/06/2022,12071732,"2,311.88",Cleaning Materials,Equipment Furniture And Materials
Southend-on-Sea Borough Council,http://www.opendatacommunities.org/id/unitary-authority/southend,ED Growth & Housing,Housing Services,9007,(G) Morgan Sindall Construction & Infrastructure Ltd,08/06/2022,12071732,"658,522.49",Main Contractor,Main Contractor
Southend-on-Sea Borough Council,http://www.opendatacommunities.org/id/unitary-authority/southend,ED Adults & Communities,Adult Social Care,9010,(G) R & A Mechanical Services Ltd,08/06/2022,12071732,"17,780.00",Main Contractor,Main Contractor
Southend-on-Sea Borough Council,http://www.opendatacommunities.org/id/unitary-authority/southend,ED Adults & Communities,Adult Social Care,9010,(G) Uk Industrial Services Ltd,08/06/2022,12071732,"51,605.80",Main Contractor,Main Contractor
Southend-on-Sea Borough Council,http://www.opendatacommunities.org/id/unitary-authority/southend,ED Growth & Housing,Adult Social Care,2041,105 Hamlet Mul Ltd,08/06/2022,12071732,"3,600.00",Accomodation Payment,Services
Southend-on-Sea Borough Council,http://www.opendatacommunities.org/id/unitary-authority/southend,ED Children & Public Health,Children And Education Services,3091,1St Staff Ltd,08/06/2022,12071732,550,Private Contractors,Other Agencies
Southend-on-Sea Borough Council,http://www.opendatacommunities.org/id/unitary-authority/southend,ED Children & Public Health,Children And Education Services,3250,A Wilderness Way Ltd,08/06/2022,12071732,"14,265.12",Private Contractors,Other Agencies
Southend-on-Sea Borough Council,http://www.opendatacommunities.org/id/unitary-authority/southend,ED Children & Public Health,Children And Education Services,3250,A Wilderness Way Ltd,08/06/2022,12071732,"53,494.20",Private Contractors,Other Agencies
Southend-on-Sea Borough Council,http://www.opendatacommunities.org/id/unitary-authority/southend,ED Children & Public Health,Children And Education Services,3250,A Wilderness Way Ltd,08/06/2022,12071732,"53,494.20",Private Contractors,Other Agencies
Southend-on-Sea Borough Council,http://www.opendatacommunities.org/id/unitary-authority/southend,ED Neighbourhoods & Environment,Cultural And Related Services,4200,Agrovista Uk Ltd,08/06/2022,12071732,"3,250.00",Materials,Equipment Furniture And Materials
Southend-on-Sea Borough Council,http://www.opendatacommunities.org/id/unitary-authority/southend,ED Neighbourhoods & Environment,Cultural And Related Services,4200,Agrovista Uk Ltd,08/06/2022,12071732,"2,887.36",Materials,Equipment Furniture And Materials
Southend-on-Sea Borough Council,http://www.opendatacommunities.org/id/unitary-authority/southend,ED Neighbourhoods & Environment,Cultural and Related Services,7540,Agrovista Uk Ltd,08/06/2022,12071732,"1,179.60",Materials,Equipment Furniture And Materials
Southend-on-Sea Borough Council,http://www.opendatacommunities.org/id/unitary-authority/southend,ED Adults & Communities,Adult Social Care,1105,Alpha Health And Care Services Ltd,08/06/2022,12071732,529.56,Private Contractors,Other Agencies
Southend-on-Sea Borough Council,http://www.opendatacommunities.org/id/unitary-authority/southend,ED Adults & Communities,Adult Social Care,1165,Alpha Health And Care Services Ltd,08/06/2022,12071732,571.32,COVID-19 Response,Other Agencies
Southend-on-Sea Borough Council,http://www.opendatacommunities.org/id/unitary-authority/southend,ED Adults & Communities,Cultural And Related Services,4122,Angel Human Resources Ltd T/A Angel Recruitment Group,08/06/2022,12071732,599.6,Agency Staff,Direct Employee Expenses
Southend-on-Sea Borough Council,http://www.opendatacommunities.org/id/unitary-authority/southend,ED Adults & Communities,Cultural And Related Services,4122,Angel Human Resources Ltd T/A Angel Recruitment Group,08/06/2022,12071732,614.59,Agency Staff,Direct Employee Expenses
Southend-on-Sea Borough Council,http://www.opendatacommunities.org/id/unitary-authority/southend,ED Adults & Communities,Cultural And Related Services,4122,Angel Human Resources Ltd T/A Angel Recruitment Group,08/06/2022,12071732,622.09,Agency Staff,Direct Employee Expenses
Southend-on-Sea Borough Council,http://www.opendatacommunities.org/id/unitary-authority/southend,ED Adults & Communities,Cultural And Related Services,4261,Askews And Holts Library Services Ltd,08/06/2022,12071732,"1,127.49",Books & education equipment,Printing Stationery And General Office Expenses
Southend-on-Sea Borough Council,http://www.opendatacommunities.org/id/unitary-authority/southend,ED Children & Public Health,Children And Education Services,3481,Badgers Den (Care) Limited T/A Badgers Den Day Opportunities,08/06/2022,12071732,612,Childrens outings,Services
Southend-on-Sea Borough Council,http://www.opendatacommunities.org/id/unitary-authority/southend,ED Adults & Communities,Cultural And Related Services,4262,Bolinda Uk Ltd,08/06/2022,12071732,514.02,Books & education equipment,Printing Stationery And General Office Expenses
Southend-on-Sea Borough Council,http://www.opendatacommunities.org/id/unitary-authority/southend,ED Adults & Communities,Cultural And Related Services,4122,Brake Bros Foodservice Ltd,08/06/2022,12071732,542.5,Catering Food And Beverages,Catering
Southend-on-Sea Borough Council,http://www.opendatacommunities.org/id/unitary-authority/southend,ED Adults & Communities,Cultural And Related Services,4122,Brake Bros Foodservice Ltd,08/06/2022,12071732,"1,141.42",Catering Food And Beverages,Catering
Southend-on-Sea Borough Council,http://www.opendatacommunities.org/id/unitary-authority/southend,ED Adults & Communities,Cultural And Related Services,4225,British Destinations Ltd,08/06/2022,12071732,"2,750.00",Materials,Equipment Furniture And Materials
Southend-on-Sea Borough Council,http://www.opendatacommunities.org/id/unitary-authority/southend,ED Adults & Communities,Adult Social Care,1105,Brooks Care & Nursing Services Ltd,08/06/2022,12071732,"3,469.15",Private Contractors,Other Agencies
Southend-on-Sea Borough Council,http://www.opendatacommunities.org/id/unitary-authority/southend,ED Adults & Communities,Adult Social Care,1209,Caretech Uk Ltd,08/06/2022,12071732,"1,128.00",Tools And Equipment Purchase,Equipment Furniture And Materials
Southend-on-Sea Borough Council,http://www.opendatacommunities.org/id/unitary-authority/southend,ED Adults & Communities,Adult Social Care,1209,Drive Devilbiss Healthcare Limited,08/06/2022,12071732,576.6,Tools And Equipment Purchase,Equipment Furniture And Materials
Southend-on-Sea Borough Council,http://www.opendatacommunities.org/id/unitary-authority/southend,"ED Strategy, Change & Governance",Central Services,7105,East Anglian Chambers T/A Miss Claire Thorne,08/06/2022,12071732,700,Barristers fees,Services
Southend-on-Sea Borough Council,http://www.opendatacommunities.org/id/unitary-authority/southend,"ED Strategy, Change & Governance",Central Services,7105,East Anglian Chambers T/A Mr Jonathan Hasson,08/06/2022,12071732,650,Barristers fees,Services
Southend-on-Sea Borough Council,http://www.opendatacommunities.org/id/unitary-authority/southend,ED Growth & Housing,Housing Services,9005,Essex Legal Services Ltd,08/06/2022,12071732,"1,683.61",Legal Fees,Legal Fees
Southend-on-Sea Borough Council,http://www.opendatacommunities.org/id/unitary-authority/southend,ED Adults & Communities,Cultural And Related Services,4245,Farrah'S Of Harrogate Limited,08/06/2022,12071732,730.24,Catering Food And Beverages,Catering
Southend-on-Sea Borough Council,http://www.opendatacommunities.org/id/unitary-authority/southend,ED Growth & Housing,Planning Services,5637,Flying Movies Limited,08/06/2022,12071732,"1,306.44",Grants,Grants And Subscriptions
Southend-on-Sea Borough Council,http://www.opendatacommunities.org/id/unitary-authority/southend,ED Finance & Resources,Central Services,2156,Formara Limited T/A Formara Print,08/06/2022,12071732,566,Printing,Printing Stationery And General Office Expenses
Southend-on-Sea Borough Council,http://www.opendatacommunities.org/id/unitary-authority/southend,ED Growth & Housing,Planning Services,5641,Friends For Lives Cic,08/06/2022,12071732,500,Training Expenses,Indirect Employee Expenses
Southend-on-Sea Borough Council,http://www.opendatacommunities.org/id/unitary-authority/southend,"ED Strategy, Change & Governance",Central Services,8602,Gamma Business Communication Limited,08/06/2022,12071732,715.35,Telephone - Mobile,Communications And Computing
Southend-on-Sea Borough Council,http://www.opendatacommunities.org/id/unitary-authority/southend,ED Children & Public Health,Children And Education Services,3020,Georgie Porgie Ltd T/A Georgie Porgie Nursery,08/06/2022,12071732,"3,414.00",Other Establishments,Other Establishments
Southend-on-Sea Borough Council,http://www.opendatacommunities.org/id/unitary-authority/southend,ED Adults & Communities,Adult Social Care,1105,Golden Keys Care Agency Limited,08/06/2022,12071732,"2,660.00",Private Contractors,Other Agencies
Southend-on-Sea Borough Council,http://www.opendatacommunities.org/id/unitary-authority/southend,ED Adults & Communities,Adult Social Care,1105,Golden Keys Care Agency Limited,08/06/2022,12071732,"1,045.00",Private Contractors,Other Agencies
Southend-on-Sea Borough Council,http://www.opendatacommunities.org/id/unitary-authority/southend,ED Adults & Communities,Adult Social Care,1105,Golden Keys Care Agency Limited,08/06/2022,12071732,665,Private Contractors,Other Agencies
Southend-on-Sea Borough Council,http://www.opendatacommunities.org/id/unitary-authority/southend,ED Adults & Communities,Adult Social Care,1105,Golden Keys Care Agency Limited,08/06/2022,12071732,"1,168.50",Private Contractors,Other Agencies
Southend-on-Sea Borough Council,http://www.opendatacommunities.org/id/unitary-authority/southend,ED Adults & Communities,Adult Social Care,1105,Golden Keys Care Agency Limited,08/06/2022,12071732,"2,128.00",Private Contractors,Other Agencies
Southend-on-Sea Borough Council,http://www.opendatacommunities.org/id/unitary-authority/southend,ED Adults & Communities,Adult Social Care,1310,Golden Keys Care Agency Limited,08/06/2022,12071732,513,Private Contractors,Other Agencies
Southend-on-Sea Borough Council,http://www.opendatacommunities.org/id/unitary-authority/southend,ED Adults & Communities,Adult Social Care,1105,Golden Keys Care Agency Limited,08/06/2022,12071732,655.5,Private Contractors,Other Agencies
Southend-on-Sea Borough Council,http://www.opendatacommunities.org/id/unitary-authority/southend,ED Adults & Communities,Adult Social Care,1105,Golden Keys Care Agency Limited,08/06/2022,12071732,655.5,Private Contractors,Other Agencies
Southend-on-Sea Borough Council,http://www.opendatacommunities.org/id/unitary-authority/southend,ED Adults & Communities,Adult Social Care,1105,Golden Keys Care Agency Limited,08/06/2022,12071732,"2,394.00",Private Contractors,Other Agencies
Southend-on-Sea Borough Council,http://www.opendatacommunities.org/id/unitary-authority/southend,ED Children & Public Health,Children And Education Services,3091,Grove Wood Primary School,08/06/2022,12071732,581.54,Private Contractors,Other Agencies
Southend-on-Sea Borough Council,http://www.opendatacommunities.org/id/unitary-authority/southend,"ED Strategy, Change & Governance",Adult Social Care,3201,Hasca Ltd,08/06/2022,12071732,"14,000.00",Commissioned Training,Services
Southend-on-Sea Borough Council,http://www.opendatacommunities.org/id/unitary-authority/southend,ED Children & Public Health,Children And Education Services,3020,Johnstone Road Pre School,08/06/2022,12071732,"1,600.00",Other Establishments,Other Establishments
Southend-on-Sea Borough Council,http://www.opendatacommunities.org/id/unitary-authority/southend,"ED Strategy, Change & Governance",Central Services,2205,Jongor Ltd,08/06/2022,12071732,"4,247.37",Room Hire,Rents
Southend-on-Sea Borough Council,http://www.opendatacommunities.org/id/unitary-authority/southend,ED Children & Public Health,Children And Education Services,3892,Lorraine Pilime T/A Penina Social Work Services Ltd,08/06/2022,12071732,"3,252.50",Professional Fees,Services
Southend-on-Sea Borough Council,http://www.opendatacommunities.org/id/unitary-authority/southend,ED Neighbourhoods & Environment,Highways And Transport Services,5702,Luther Pendragon Limited,08/06/2022,12071732,"3,333.00",Professional Fees,Services
Southend-on-Sea Borough Council,http://www.opendatacommunities.org/id/unitary-authority/southend,ED Neighbourhoods & Environment,Highways And Transport Services,5350,Luther Pendragon Limited,08/06/2022,12071732,"4,750.00",Professional Fees,Services
Southend-on-Sea Borough Council,http://www.opendatacommunities.org/id/unitary-authority/southend,ED Adults & Communities,Adult Social Care,1231,M Blue Ltd,08/06/2022,12071732,"1,500.00",Social Care Services,Services
Southend-on-Sea Borough Council,http://www.opendatacommunities.org/id/unitary-authority/southend,ED Children & Public Health,Children And Education Services,3481,Magnolia Care Disability Services Ltd,08/06/2022,12071732,"1,620.78",Childrens outings,Services
Southend-on-Sea Borough Council,http://www.opendatacommunities.org/id/unitary-authority/southend,ED Growth & Housing,Housing Services,6011,Malvern Lodge Guest House Ltd,08/06/2022,12071732,"3,410.00",Accommodation Costs,Expenses
Southend-on-Sea Borough Council,http://www.opendatacommunities.org/id/unitary-authority/southend,ED Children & Public Health,Children And Education Services,3250,Mosaic Foster Care Ltd,08/06/2022,12071732,"6,400.00",Private Contractors,Other Agencies
Southend-on-Sea Borough Council,http://www.opendatacommunities.org/id/unitary-authority/southend,ED Children & Public Health,Children And Education Services,3250,Mosaic Foster Care Ltd,08/06/2022,12071732,"6,400.00",Private Contractors,Other Agencies
Southend-on-Sea Borough Council,http://www.opendatacommunities.org/id/unitary-authority/southend,ED Children & Public Health,Children And Education Services,3250,Mosaic Foster Care Ltd,08/06/2022,12071732,"6,400.00",Private Contractors,Other Agencies
Southend-on-Sea Borough Council,http://www.opendatacommunities.org/id/unitary-authority/southend,ED Growth & Housing,Housing Services,6011,Mr & Mrs G Cetnik T/A Pavilion Hotel,08/06/2022,12071732,"4,207.00",Accommodation Costs,Expenses
Southend-on-Sea Borough Council,http://www.opendatacommunities.org/id/unitary-authority/southend,ED Growth & Housing,Housing Services,6011,Mrs D D Grattan T/A Elizabeth Guest House,08/06/2022,12071732,"1,510.00",Accommodation Costs,Expenses
Southend-on-Sea Borough Council,http://www.opendatacommunities.org/id/unitary-authority/southend,ED Children & Public Health,Children And Education Services,3167,National Governors Association,08/06/2022,12071732,"1,372.00",Subscriptions,Grants And Subscriptions
Southend-on-Sea Borough Council,http://www.opendatacommunities.org/id/unitary-authority/southend,ED Children & Public Health,Children And Education Services,3250,Newhaven Care Limited,08/06/2022,12071732,"21,610.20",Private Contractors,Other Agencies
Southend-on-Sea Borough Council,http://www.opendatacommunities.org/id/unitary-authority/southend,ED Children & Public Health,Children And Education Services,3250,Newhaven Care Limited,08/06/2022,12071732,"20,889.86",Private Contractors,Other Agencies
Southend-on-Sea Borough Council,http://www.opendatacommunities.org/id/unitary-authority/southend,ED Children & Public Health,Children And Education Services,3481,Nhs Southend Ccg,08/06/2022,12071732,"28,468.29",Professional Fees,Services
Southend-on-Sea Borough Council,http://www.opendatacommunities.org/id/unitary-authority/southend,ED Adults & Communities,Cultural And Related Services,4045,Nwg Business Limited,08/06/2022,12071732,"2,549.49",Water Services,Water Services
Southend-on-Sea Borough Council,http://www.opendatacommunities.org/id/unitary-authority/southend,ED Children & Public Health,Children And Education Services,3250,Oakhills Care Services Ltd,08/06/2022,12071732,"4,831.60",Private Contractors,Other Agencies
Southend-on-Sea Borough Council,http://www.opendatacommunities.org/id/unitary-authority/southend,ED Finance & Resources,Central Services,7120,On-Av Ltd,08/06/2022,12071732,695,Materials,Equipment Furniture And Materials
Southend-on-Sea Borough Council,http://www.opendatacommunities.org/id/unitary-authority/southend,ED Finance & Resources,Central Services,7120,On-Av Ltd,08/06/2022,12071732,"1,185.00",Materials,Equipment Furniture And Materials
Southend-on-Sea Borough Council,http://www.opendatacommunities.org/id/unitary-authority/southend,ED Adults & Communities,Adult Social Care,1170,South Essex Homes,08/06/2022,12071732,"12,249.60",Social Care Services,Services
Southend-on-Sea Borough Council,http://www.opendatacommunities.org/id/unitary-authority/southend,ED Finance & Resources,Central Services,8606,South Essex Property Services,08/06/2022,12071732,"2,304.81",Catering Refreshments,Catering
Southend-on-Sea Borough Council,http://www.opendatacommunities.org/id/unitary-authority/southend,ED Children & Public Health,Children And Education Services,3011,St Michael And All Angels Pre-School,08/06/2022,12071732,"1,134.00",Child Minding,Services
Southend-on-Sea Borough Council,http://www.opendatacommunities.org/id/unitary-authority/southend,ED Children & Public Health,Children And Education Services,3011,St Michael And All Angels Pre-School,08/06/2022,12071732,840,Child Minding,Services
Southend-on-Sea Borough Council,http://www.opendatacommunities.org/id/unitary-authority/southend,ED Children & Public Health,Children And Education Services,3011,St Michael And All Angels Pre-School,08/06/2022,12071732,552,Child Minding,Services
Southend-on-Sea Borough Council,http://www.opendatacommunities.org/id/unitary-authority/southend,ED Children & Public Health,Children And Education Services,3250,Suffolk County Council,08/06/2022,12071732,"2,084.60",Private Contractors,Other Agencies
Southend-on-Sea Borough Council,http://www.opendatacommunities.org/id/unitary-authority/southend,ED Growth & Housing,Planning Services,5637,The Beach Cafe,08/06/2022,12071732,"1,015.16",Grants,Grants And Subscriptions
Southend-on-Sea Borough Council,http://www.opendatacommunities.org/id/unitary-authority/southend,ED Adults & Communities,Adult Social Care,1510,Welbeck Hotel,08/06/2022,12071732,"1,240.00",Additional Allowances (non employee),Services
Southend-on-Sea Borough Council,http://www.opendatacommunities.org/id/unitary-authority/southend,ED Adults & Communities,Adult Social Care,1510,Welbeck Hotel,08/06/2022,12071732,"1,240.00",Additional Allowances (non employee),Services
Southend-on-Sea Borough Council,http://www.opendatacommunities.org/id/unitary-authority/southend,ED Growth & Housing,Housing Services,6011,Welbeck Hotel,08/06/2022,12071732,"4,045.00",Accommodation Costs,Expenses
Southend-on-Sea Borough Council,http://www.opendatacommunities.org/id/unitary-authority/southend,"ED Strategy, Change & Governance",Central Services,2205,Youngs Flooring,08/06/2022,12071732,"3,146.40",Cleaning Materials,Equipment Furniture And Materials
Southend-on-Sea Borough Council,http://www.opendatacommunities.org/id/unitary-authority/southend,ED Growth & Housing,Planning Services,5637,Your Dream Chef Limited,08/06/2022,12071732,"1,978.80",Grants,Grants And Subscriptions
Southend-on-Sea Borough Council,http://www.opendatacommunities.org/id/unitary-authority/southend,ED Finance & Resources,Central Services,5605,(G) Universal Demolition Ltd,10/06/2022,12071740,"11,250.00",Repairs And Maintenance Non Contract,"Repairs, alterations and maintenance of buildings"
Southend-on-Sea Borough Council,http://www.opendatacommunities.org/id/unitary-authority/southend,ED Growth & Housing,Housing Services,9007,(N) Playfix Limited,10/06/2022,12071740,"2,467.50",Main Contractor,Main Contractor
Southend-on-Sea Borough Council,http://www.opendatacommunities.org/id/unitary-authority/southend,"ED Strategy, Change & Governance",Central Services,7105,42 Bedford Row Chambers No 2 A/C T/A Howard Lederman,10/06/2022,12071740,900,Barristers fees,Services
Southend-on-Sea Borough Council,http://www.opendatacommunities.org/id/unitary-authority/southend,ED Adults & Communities,Adult Social Care,1060,Access Anyone Ltd,10/06/2022,12071740,525,Conveyance of Clients,Contract Hire And Operating Leases
Southend-on-Sea Borough Council,http://www.opendatacommunities.org/id/unitary-authority/southend,ED Adults & Communities,Adult Social Care,1060,Access Anyone Ltd,10/06/2022,12071740,625,Conveyance of Clients,Contract Hire And Operating Leases
Southend-on-Sea Borough Council,http://www.opendatacommunities.org/id/unitary-authority/southend,ED Adults & Communities,Adult Social Care,1076,"Akhtar Latif, Ncs Solution T/A Kimberley Grace Care Home",10/06/2022,12071740,988.2,Private Contractors,Other Agencies
Southend-on-Sea Borough Council,http://www.opendatacommunities.org/id/unitary-authority/southend,ED Finance & Resources,Housing Services,6165,Allpay . Net Limited,10/06/2022,12071740,"17,535.91",Services Fees And Charges,Services
Southend-on-Sea Borough Council,http://www.opendatacommunities.org/id/unitary-authority/southend,ED Growth & Housing,Planning Services,5642,Always Possible Limited,10/06/2022,12071740,"6,916.67",Consultancy Services,Services
Southend-on-Sea Borough Council,http://www.opendatacommunities.org/id/unitary-authority/southend,ED Growth & Housing,Planning Services,5641,Always Possible Limited,10/06/2022,12071740,"2,333.33",Consultancy Services,Services
Southend-on-Sea Borough Council,http://www.opendatacommunities.org/id/unitary-authority/southend,"ED Strategy, Change & Governance",Adult Social Care,3201,Ambulance Service College,10/06/2022,12071740,"1,064.00",Commissioned Training,Services
Southend-on-Sea Borough Council,http://www.opendatacommunities.org/id/unitary-authority/southend,"ED Strategy, Change & Governance",Adult Social Care,3201,Ambulance Service College,10/06/2022,12071740,"1,457.00",Commissioned Training,Services
Southend-on-Sea Borough Council,http://www.opendatacommunities.org/id/unitary-authority/southend,ED Children & Public Health,Children And Education Services,3250,Anchor Foster Care,10/06/2022,12071740,"3,482.92",Private Contractors,Other Agencies
Southend-on-Sea Borough Council,http://www.opendatacommunities.org/id/unitary-authority/southend,ED Adults & Communities,Cultural And Related Services,4122,Angel Human Resources Ltd T/A Angel Recruitment Group,10/06/2022,12071740,734.51,Agency Staff,Direct Employee Expenses
Southend-on-Sea Borough Council,http://www.opendatacommunities.org/id/unitary-authority/southend,ED Adults & Communities,Adult Social Care,1105,Ashley Community Care Services Ltd T/A Ashley Care,10/06/2022,12071740,"14,027.33",Private Contractors,Other Agencies
Southend-on-Sea Borough Council,http://www.opendatacommunities.org/id/unitary-authority/southend,ED Adults & Communities,Adult Social Care,1205,Ashley Community Care Services Ltd T/A Ashley Care,10/06/2022,12071740,"1,181.53",Private Contractors,Other Agencies
Southend-on-Sea Borough Council,http://www.opendatacommunities.org/id/unitary-authority/southend,ED Children & Public Health,Children And Education Services,3250,Aspirations Fostering Limited,10/06/2022,12071740,836.36,Private Contractors,Other Agencies
Southend-on-Sea Borough Council,http://www.opendatacommunities.org/id/unitary-authority/southend,ED Children & Public Health,Children And Education Services,3250,Aspirations Fostering Limited,10/06/2022,12071740,"3,503.64",Private Contractors,Other Agencies
Southend-on-Sea Borough Council,http://www.opendatacommunities.org/id/unitary-authority/southend,ED Children & Public Health,Children And Education Services,3250,Aspirations Fostering Limited,10/06/2022,12071740,"3,243.52",Private Contractors,Other Agencies
Southend-on-Sea Borough Council,http://www.opendatacommunities.org/id/unitary-authority/southend,ED Children & Public Health,Children And Education Services,3250,Aspirations Fostering Limited,10/06/2022,12071740,"3,355.52",Private Contractors,Other Agencies
Southend-on-Sea Borough Council,http://www.opendatacommunities.org/id/unitary-authority/southend,ED Children & Public Health,Children And Education Services,3250,Aspirations Fostering Limited,10/06/2022,12071740,"4,620.00",Private Contractors,Other Agencies
Southend-on-Sea Borough Council,http://www.opendatacommunities.org/id/unitary-authority/southend,ED Children & Public Health,Children And Education Services,3250,Aspirations Fostering Limited,10/06/2022,12071740,"3,503.64",Private Contractors,Other Agencies
Southend-on-Sea Borough Council,http://www.opendatacommunities.org/id/unitary-authority/southend,ED Children & Public Health,Children And Education Services,3250,Aspirations Fostering Limited,10/06/2022,12071740,"3,503.64",Private Contractors,Other Agencies
Southend-on-Sea Borough Council,http://www.opendatacommunities.org/id/unitary-authority/southend,ED Children & Public Health,Children And Education Services,3250,Aspirations Fostering Limited,10/06/2022,12071740,"3,345.44",Private Contractors,Other Agencies
Southend-on-Sea Borough Council,http://www.opendatacommunities.org/id/unitary-authority/southend,ED Children & Public Health,Children And Education Services,3250,Aspirations Fostering Limited,10/06/2022,12071740,"3,979.92",Private Contractors,Other Agencies
Southend-on-Sea Borough Council,http://www.opendatacommunities.org/id/unitary-authority/southend,ED Children & Public Health,Children And Education Services,3250,Aspirations Fostering Limited,10/06/2022,12071740,"3,503.64",Private Contractors,Other Agencies
Southend-on-Sea Borough Council,http://www.opendatacommunities.org/id/unitary-authority/southend,ED Children & Public Health,Children And Education Services,3290,Avance Limited T/A Avance Care Services,10/06/2022,12071740,"22,338.00",Accomodation Payment,Services
Southend-on-Sea Borough Council,http://www.opendatacommunities.org/id/unitary-authority/southend,ED Children & Public Health,Children And Education Services,3290,Avance Limited T/A Avance Care Services,10/06/2022,12071740,984.73,Additional Allowances (non employee),Services
Southend-on-Sea Borough Council,http://www.opendatacommunities.org/id/unitary-authority/southend,ED Children & Public Health,Children And Education Services,3290,Avance Limited T/A Avance Care Services,10/06/2022,12071740,"2,482.00",Accomodation Payment,Services
Southend-on-Sea Borough Council,http://www.opendatacommunities.org/id/unitary-authority/southend,ED Children & Public Health,Children And Education Services,3290,Avance Limited T/A Avance Care Services,10/06/2022,12071740,"2,482.00",Accomodation Payment,Services
Southend-on-Sea Borough Council,http://www.opendatacommunities.org/id/unitary-authority/southend,ED Children & Public Health,Children And Education Services,3290,Avance Limited T/A Avance Care Services,10/06/2022,12071740,"2,482.00",Accomodation Payment,Services
Southend-on-Sea Borough Council,http://www.opendatacommunities.org/id/unitary-authority/southend,ED Adults & Communities,Adult Social Care,1320,Badgers Den (Care) Limited T/A Badgers Den Day Opportunities,10/06/2022,12071740,"1,260.00",Private Contractors,Other Agencies
Southend-on-Sea Borough Council,http://www.opendatacommunities.org/id/unitary-authority/southend,ED Children & Public Health,Children And Education Services,3310,Beauchamps High School,10/06/2022,12071740,500,Private Contractors,Other Agencies
Southend-on-Sea Borough Council,http://www.opendatacommunities.org/id/unitary-authority/southend,ED Children & Public Health,Children And Education Services,3307,By The Bridge Ltd,10/06/2022,12071740,"4,284.00",Private Contractors,Other Agencies
Southend-on-Sea Borough Council,http://www.opendatacommunities.org/id/unitary-authority/southend,ED Children & Public Health,Children And Education Services,3250,By The Bridge Ltd,10/06/2022,12071740,"4,284.00",Private Contractors,Other Agencies
Southend-on-Sea Borough Council,http://www.opendatacommunities.org/id/unitary-authority/southend,ED Children & Public Health,Children And Education Services,3250,By The Bridge Ltd,10/06/2022,12071740,"3,400.04",Private Contractors,Other Agencies
Southend-on-Sea Borough Council,http://www.opendatacommunities.org/id/unitary-authority/southend,ED Children & Public Health,Children And Education Services,3250,By The Bridge Ltd,10/06/2022,12071740,"3,400.04",Private Contractors,Other Agencies
Southend-on-Sea Borough Council,http://www.opendatacommunities.org/id/unitary-authority/southend,ED Adults & Communities,Adult Social Care,1231,C Camden-Smith And Associates Ltd,10/06/2022,12071740,999.5,Social Care Services,Services
Southend-on-Sea Borough Council,http://www.opendatacommunities.org/id/unitary-authority/southend,ED Adults & Communities,Adult Social Care,1105,Caring Carers Ltd,10/06/2022,12071740,"11,623.27",Private Contractors,Other Agencies
Southend-on-Sea Borough Council,http://www.opendatacommunities.org/id/unitary-authority/southend,ED Adults & Communities,Adult Social Care,1205,Caring Carers Ltd,10/06/2022,12071740,"1,667.23",Private Contractors,Other Agencies
Southend-on-Sea Borough Council,http://www.opendatacommunities.org/id/unitary-authority/southend,ED Children & Public Health,Children And Education Services,3250,Carterhatch Homes Limited,10/06/2022,12071740,"34,321.34",Private Contractors,Other Agencies
Southend-on-Sea Borough Council,http://www.opendatacommunities.org/id/unitary-authority/southend,ED Children & Public Health,Children And Education Services,3310,Cedar Hall School,10/06/2022,12071740,500,Private Contractors,Other Agencies
Southend-on-Sea Borough Council,http://www.opendatacommunities.org/id/unitary-authority/southend,ED Children & Public Health,Children And Education Services,3310,Cedar Hall School,10/06/2022,12071740,500,Private Contractors,Other Agencies
Southend-on-Sea Borough Council,http://www.opendatacommunities.org/id/unitary-authority/southend,ED Adults & Communities,Adult Social Care,1105,Choices Healthcare Ltd,10/06/2022,12071740,"17,359.32",Private Contractors,Other Agencies
Southend-on-Sea Borough Council,http://www.opendatacommunities.org/id/unitary-authority/southend,ED Adults & Communities,Adult Social Care,1108,Choices Healthcare Ltd,10/06/2022,12071740,574.75,Private Contractors,Other Agencies
Southend-on-Sea Borough Council,http://www.opendatacommunities.org/id/unitary-authority/southend,ED Adults & Communities,Adult Social Care,1205,Choices Healthcare Ltd,10/06/2022,12071740,"1,446.56",Private Contractors,Other Agencies
Southend-on-Sea Borough Council,http://www.opendatacommunities.org/id/unitary-authority/southend,ED Adults & Communities,Adult Social Care,1165,Choices Healthcare Ltd,10/06/2022,12071740,"1,192.25",COVID-19 Response,Other Agencies
Southend-on-Sea Borough Council,http://www.opendatacommunities.org/id/unitary-authority/southend,ED Adults & Communities,Adult Social Care,1105,Choices Healthcare Ltd,10/06/2022,12071740,606.24,Private Contractors,Other Agencies
Southend-on-Sea Borough Council,http://www.opendatacommunities.org/id/unitary-authority/southend,ED Adults & Communities,Adult Social Care,1105,Choices Healthcare Ltd,10/06/2022,12071740,"17,119.91",Private Contractors,Other Agencies
Southend-on-Sea Borough Council,http://www.opendatacommunities.org/id/unitary-authority/southend,ED Adults & Communities,Adult Social Care,1108,Choices Healthcare Ltd,10/06/2022,12071740,570,Private Contractors,Other Agencies
Southend-on-Sea Borough Council,http://www.opendatacommunities.org/id/unitary-authority/southend,ED Adults & Communities,Adult Social Care,1205,Choices Healthcare Ltd,10/06/2022,12071740,"1,472.52",Private Contractors,Other Agencies
Southend-on-Sea Borough Council,http://www.opendatacommunities.org/id/unitary-authority/southend,ED Adults & Communities,Adult Social Care,1165,Choices Healthcare Ltd,10/06/2022,12071740,"1,187.50",COVID-19 Response,Other Agencies
Southend-on-Sea Borough Council,http://www.opendatacommunities.org/id/unitary-authority/southend,ED Children & Public Health,Children And Education Services,3250,Compass Fostering East Ltd,10/06/2022,12071740,"3,400.04",Private Contractors,Other Agencies
Southend-on-Sea Borough Council,http://www.opendatacommunities.org/id/unitary-authority/southend,ED Children & Public Health,Children And Education Services,3250,Compass Fostering East Ltd,10/06/2022,12071740,"3,319.96",Private Contractors,Other Agencies
Southend-on-Sea Borough Council,http://www.opendatacommunities.org/id/unitary-authority/southend,ED Children & Public Health,Children And Education Services,3250,Compass Fostering East Ltd,10/06/2022,12071740,"3,559.92",Private Contractors,Other Agencies
Southend-on-Sea Borough Council,http://www.opendatacommunities.org/id/unitary-authority/southend,ED Children & Public Health,Children And Education Services,3250,Compass Fostering East Ltd,10/06/2022,12071740,"4,499.88",Private Contractors,Other Agencies
Southend-on-Sea Borough Council,http://www.opendatacommunities.org/id/unitary-authority/southend,"ED Strategy, Change & Governance",Central Services,9012,Daniel Halls T/A Drh365 Solutions,10/06/2022,12071740,"1,053.00",Other Expenses,Other Expenses
Southend-on-Sea Borough Council,http://www.opendatacommunities.org/id/unitary-authority/southend,ED Adults & Communities,Adult Social Care,1200,Dr Bex Harper,10/06/2022,12071740,537.6,Private Contractors,Other Agencies
Southend-on-Sea Borough Council,http://www.opendatacommunities.org/id/unitary-authority/southend,"ED Strategy, Change & Governance",Central Services,7105,East Anglian Chambers T/A Mr Jonathan Hasson,10/06/2022,12071740,"1,100.00",Barristers fees,Services
Southend-on-Sea Borough Council,http://www.opendatacommunities.org/id/unitary-authority/southend,"ED Strategy, Change & Governance",Central Services,7105,East Anglian Chambers T/A Mr Jonathan Hasson,10/06/2022,12071740,550,Barristers fees,Services
Southend-on-Sea Borough Council,http://www.opendatacommunities.org/id/unitary-authority/southend,ED Children & Public Health,Children And Education Services,3250,Eastern Family Services T/A Eastern Fostering Services Ltd,10/06/2022,12071740,"3,399.76",Private Contractors,Other Agencies
Southend-on-Sea Borough Council,http://www.opendatacommunities.org/id/unitary-authority/southend,ED Children & Public Health,Children And Education Services,3250,Eastern Family Services T/A Eastern Fostering Services Ltd,10/06/2022,12071740,"3,399.76",Private Contractors,Other Agencies
Southend-on-Sea Borough Council,http://www.opendatacommunities.org/id/unitary-authority/southend,ED Children & Public Health,Children And Education Services,3250,Eastern Family Services T/A Eastern Fostering Services Ltd,10/06/2022,12071740,"3,416.00",Private Contractors,Other Agencies
Southend-on-Sea Borough Council,http://www.opendatacommunities.org/id/unitary-authority/southend,ED Children & Public Health,Children And Education Services,3250,Eastern Family Services T/A Eastern Fostering Services Ltd,10/06/2022,12071740,"3,500.00",Private Contractors,Other Agencies
Southend-on-Sea Borough Council,http://www.opendatacommunities.org/id/unitary-authority/southend,ED Adults & Communities,Central Services,6169,Edf Energy,10/06/2022,12071740,670.92,Energy Cost Electricity,Energy Costs
Southend-on-Sea Borough Council,http://www.opendatacommunities.org/id/unitary-authority/southend,ED Adults & Communities,Cultural And Related Services,4256,Edf Energy,10/06/2022,12071740,"16,640.89",Energy Cost Electricity,Energy Costs
Southend-on-Sea Borough Council,http://www.opendatacommunities.org/id/unitary-authority/southend,ED Adults & Communities,Cultural And Related Services,4270,Edf Energy,10/06/2022,12071740,540,Energy Cost Electricity,Energy Costs
Southend-on-Sea Borough Council,http://www.opendatacommunities.org/id/unitary-authority/southend,ED Adults & Communities,Cultural And Related Services,4280,Edf Energy,10/06/2022,12071740,843.53,Energy Cost Electricity,Energy Costs
Southend-on-Sea Borough Council,http://www.opendatacommunities.org/id/unitary-authority/southend,ED Adults & Communities,Cultural And Related Services,4285,Edf Energy,10/06/2022,12071740,579.5,Energy Cost Electricity,Energy Costs
Southend-on-Sea Borough Council,http://www.opendatacommunities.org/id/unitary-authority/southend,ED Adults & Communities,Cultural And Related Services,4290,Edf Energy,10/06/2022,12071740,807.46,Energy Cost Electricity,Energy Costs
Southend-on-Sea Borough Council,http://www.opendatacommunities.org/id/unitary-authority/southend,ED Adults & Communities,Cultural And Related Services,4012,Edf Energy,10/06/2022,12071740,"1,281.93",Energy Cost Electricity,Energy Costs
Southend-on-Sea Borough Council,http://www.opendatacommunities.org/id/unitary-authority/southend,ED Adults & Communities,Cultural And Related Services,4025,Edf Energy,10/06/2022,12071740,564.1,Energy Cost Electricity,Energy Costs
Southend-on-Sea Borough Council,http://www.opendatacommunities.org/id/unitary-authority/southend,ED Adults & Communities,Cultural And Related Services,4030,Edf Energy,10/06/2022,12071740,"2,389.50",Energy Cost Electricity,Energy Costs
Southend-on-Sea Borough Council,http://www.opendatacommunities.org/id/unitary-authority/southend,ED Adults & Communities,Cultural And Related Services,4045,Edf Energy,10/06/2022,12071740,"3,044.95",Energy Cost Electricity,Energy Costs
Southend-on-Sea Borough Council,http://www.opendatacommunities.org/id/unitary-authority/southend,ED Adults & Communities,Cultural And Related Services,4115,Edf Energy,10/06/2022,12071740,"4,376.28",Energy Cost Electricity,Energy Costs
Southend-on-Sea Borough Council,http://www.opendatacommunities.org/id/unitary-authority/southend,ED Adults & Communities,Cultural And Related Services,4120,Edf Energy,10/06/2022,12071740,"13,988.58",Energy Cost Electricity,Energy Costs
Southend-on-Sea Borough Council,http://www.opendatacommunities.org/id/unitary-authority/southend,ED Adults & Communities,Cultural And Related Services,4123,Edf Energy,10/06/2022,12071740,545.66,Energy Cost Electricity,Energy Costs
Southend-on-Sea Borough Council,http://www.opendatacommunities.org/id/unitary-authority/southend,ED Children & Public Health,Children And Education Services,3390,Edf Energy,10/06/2022,12071740,553.08,Energy Cost Electricity,Energy Costs
Southend-on-Sea Borough Council,http://www.opendatacommunities.org/id/unitary-authority/southend,ED Children & Public Health,Children And Education Services,3471,Edf Energy,10/06/2022,12071740,"4,112.86",Energy Cost Electricity,Energy Costs
Southend-on-Sea Borough Council,http://www.opendatacommunities.org/id/unitary-authority/southend,ED Finance & Resources,Central Services,7120,Edf Energy,10/06/2022,12071740,"4,501.01",Energy Cost Electricity,Energy Costs
Southend-on-Sea Borough Council,http://www.opendatacommunities.org/id/unitary-authority/southend,ED Finance & Resources,Central Services,7140,Edf Energy,10/06/2022,12071740,"49,837.79",Energy Cost Electricity,Energy Costs
Southend-on-Sea Borough Council,http://www.opendatacommunities.org/id/unitary-authority/southend,ED Finance & Resources,Central Services,5605,Edf Energy,10/06/2022,12071740,"1,735.67",Energy Cost Electricity,Energy Costs
Southend-on-Sea Borough Council,http://www.opendatacommunities.org/id/unitary-authority/southend,ED Finance & Resources,Central Services,5606,Edf Energy,10/06/2022,12071740,"1,145.35",Energy Cost Electricity,Energy Costs
Southend-on-Sea Borough Council,http://www.opendatacommunities.org/id/unitary-authority/southend,ED Neighbourhoods & Environment,Cultural and Related Services,7505,Edf Energy,10/06/2022,12071740,833.23,Energy Cost Electricity,Energy Costs
Southend-on-Sea Borough Council,http://www.opendatacommunities.org/id/unitary-authority/southend,ED Neighbourhoods & Environment,Cultural and Related Services,7515,Edf Energy,10/06/2022,12071740,"1,832.37",Energy Cost Electricity,Energy Costs
Southend-on-Sea Borough Council,http://www.opendatacommunities.org/id/unitary-authority/southend,ED Neighbourhoods & Environment,Cultural And Related Services,4200,Edf Energy,10/06/2022,12071740,"7,889.45",Energy Cost Electricity,Energy Costs
Southend-on-Sea Borough Council,http://www.opendatacommunities.org/id/unitary-authority/southend,ED Neighbourhoods & Environment,Environmental And Regulatory Services,4505,Edf Energy,10/06/2022,12071740,"3,256.61",Energy Cost Electricity,Energy Costs
Southend-on-Sea Borough Council,http://www.opendatacommunities.org/id/unitary-authority/southend,ED Neighbourhoods & Environment,Environmental And Regulatory Services,4506,Edf Energy,10/06/2022,12071740,729.33,Energy Cost Electricity,Energy Costs
Southend-on-Sea Borough Council,http://www.opendatacommunities.org/id/unitary-authority/southend,ED Neighbourhoods & Environment,Environmental And Regulatory Services,4605,Edf Energy,10/06/2022,12071740,"3,943.29",Energy Cost Electricity,Energy Costs
Southend-on-Sea Borough Council,http://www.opendatacommunities.org/id/unitary-authority/southend,ED Neighbourhoods & Environment,Environmental And Regulatory Services,4715,Edf Energy,10/06/2022,12071740,"2,342.38",Energy Cost Electricity,Energy Costs
Southend-on-Sea Borough Council,http://www.opendatacommunities.org/id/unitary-authority/southend,ED Neighbourhoods & Environment,Highways And Transport Services,5035,Edf Energy,10/06/2022,12071740,"1,835.99",Energy Cost Electricity,Energy Costs
Southend-on-Sea Borough Council,http://www.opendatacommunities.org/id/unitary-authority/southend,ED Neighbourhoods & Environment,Highways And Transport Services,5170,Edf Energy,10/06/2022,12071740,"55,541.41",Energy Cost Electricity,Energy Costs
Southend-on-Sea Borough Council,http://www.opendatacommunities.org/id/unitary-authority/southend,ED Neighbourhoods & Environment,Highways And Transport Services,5225,Edf Energy,10/06/2022,12071740,"4,572.94",Energy Cost Electricity,Energy Costs
Southend-on-Sea Borough Council,http://www.opendatacommunities.org/id/unitary-authority/southend,"ED Strategy, Change & Governance",Central Services,7145,Edf Energy,10/06/2022,12071740,"3,905.53",Energy Cost Electricity,Energy Costs
Southend-on-Sea Borough Council,http://www.opendatacommunities.org/id/unitary-authority/southend,ED Neighbourhoods & Environment,Cultural and Related Services,7520,Ernest Doe And Sons Ltd,10/06/2022,12071740,"1,509.59",Tools And Equipment Repair And Maintenance,Equipment Furniture And Materials
Southend-on-Sea Borough Council,http://www.opendatacommunities.org/id/unitary-authority/southend,ED Neighbourhoods & Environment,Cultural and Related Services,7540,Ernest Doe And Sons Ltd,10/06/2022,12071740,865,Tools And Equipment Repair And Maintenance,Equipment Furniture And Materials
Southend-on-Sea Borough Council,http://www.opendatacommunities.org/id/unitary-authority/southend,ED Neighbourhoods & Environment,Cultural And Related Services,4220,Essex & Suffolk Water Co,10/06/2022,12071740,946.8,Water Services,Water Services
Southend-on-Sea Borough Council,http://www.opendatacommunities.org/id/unitary-authority/southend,ED Finance & Resources,Central Services,7140,Fast Key Services Ltd,10/06/2022,12071740,830.4,Repairs And Maintenance Contracts,"Repairs, alterations and maintenance of buildings"
Southend-on-Sea Borough Council,http://www.opendatacommunities.org/id/unitary-authority/southend,ED Adults & Communities,Adult Social Care,1108,Fean Services Uk Ltd,10/06/2022,12071740,608,Private Contractors,Other Agencies
Southend-on-Sea Borough Council,http://www.opendatacommunities.org/id/unitary-authority/southend,ED Adults & Communities,Adult Social Care,1105,Fean Services Uk Ltd,10/06/2022,12071740,513,Private Contractors,Other Agencies
Southend-on-Sea Borough Council,http://www.opendatacommunities.org/id/unitary-authority/southend,ED Adults & Communities,Adult Social Care,1105,Fean Services Uk Ltd,10/06/2022,12071740,"1,424.25",Private Contractors,Other Agencies
Southend-on-Sea Borough Council,http://www.opendatacommunities.org/id/unitary-authority/southend,ED Adults & Communities,Adult Social Care,1205,Fean Services Uk Ltd,10/06/2022,12071740,"1,632.00",Private Contractors,Other Agencies
Southend-on-Sea Borough Council,http://www.opendatacommunities.org/id/unitary-authority/southend,ED Adults & Communities,Adult Social Care,1105,Fean Services Uk Ltd,10/06/2022,12071740,736.25,Private Contractors,Other Agencies
Southend-on-Sea Borough Council,http://www.opendatacommunities.org/id/unitary-authority/southend,ED Children & Public Health,Children And Education Services,3098,Formara Limited T/A Formara Print,10/06/2022,12071740,869,Printing,Printing Stationery And General Office Expenses
Southend-on-Sea Borough Council,http://www.opendatacommunities.org/id/unitary-authority/southend,ED Children & Public Health,Children And Education Services,3250,Foster Care Associates Ltd,10/06/2022,12071740,"3,611.72",Private Contractors,Other Agencies
Southend-on-Sea Borough Council,http://www.opendatacommunities.org/id/unitary-authority/southend,ED Children & Public Health,Children And Education Services,3250,Foster Care Associates Ltd,10/06/2022,12071740,"5,572.00",Private Contractors,Other Agencies
Southend-on-Sea Borough Council,http://www.opendatacommunities.org/id/unitary-authority/southend,ED Children & Public Health,Children And Education Services,3250,Foster Care Associates Ltd,10/06/2022,12071740,"5,572.00",Private Contractors,Other Agencies
Southend-on-Sea Borough Council,http://www.opendatacommunities.org/id/unitary-authority/southend,ED Children & Public Health,Children And Education Services,3250,Foster Care Associates Ltd,10/06/2022,12071740,"5,572.00",Private Contractors,Other Agencies
Southend-on-Sea Borough Council,http://www.opendatacommunities.org/id/unitary-authority/southend,ED Adults & Communities,Adult Social Care,1105,Golden Keys Care Agency Limited,10/06/2022,12071740,"1,159.00",Private Contractors,Other Agencies
Southend-on-Sea Borough Council,http://www.opendatacommunities.org/id/unitary-authority/southend,ED Adults & Communities,Adult Social Care,1105,Golden Keys Care Agency Limited,10/06/2022,12071740,"2,764.50",Private Contractors,Other Agencies
Southend-on-Sea Borough Council,http://www.opendatacommunities.org/id/unitary-authority/southend,ED Adults & Communities,Adult Social Care,1105,Golden Keys Care Agency Limited,10/06/2022,12071740,788.5,Private Contractors,Other Agencies
Southend-on-Sea Borough Council,http://www.opendatacommunities.org/id/unitary-authority/southend,ED Adults & Communities,Adult Social Care,1165,Golden Keys Care Agency Limited,10/06/2022,12071740,"1,197.00",COVID-19 Response,Other Agencies
Southend-on-Sea Borough Council,http://www.opendatacommunities.org/id/unitary-authority/southend,ED Adults & Communities,Adult Social Care,1105,Golden Keys Care Agency Limited,10/06/2022,12071740,"2,926.00",Private Contractors,Other Agencies
Southend-on-Sea Borough Council,http://www.opendatacommunities.org/id/unitary-authority/southend,ED Adults & Communities,Adult Social Care,1105,Golden Keys Care Agency Limited,10/06/2022,12071740,"1,301.50",Private Contractors,Other Agencies
Southend-on-Sea Borough Council,http://www.opendatacommunities.org/id/unitary-authority/southend,ED Adults & Communities,Adult Social Care,1165,Golden Keys Care Agency Limited,10/06/2022,12071740,826.5,COVID-19 Response,Other Agencies
Southend-on-Sea Borough Council,http://www.opendatacommunities.org/id/unitary-authority/southend,ED Adults & Communities,Adult Social Care,1105,Golden Keys Care Agency Limited,10/06/2022,12071740,"2,194.50",Private Contractors,Other Agencies
Southend-on-Sea Borough Council,http://www.opendatacommunities.org/id/unitary-authority/southend,ED Children & Public Health,Children And Education Services,3091,Greensward Academy,10/06/2022,12071740,"9,789.23",Private Contractors,Other Agencies
Southend-on-Sea Borough Council,http://www.opendatacommunities.org/id/unitary-authority/southend,ED Adults & Communities,Adult Social Care,1490,Hays Specialist Recruitment Ltd Receipts Recruitment File Only,10/06/2022,12071740,"1,046.34",Agency Staff,Direct Employee Expenses
Southend-on-Sea Borough Council,http://www.opendatacommunities.org/id/unitary-authority/southend,ED Adults & Communities,Adult Social Care,1490,Hays Specialist Recruitment Ltd Receipts Recruitment File Only,10/06/2022,12071740,735.62,Agency Staff,Direct Employee Expenses
Southend-on-Sea Borough Council,http://www.opendatacommunities.org/id/unitary-authority/southend,ED Adults & Communities,Adult Social Care,1350,Hays Specialist Recruitment Ltd Receipts Recruitment File Only,10/06/2022,12071740,"1,047.48",Agency Staff,Direct Employee Expenses
Southend-on-Sea Borough Council,http://www.opendatacommunities.org/id/unitary-authority/southend,ED Adults & Communities,Adult Social Care,1490,Hays Specialist Recruitment Ltd Receipts Recruitment File Only,10/06/2022,12071740,"1,046.34",Agency Staff,Direct Employee Expenses
Southend-on-Sea Borough Council,http://www.opendatacommunities.org/id/unitary-authority/southend,ED Adults & Communities,Adult Social Care,1490,Hays Specialist Recruitment Ltd Receipts Recruitment File Only,10/06/2022,12071740,523.17,Agency Staff,Direct Employee Expenses
Southend-on-Sea Borough Council,http://www.opendatacommunities.org/id/unitary-authority/southend,ED Adults & Communities,Adult Social Care,1353,Hays Specialist Recruitment Ltd Receipts Recruitment File Only,10/06/2022,12071740,626.43,Agency Staff,Direct Employee Expenses
Southend-on-Sea Borough Council,http://www.opendatacommunities.org/id/unitary-authority/southend,ED Adults & Communities,Adult Social Care,1352,Hays Specialist Recruitment Ltd Receipts Recruitment File Only,10/06/2022,12071740,"1,336.44",Agency Staff,Direct Employee Expenses
Southend-on-Sea Borough Council,http://www.opendatacommunities.org/id/unitary-authority/southend,ED Adults & Communities,Adult Social Care,1365,Hays Specialist Recruitment Ltd Receipts Recruitment File Only,10/06/2022,12071740,"1,336.44",Agency Staff,Direct Employee Expenses
Southend-on-Sea Borough Council,http://www.opendatacommunities.org/id/unitary-authority/southend,ED Adults & Communities,Adult Social Care,1231,Hays Specialist Recruitment Ltd Receipts Recruitment File Only,10/06/2022,12071740,"1,422.65",Agency Staff,Direct Employee Expenses
Southend-on-Sea Borough Council,http://www.opendatacommunities.org/id/unitary-authority/southend,ED Adults & Communities,Adult Social Care,1350,Hays Specialist Recruitment Ltd Receipts Recruitment File Only,10/06/2022,12071740,"1,336.44",Agency Staff,Direct Employee Expenses
Southend-on-Sea Borough Council,http://www.opendatacommunities.org/id/unitary-authority/southend,ED Adults & Communities,Adult Social Care,1490,Hays Specialist Recruitment Ltd Receipts Recruitment File Only,10/06/2022,12071740,"1,103.43",Agency Staff,Direct Employee Expenses
Southend-on-Sea Borough Council,http://www.opendatacommunities.org/id/unitary-authority/southend,ED Adults & Communities,Adult Social Care,1180,Hays Specialist Recruitment Ltd Receipts Recruitment File Only,10/06/2022,12071740,"1,448.92",Agency Staff,Direct Employee Expenses
Southend-on-Sea Borough Council,http://www.opendatacommunities.org/id/unitary-authority/southend,ED Adults & Communities,Adult Social Care,1351,Hays Specialist Recruitment Ltd Receipts Recruitment File Only,10/06/2022,12071740,"1,336.44",Agency Staff,Direct Employee Expenses
Southend-on-Sea Borough Council,http://www.opendatacommunities.org/id/unitary-authority/southend,ED Adults & Communities,Adult Social Care,1365,Hays Specialist Recruitment Ltd Receipts Recruitment File Only,10/06/2022,12071740,"1,336.44",Agency Staff,Direct Employee Expenses
Southend-on-Sea Borough Council,http://www.opendatacommunities.org/id/unitary-authority/southend,ED Adults & Communities,Adult Social Care,1365,Hays Specialist Recruitment Ltd Receipts Recruitment File Only,10/06/2022,12071740,"1,336.44",Agency Staff,Direct Employee Expenses
Southend-on-Sea Borough Council,http://www.opendatacommunities.org/id/unitary-authority/southend,ED Adults & Communities,Adult Social Care,1365,Hays Specialist Recruitment Ltd Receipts Recruitment File Only,10/06/2022,12071740,"1,065.54",Agency Staff,Direct Employee Expenses
Southend-on-Sea Borough Council,http://www.opendatacommunities.org/id/unitary-authority/southend,ED Adults & Communities,Adult Social Care,1352,Hays Specialist Recruitment Ltd Receipts Recruitment File Only,10/06/2022,12071740,"1,083.60",Agency Staff,Direct Employee Expenses
Southend-on-Sea Borough Council,http://www.opendatacommunities.org/id/unitary-authority/southend,ED Adults & Communities,Adult Social Care,1365,Hays Specialist Recruitment Ltd Receipts Recruitment File Only,10/06/2022,12071740,"1,083.60",Agency Staff,Direct Employee Expenses
Southend-on-Sea Borough Council,http://www.opendatacommunities.org/id/unitary-authority/southend,ED Adults & Communities,Adult Social Care,1051,Hays Specialist Recruitment Ltd Receipts Recruitment File Only,10/06/2022,12071740,"1,300.32",Agency Staff,Direct Employee Expenses
Southend-on-Sea Borough Council,http://www.opendatacommunities.org/id/unitary-authority/southend,ED Adults & Communities,Adult Social Care,1461,Hays Specialist Recruitment Ltd Receipts Recruitment File Only,10/06/2022,12071740,"2,084.16",Agency Staff,Direct Employee Expenses
Southend-on-Sea Borough Council,http://www.opendatacommunities.org/id/unitary-authority/southend,ED Adults & Communities,Adult Social Care,1461,Hays Specialist Recruitment Ltd Receipts Recruitment File Only,10/06/2022,12071740,"2,084.16",Agency Staff,Direct Employee Expenses
Southend-on-Sea Borough Council,http://www.opendatacommunities.org/id/unitary-authority/southend,ED Adults & Communities,Cultural And Related Services,4120,Hays Specialist Recruitment Ltd Receipts Recruitment File Only,10/06/2022,12071740,576.11,Agency Staff,Direct Employee Expenses
Southend-on-Sea Borough Council,http://www.opendatacommunities.org/id/unitary-authority/southend,ED Adults & Communities,Cultural And Related Services,4120,Hays Specialist Recruitment Ltd Receipts Recruitment File Only,10/06/2022,12071740,576.75,Agency Staff,Direct Employee Expenses
Southend-on-Sea Borough Council,http://www.opendatacommunities.org/id/unitary-authority/southend,ED Adults & Communities,Cultural And Related Services,4120,Hays Specialist Recruitment Ltd Receipts Recruitment File Only,10/06/2022,12071740,630.9,Agency Staff,Direct Employee Expenses
Southend-on-Sea Borough Council,http://www.opendatacommunities.org/id/unitary-authority/southend,ED Adults & Communities,Cultural And Related Services,4240,Hays Specialist Recruitment Ltd Receipts Recruitment File Only,10/06/2022,12071740,553.45,Agency Staff,Direct Employee Expenses
Southend-on-Sea Borough Council,http://www.opendatacommunities.org/id/unitary-authority/southend,ED Adults & Communities,Cultural And Related Services,4240,Hays Specialist Recruitment Ltd Receipts Recruitment File Only,10/06/2022,12071740,553.45,Agency Staff,Direct Employee Expenses
Southend-on-Sea Borough Council,http://www.opendatacommunities.org/id/unitary-authority/southend,ED Adults & Communities,Cultural And Related Services,4240,Hays Specialist Recruitment Ltd Receipts Recruitment File Only,10/06/2022,12071740,830.18,Agency Staff,Direct Employee Expenses
Southend-on-Sea Borough Council,http://www.opendatacommunities.org/id/unitary-authority/southend,ED Adults & Communities,Cultural And Related Services,4120,Hays Specialist Recruitment Ltd Receipts Recruitment File Only,10/06/2022,12071740,681.56,Agency Staff,Direct Employee Expenses
Southend-on-Sea Borough Council,http://www.opendatacommunities.org/id/unitary-authority/southend,ED Adults & Communities,Cultural And Related Services,4120,Hays Specialist Recruitment Ltd Receipts Recruitment File Only,10/06/2022,12071740,952.64,Agency Staff,Direct Employee Expenses
Southend-on-Sea Borough Council,http://www.opendatacommunities.org/id/unitary-authority/southend,ED Adults & Communities,Cultural And Related Services,4120,Hays Specialist Recruitment Ltd Receipts Recruitment File Only,10/06/2022,12071740,677.84,Agency Staff,Direct Employee Expenses
Southend-on-Sea Borough Council,http://www.opendatacommunities.org/id/unitary-authority/southend,ED Adults & Communities,Cultural And Related Services,4120,Hays Specialist Recruitment Ltd Receipts Recruitment File Only,10/06/2022,12071740,688.05,Agency Staff,Direct Employee Expenses
Southend-on-Sea Borough Council,http://www.opendatacommunities.org/id/unitary-authority/southend,ED Adults & Communities,Cultural And Related Services,4120,Hays Specialist Recruitment Ltd Receipts Recruitment File Only,10/06/2022,12071740,"1,376.10",Agency Staff,Direct Employee Expenses
Southend-on-Sea Borough Council,http://www.opendatacommunities.org/id/unitary-authority/southend,ED Adults & Communities,Cultural And Related Services,4120,Hays Specialist Recruitment Ltd Receipts Recruitment File Only,10/06/2022,12071740,805.51,Agency Staff,Direct Employee Expenses
Southend-on-Sea Borough Council,http://www.opendatacommunities.org/id/unitary-authority/southend,ED Adults & Communities,Cultural And Related Services,4240,Hays Specialist Recruitment Ltd Receipts Recruitment File Only,10/06/2022,12071740,691.82,Agency Staff,Direct Employee Expenses
Southend-on-Sea Borough Council,http://www.opendatacommunities.org/id/unitary-authority/southend,ED Adults & Communities,Cultural And Related Services,4240,Hays Specialist Recruitment Ltd Receipts Recruitment File Only,10/06/2022,12071740,830.17,Agency Staff,Direct Employee Expenses
Southend-on-Sea Borough Council,http://www.opendatacommunities.org/id/unitary-authority/southend,ED Adults & Communities,Cultural And Related Services,4240,Hays Specialist Recruitment Ltd Receipts Recruitment File Only,10/06/2022,12071740,553.45,Agency Staff,Direct Employee Expenses
Southend-on-Sea Borough Council,http://www.opendatacommunities.org/id/unitary-authority/southend,ED Adults & Communities,Cultural And Related Services,4240,Hays Specialist Recruitment Ltd Receipts Recruitment File Only,10/06/2022,12071740,830.19,Agency Staff,Direct Employee Expenses
Southend-on-Sea Borough Council,http://www.opendatacommunities.org/id/unitary-authority/southend,ED Adults & Communities,Cultural And Related Services,4240,Hays Specialist Recruitment Ltd Receipts Recruitment File Only,10/06/2022,12071740,691.82,Agency Staff,Direct Employee Expenses
Southend-on-Sea Borough Council,http://www.opendatacommunities.org/id/unitary-authority/southend,ED Adults & Communities,Cultural And Related Services,4120,Hays Specialist Recruitment Ltd Receipts Recruitment File Only,10/06/2022,12071740,643.78,Agency Staff,Direct Employee Expenses
Southend-on-Sea Borough Council,http://www.opendatacommunities.org/id/unitary-authority/southend,ED Adults & Communities,Cultural And Related Services,4055,Hays Specialist Recruitment Ltd Receipts Recruitment File Only,10/06/2022,12071740,532.68,Agency Staff,Direct Employee Expenses
Southend-on-Sea Borough Council,http://www.opendatacommunities.org/id/unitary-authority/southend,ED Adults & Communities,Cultural And Related Services,4120,Hays Specialist Recruitment Ltd Receipts Recruitment File Only,10/06/2022,12071740,565.75,Agency Staff,Direct Employee Expenses
Southend-on-Sea Borough Council,http://www.opendatacommunities.org/id/unitary-authority/southend,ED Adults & Communities,Housing Services,1011,Hays Specialist Recruitment Ltd Receipts Recruitment File Only,10/06/2022,12071740,"1,710.00",Agency Staff,Direct Employee Expenses
Southend-on-Sea Borough Council,http://www.opendatacommunities.org/id/unitary-authority/southend,ED Adults & Communities,Housing Services,1011,Hays Specialist Recruitment Ltd Receipts Recruitment File Only,10/06/2022,12071740,"1,853.28",Agency Staff,Direct Employee Expenses
Southend-on-Sea Borough Council,http://www.opendatacommunities.org/id/unitary-authority/southend,ED Adults & Communities,Housing Services,1011,Hays Specialist Recruitment Ltd Receipts Recruitment File Only,10/06/2022,12071740,"2,181.10",Agency Staff,Direct Employee Expenses
Southend-on-Sea Borough Council,http://www.opendatacommunities.org/id/unitary-authority/southend,ED Adults & Communities,Housing Services,1011,Hays Specialist Recruitment Ltd Receipts Recruitment File Only,10/06/2022,12071740,"1,744.88",Agency Staff,Direct Employee Expenses
Southend-on-Sea Borough Council,http://www.opendatacommunities.org/id/unitary-authority/southend,ED Adults & Communities,Housing Services,1011,Hays Specialist Recruitment Ltd Receipts Recruitment File Only,10/06/2022,12071740,"1,744.88",Agency Staff,Direct Employee Expenses
Southend-on-Sea Borough Council,http://www.opendatacommunities.org/id/unitary-authority/southend,ED Adults & Communities,Housing Services,1011,Hays Specialist Recruitment Ltd Receipts Recruitment File Only,10/06/2022,12071740,872.44,Agency Staff,Direct Employee Expenses
Southend-on-Sea Borough Council,http://www.opendatacommunities.org/id/unitary-authority/southend,ED Adults & Communities,Housing Services,1011,Hays Specialist Recruitment Ltd Receipts Recruitment File Only,10/06/2022,12071740,"2,156.10",Agency Staff,Direct Employee Expenses
Southend-on-Sea Borough Council,http://www.opendatacommunities.org/id/unitary-authority/southend,ED Children & Public Health,Adult Social Care,1035,Hays Specialist Recruitment Ltd Receipts Recruitment File Only,10/06/2022,12071740,774.76,Agency Staff,Direct Employee Expenses
Southend-on-Sea Borough Council,http://www.opendatacommunities.org/id/unitary-authority/southend,ED Children & Public Health,Adult Social Care,1035,Hays Specialist Recruitment Ltd Receipts Recruitment File Only,10/06/2022,12071740,563.36,Agency Staff,Direct Employee Expenses
Southend-on-Sea Borough Council,http://www.opendatacommunities.org/id/unitary-authority/southend,ED Children & Public Health,Adult Social Care,1035,Hays Specialist Recruitment Ltd Receipts Recruitment File Only,10/06/2022,12071740,"1,674.85",Agency Staff,Direct Employee Expenses
Southend-on-Sea Borough Council,http://www.opendatacommunities.org/id/unitary-authority/southend,ED Children & Public Health,Adult Social Care,1035,Hays Specialist Recruitment Ltd Receipts Recruitment File Only,10/06/2022,12071740,"1,421.75",Agency Staff,Direct Employee Expenses
Southend-on-Sea Borough Council,http://www.opendatacommunities.org/id/unitary-authority/southend,ED Children & Public Health,Adult Social Care,1035,Hays Specialist Recruitment Ltd Receipts Recruitment File Only,10/06/2022,12071740,"1,339.88",Agency Staff,Direct Employee Expenses
Southend-on-Sea Borough Council,http://www.opendatacommunities.org/id/unitary-authority/southend,ED Children & Public Health,Adult Social Care,1035,Hays Specialist Recruitment Ltd Receipts Recruitment File Only,10/06/2022,12071740,704.2,Agency Staff,Direct Employee Expenses
Southend-on-Sea Borough Council,http://www.opendatacommunities.org/id/unitary-authority/southend,ED Children & Public Health,Adult Social Care,1035,Hays Specialist Recruitment Ltd Receipts Recruitment File Only,10/06/2022,12071740,968.45,Agency Staff,Direct Employee Expenses
Southend-on-Sea Borough Council,http://www.opendatacommunities.org/id/unitary-authority/southend,ED Children & Public Health,Children And Education Services,3200,Hays Specialist Recruitment Ltd Receipts Recruitment File Only,10/06/2022,12071740,"1,596.00",Agency Staff,Direct Employee Expenses
Southend-on-Sea Borough Council,http://www.opendatacommunities.org/id/unitary-authority/southend,ED Children & Public Health,Children And Education Services,3455,Hays Specialist Recruitment Ltd Receipts Recruitment File Only,10/06/2022,12071740,"1,110.08",Agency Staff,Direct Employee Expenses
Southend-on-Sea Borough Council,http://www.opendatacommunities.org/id/unitary-authority/southend,ED Children & Public Health,Children And Education Services,3455,Hays Specialist Recruitment Ltd Receipts Recruitment File Only,10/06/2022,12071740,"1,110.08",Agency Staff,Direct Employee Expenses
Southend-on-Sea Borough Council,http://www.opendatacommunities.org/id/unitary-authority/southend,ED Children & Public Health,Children And Education Services,3200,Hays Specialist Recruitment Ltd Receipts Recruitment File Only,10/06/2022,12071740,945.21,Agency Staff,Direct Employee Expenses
Southend-on-Sea Borough Council,http://www.opendatacommunities.org/id/unitary-authority/southend,ED Children & Public Health,Children And Education Services,3200,Hays Specialist Recruitment Ltd Receipts Recruitment File Only,10/06/2022,12071740,630.14,Agency Staff,Direct Employee Expenses
Southend-on-Sea Borough Council,http://www.opendatacommunities.org/id/unitary-authority/southend,ED Children & Public Health,Children And Education Services,3200,Hays Specialist Recruitment Ltd Receipts Recruitment File Only,10/06/2022,12071740,945.21,Agency Staff,Direct Employee Expenses
Southend-on-Sea Borough Council,http://www.opendatacommunities.org/id/unitary-authority/southend,ED Children & Public Health,Children And Education Services,3200,Hays Specialist Recruitment Ltd Receipts Recruitment File Only,10/06/2022,12071740,945.21,Agency Staff,Direct Employee Expenses
Southend-on-Sea Borough Council,http://www.opendatacommunities.org/id/unitary-authority/southend,ED Children & Public Health,Children And Education Services,3200,Hays Specialist Recruitment Ltd Receipts Recruitment File Only,10/06/2022,12071740,945.21,Agency Staff,Direct Employee Expenses
Southend-on-Sea Borough Council,http://www.opendatacommunities.org/id/unitary-authority/southend,ED Children & Public Health,Children And Education Services,3590,Hays Specialist Recruitment Ltd Receipts Recruitment File Only,10/06/2022,12071740,"1,059.33",Agency Staff,Direct Employee Expenses
Southend-on-Sea Borough Council,http://www.opendatacommunities.org/id/unitary-authority/southend,ED Children & Public Health,Children And Education Services,3265,Hays Specialist Recruitment Ltd Receipts Recruitment File Only,10/06/2022,12071740,877.97,Agency Staff,Direct Employee Expenses
Southend-on-Sea Borough Council,http://www.opendatacommunities.org/id/unitary-authority/southend,ED Children & Public Health,Children And Education Services,3265,Hays Specialist Recruitment Ltd Receipts Recruitment File Only,10/06/2022,12071740,"1,449.32",Agency Staff,Direct Employee Expenses
Southend-on-Sea Borough Council,http://www.opendatacommunities.org/id/unitary-authority/southend,ED Children & Public Health,Children And Education Services,3265,Hays Specialist Recruitment Ltd Receipts Recruitment File Only,10/06/2022,12071740,"1,174.80",Agency Staff,Direct Employee Expenses
Southend-on-Sea Borough Council,http://www.opendatacommunities.org/id/unitary-authority/southend,ED Children & Public Health,Children And Education Services,3590,Hays Specialist Recruitment Ltd Receipts Recruitment File Only,10/06/2022,12071740,"1,304.49",Agency Staff,Direct Employee Expenses
Southend-on-Sea Borough Council,http://www.opendatacommunities.org/id/unitary-authority/southend,ED Children & Public Health,Children And Education Services,3143,Hays Specialist Recruitment Ltd Receipts Recruitment File Only,10/06/2022,12071740,595.4,Agency Staff,Direct Employee Expenses
Southend-on-Sea Borough Council,http://www.opendatacommunities.org/id/unitary-authority/southend,ED Children & Public Health,Children And Education Services,3590,Hays Specialist Recruitment Ltd Receipts Recruitment File Only,10/06/2022,12071740,"1,561.40",Agency Staff,Direct Employee Expenses
Southend-on-Sea Borough Council,http://www.opendatacommunities.org/id/unitary-authority/southend,ED Children & Public Health,Children And Education Services,3590,Hays Specialist Recruitment Ltd Receipts Recruitment File Only,10/06/2022,12071740,618.7,Agency Staff,Direct Employee Expenses
Southend-on-Sea Borough Council,http://www.opendatacommunities.org/id/unitary-authority/southend,ED Children & Public Health,Children And Education Services,3590,Hays Specialist Recruitment Ltd Receipts Recruitment File Only,10/06/2022,12071740,"1,059.33",Agency Staff,Direct Employee Expenses
Southend-on-Sea Borough Council,http://www.opendatacommunities.org/id/unitary-authority/southend,ED Children & Public Health,Children And Education Services,3590,Hays Specialist Recruitment Ltd Receipts Recruitment File Only,10/06/2022,12071740,"1,059.33",Agency Staff,Direct Employee Expenses
Southend-on-Sea Borough Council,http://www.opendatacommunities.org/id/unitary-authority/southend,ED Children & Public Health,Children And Education Services,3590,Hays Specialist Recruitment Ltd Receipts Recruitment File Only,10/06/2022,12071740,"1,266.00",Agency Staff,Direct Employee Expenses
Southend-on-Sea Borough Council,http://www.opendatacommunities.org/id/unitary-authority/southend,ED Children & Public Health,Children And Education Services,3790,Hays Specialist Recruitment Ltd Receipts Recruitment File Only,10/06/2022,12071740,949.5,Agency Staff,Direct Employee Expenses
Southend-on-Sea Borough Council,http://www.opendatacommunities.org/id/unitary-authority/southend,ED Children & Public Health,Children And Education Services,3265,Hays Specialist Recruitment Ltd Receipts Recruitment File Only,10/06/2022,12071740,633,Agency Staff,Direct Employee Expenses
Southend-on-Sea Borough Council,http://www.opendatacommunities.org/id/unitary-authority/southend,ED Children & Public Health,Children And Education Services,3480,Hays Specialist Recruitment Ltd Receipts Recruitment File Only,10/06/2022,12071740,"1,174.80",Agency Staff,Direct Employee Expenses
Southend-on-Sea Borough Council,http://www.opendatacommunities.org/id/unitary-authority/southend,ED Children & Public Health,Children And Education Services,3590,Hays Specialist Recruitment Ltd Receipts Recruitment File Only,10/06/2022,12071740,"1,364.39",Agency Staff,Direct Employee Expenses
Southend-on-Sea Borough Council,http://www.opendatacommunities.org/id/unitary-authority/southend,ED Children & Public Health,Children And Education Services,3590,Hays Specialist Recruitment Ltd Receipts Recruitment File Only,10/06/2022,12071740,"1,463.40",Agency Staff,Direct Employee Expenses
Southend-on-Sea Borough Council,http://www.opendatacommunities.org/id/unitary-authority/southend,ED Children & Public Health,Children And Education Services,3200,Hays Specialist Recruitment Ltd Receipts Recruitment File Only,10/06/2022,12071740,996.78,Agency Staff,Direct Employee Expenses
Southend-on-Sea Borough Council,http://www.opendatacommunities.org/id/unitary-authority/southend,ED Children & Public Health,Children And Education Services,3200,Hays Specialist Recruitment Ltd Receipts Recruitment File Only,10/06/2022,12071740,996.78,Agency Staff,Direct Employee Expenses
Southend-on-Sea Borough Council,http://www.opendatacommunities.org/id/unitary-authority/southend,ED Children & Public Health,Children And Education Services,3220,Hays Specialist Recruitment Ltd Receipts Recruitment File Only,10/06/2022,12071740,"1,478.40",Agency Staff,Direct Employee Expenses
Southend-on-Sea Borough Council,http://www.opendatacommunities.org/id/unitary-authority/southend,ED Children & Public Health,Children And Education Services,3220,Hays Specialist Recruitment Ltd Receipts Recruitment File Only,10/06/2022,12071740,"1,823.36",Agency Staff,Direct Employee Expenses
Southend-on-Sea Borough Council,http://www.opendatacommunities.org/id/unitary-authority/southend,ED Children & Public Health,Children And Education Services,3590,Hays Specialist Recruitment Ltd Receipts Recruitment File Only,10/06/2022,12071740,"1,636.14",Agency Staff,Direct Employee Expenses
Southend-on-Sea Borough Council,http://www.opendatacommunities.org/id/unitary-authority/southend,ED Children & Public Health,Children And Education Services,3590,Hays Specialist Recruitment Ltd Receipts Recruitment File Only,10/06/2022,12071740,"1,459.26",Agency Staff,Direct Employee Expenses
Southend-on-Sea Borough Council,http://www.opendatacommunities.org/id/unitary-authority/southend,ED Children & Public Health,Children And Education Services,3590,Hays Specialist Recruitment Ltd Receipts Recruitment File Only,10/06/2022,12071740,697.84,Agency Staff,Direct Employee Expenses
Southend-on-Sea Borough Council,http://www.opendatacommunities.org/id/unitary-authority/southend,ED Children & Public Health,Children And Education Services,3131,Hays Specialist Recruitment Ltd Receipts Recruitment File Only,10/06/2022,12071740,"3,700.08",Agency Staff,Direct Employee Expenses
Southend-on-Sea Borough Council,http://www.opendatacommunities.org/id/unitary-authority/southend,ED Children & Public Health,Children And Education Services,3290,Hays Specialist Recruitment Ltd Receipts Recruitment File Only,10/06/2022,12071740,946.08,Agency Staff,Direct Employee Expenses
Southend-on-Sea Borough Council,http://www.opendatacommunities.org/id/unitary-authority/southend,ED Children & Public Health,Children And Education Services,3290,Hays Specialist Recruitment Ltd Receipts Recruitment File Only,10/06/2022,12071740,"1,186.61",Agency Staff,Direct Employee Expenses
Southend-on-Sea Borough Council,http://www.opendatacommunities.org/id/unitary-authority/southend,ED Children & Public Health,Children And Education Services,3200,Hays Specialist Recruitment Ltd Receipts Recruitment File Only,10/06/2022,12071740,798,Agency Staff,Direct Employee Expenses
Southend-on-Sea Borough Council,http://www.opendatacommunities.org/id/unitary-authority/southend,ED Children & Public Health,Children And Education Services,3200,Hays Specialist Recruitment Ltd Receipts Recruitment File Only,10/06/2022,12071740,"1,596.00",Agency Staff,Direct Employee Expenses
Southend-on-Sea Borough Council,http://www.opendatacommunities.org/id/unitary-authority/southend,ED Children & Public Health,Children And Education Services,3231,Hays Specialist Recruitment Ltd Receipts Recruitment File Only,10/06/2022,12071740,"2,216.69",Agency Staff,Direct Employee Expenses
Southend-on-Sea Borough Council,http://www.opendatacommunities.org/id/unitary-authority/southend,ED Children & Public Health,Children And Education Services,3231,Hays Specialist Recruitment Ltd Receipts Recruitment File Only,10/06/2022,12071740,"1,797.32",Agency Staff,Direct Employee Expenses
Southend-on-Sea Borough Council,http://www.opendatacommunities.org/id/unitary-authority/southend,ED Children & Public Health,Children And Education Services,3231,Hays Specialist Recruitment Ltd Receipts Recruitment File Only,10/06/2022,12071740,"2,216.69",Agency Staff,Direct Employee Expenses
Southend-on-Sea Borough Council,http://www.opendatacommunities.org/id/unitary-authority/southend,ED Children & Public Health,Children And Education Services,3590,Hays Specialist Recruitment Ltd Receipts Recruitment File Only,10/06/2022,12071740,"1,726.45",Agency Staff,Direct Employee Expenses
Southend-on-Sea Borough Council,http://www.opendatacommunities.org/id/unitary-authority/southend,ED Children & Public Health,Children And Education Services,3590,Hays Specialist Recruitment Ltd Receipts Recruitment File Only,10/06/2022,12071740,"1,906.95",Agency Staff,Direct Employee Expenses
Southend-on-Sea Borough Council,http://www.opendatacommunities.org/id/unitary-authority/southend,ED Children & Public Health,Children And Education Services,3590,Hays Specialist Recruitment Ltd Receipts Recruitment File Only,10/06/2022,12071740,"1,711.27",Agency Staff,Direct Employee Expenses
Southend-on-Sea Borough Council,http://www.opendatacommunities.org/id/unitary-authority/southend,ED Children & Public Health,Children And Education Services,3183,Hays Specialist Recruitment Ltd Receipts Recruitment File Only,10/06/2022,12071740,"4,263.74",Recruitment,Indirect Employee Expenses
Southend-on-Sea Borough Council,http://www.opendatacommunities.org/id/unitary-authority/southend,ED Children & Public Health,Children And Education Services,3183,Hays Specialist Recruitment Ltd Receipts Recruitment File Only,10/06/2022,12071740,"2,288.20",Recruitment,Indirect Employee Expenses
Southend-on-Sea Borough Council,http://www.opendatacommunities.org/id/unitary-authority/southend,ED Children & Public Health,Children And Education Services,3183,Hays Specialist Recruitment Ltd Receipts Recruitment File Only,10/06/2022,12071740,"4,263.74",Recruitment,Indirect Employee Expenses
Southend-on-Sea Borough Council,http://www.opendatacommunities.org/id/unitary-authority/southend,ED Children & Public Health,Public Health,8700,Hays Specialist Recruitment Ltd Receipts Recruitment File Only,10/06/2022,12071740,"1,953.06",Agency Staff,Direct Employee Expenses
Southend-on-Sea Borough Council,http://www.opendatacommunities.org/id/unitary-authority/southend,ED Children & Public Health,Public Health,8700,Hays Specialist Recruitment Ltd Receipts Recruitment File Only,10/06/2022,12071740,"1,953.06",Agency Staff,Direct Employee Expenses
Southend-on-Sea Borough Council,http://www.opendatacommunities.org/id/unitary-authority/southend,ED Children & Public Health,Public Health,7713,Hays Specialist Recruitment Ltd Receipts Recruitment File Only,10/06/2022,12071740,"1,835.80",Agency Staff,Direct Employee Expenses
Southend-on-Sea Borough Council,http://www.opendatacommunities.org/id/unitary-authority/southend,ED Children & Public Health,Public Health,8701,Hays Specialist Recruitment Ltd Receipts Recruitment File Only,10/06/2022,12071740,"1,732.00",Agency Staff,Direct Employee Expenses
Southend-on-Sea Borough Council,http://www.opendatacommunities.org/id/unitary-authority/southend,ED Children & Public Health,Public Health,8701,Hays Specialist Recruitment Ltd Receipts Recruitment File Only,10/06/2022,12071740,"1,732.00",Agency Staff,Direct Employee Expenses
Southend-on-Sea Borough Council,http://www.opendatacommunities.org/id/unitary-authority/southend,ED Children & Public Health,Public Health,7713,Hays Specialist Recruitment Ltd Receipts Recruitment File Only,10/06/2022,12071740,"1,850.20",Agency Staff,Direct Employee Expenses
Southend-on-Sea Borough Council,http://www.opendatacommunities.org/id/unitary-authority/southend,ED Finance & Resources,Central Services,2156,Hays Specialist Recruitment Ltd Receipts Recruitment File Only,10/06/2022,12071740,739.48,Agency Staff,Direct Employee Expenses
Southend-on-Sea Borough Council,http://www.opendatacommunities.org/id/unitary-authority/southend,ED Finance & Resources,Central Services,7096,Hays Specialist Recruitment Ltd Receipts Recruitment File Only,10/06/2022,12071740,555.6,Agency Staff,Direct Employee Expenses
Southend-on-Sea Borough Council,http://www.opendatacommunities.org/id/unitary-authority/southend,ED Finance & Resources,Central Services,7096,Hays Specialist Recruitment Ltd Receipts Recruitment File Only,10/06/2022,12071740,565.8,Agency Staff,Direct Employee Expenses
Southend-on-Sea Borough Council,http://www.opendatacommunities.org/id/unitary-authority/southend,ED Finance & Resources,Central Services,7070,Hays Specialist Recruitment Ltd Receipts Recruitment File Only,10/06/2022,12071740,"3,110.08",Agency Staff,Direct Employee Expenses
Southend-on-Sea Borough Council,http://www.opendatacommunities.org/id/unitary-authority/southend,ED Finance & Resources,Central Services,2156,Hays Specialist Recruitment Ltd Receipts Recruitment File Only,10/06/2022,12071740,949.1,Agency Staff,Direct Employee Expenses
Southend-on-Sea Borough Council,http://www.opendatacommunities.org/id/unitary-authority/southend,ED Finance & Resources,Central Services,2156,Hays Specialist Recruitment Ltd Receipts Recruitment File Only,10/06/2022,12071740,"1,045.39",Agency Staff,Direct Employee Expenses
Southend-on-Sea Borough Council,http://www.opendatacommunities.org/id/unitary-authority/southend,ED Finance & Resources,Central Services,2117,Hays Specialist Recruitment Ltd Receipts Recruitment File Only,10/06/2022,12071740,565.75,Agency Staff,Direct Employee Expenses
Southend-on-Sea Borough Council,http://www.opendatacommunities.org/id/unitary-authority/southend,ED Finance & Resources,Central Services,2117,Hays Specialist Recruitment Ltd Receipts Recruitment File Only,10/06/2022,12071740,565.75,Agency Staff,Direct Employee Expenses
Southend-on-Sea Borough Council,http://www.opendatacommunities.org/id/unitary-authority/southend,ED Finance & Resources,Central Services,2117,Hays Specialist Recruitment Ltd Receipts Recruitment File Only,10/06/2022,12071740,551.3,Agency Staff,Direct Employee Expenses
Southend-on-Sea Borough Council,http://www.opendatacommunities.org/id/unitary-authority/southend,ED Finance & Resources,Housing Services,6165,Hays Specialist Recruitment Ltd Receipts Recruitment File Only,10/06/2022,12071740,507.92,Agency Staff,Direct Employee Expenses
Southend-on-Sea Borough Council,http://www.opendatacommunities.org/id/unitary-authority/southend,ED Finance & Resources,Housing Services,7150,Hays Specialist Recruitment Ltd Receipts Recruitment File Only,10/06/2022,12071740,"1,993.44",Agency Staff,Direct Employee Expenses
Southend-on-Sea Borough Council,http://www.opendatacommunities.org/id/unitary-authority/southend,ED Growth & Housing,Cultural and Related Services,2139,Hays Specialist Recruitment Ltd Receipts Recruitment File Only,10/06/2022,12071740,"1,010.96",Agency Staff,Direct Employee Expenses
Southend-on-Sea Borough Council,http://www.opendatacommunities.org/id/unitary-authority/southend,ED Growth & Housing,Cultural and Related Services,2139,Hays Specialist Recruitment Ltd Receipts Recruitment File Only,10/06/2022,12071740,"1,010.96",Agency Staff,Direct Employee Expenses
Southend-on-Sea Borough Council,http://www.opendatacommunities.org/id/unitary-authority/southend,ED Growth & Housing,Cultural and Related Services,2139,Hays Specialist Recruitment Ltd Receipts Recruitment File Only,10/06/2022,12071740,505.48,Agency Staff,Direct Employee Expenses
Southend-on-Sea Borough Council,http://www.opendatacommunities.org/id/unitary-authority/southend,ED Growth & Housing,Cultural and Related Services,2139,Hays Specialist Recruitment Ltd Receipts Recruitment File Only,10/06/2022,12071740,"1,010.96",Agency Staff,Direct Employee Expenses
Southend-on-Sea Borough Council,http://www.opendatacommunities.org/id/unitary-authority/southend,ED Growth & Housing,Housing Services,6011,Hays Specialist Recruitment Ltd Receipts Recruitment File Only,10/06/2022,12071740,855.41,Agency Staff,Direct Employee Expenses
Southend-on-Sea Borough Council,http://www.opendatacommunities.org/id/unitary-authority/southend,ED Growth & Housing,Planning Services,5640,Hays Specialist Recruitment Ltd Receipts Recruitment File Only,10/06/2022,12071740,801.5,Agency Staff,Direct Employee Expenses
Southend-on-Sea Borough Council,http://www.opendatacommunities.org/id/unitary-authority/southend,ED Growth & Housing,Planning Services,5640,Hays Specialist Recruitment Ltd Receipts Recruitment File Only,10/06/2022,12071740,595.4,Agency Staff,Direct Employee Expenses
Southend-on-Sea Borough Council,http://www.opendatacommunities.org/id/unitary-authority/southend,ED Growth & Housing,Planning Services,5506,Hays Specialist Recruitment Ltd Receipts Recruitment File Only,10/06/2022,12071740,738.52,Agency Staff,Direct Employee Expenses
Southend-on-Sea Borough Council,http://www.opendatacommunities.org/id/unitary-authority/southend,ED Growth & Housing,Planning Services,5640,Hays Specialist Recruitment Ltd Receipts Recruitment File Only,10/06/2022,12071740,"1,099.80",Agency Staff,Direct Employee Expenses
Southend-on-Sea Borough Council,http://www.opendatacommunities.org/id/unitary-authority/southend,ED Growth & Housing,Planning Services,5640,Hays Specialist Recruitment Ltd Receipts Recruitment File Only,10/06/2022,12071740,801.5,Agency Staff,Direct Employee Expenses
Southend-on-Sea Borough Council,http://www.opendatacommunities.org/id/unitary-authority/southend,ED Growth & Housing,Planning Services,5640,Hays Specialist Recruitment Ltd Receipts Recruitment File Only,10/06/2022,12071740,815.9,Agency Staff,Direct Employee Expenses
Southend-on-Sea Borough Council,http://www.opendatacommunities.org/id/unitary-authority/southend,ED Growth & Housing,Planning Services,5535,Hays Specialist Recruitment Ltd Receipts Recruitment File Only,10/06/2022,12071740,978.42,Agency Staff,Direct Employee Expenses
Southend-on-Sea Borough Council,http://www.opendatacommunities.org/id/unitary-authority/southend,ED Growth & Housing,Central Services,2137,Hays Specialist Recruitment Ltd Receipts Recruitment File Only,10/06/2022,12071740,664.1,Agency Staff,Direct Employee Expenses
Southend-on-Sea Borough Council,http://www.opendatacommunities.org/id/unitary-authority/southend,ED Neighbourhoods & Environment,Cultural and Related Services,7505,Hays Specialist Recruitment Ltd Receipts Recruitment File Only,10/06/2022,12071740,565.75,Agency Staff,Direct Employee Expenses
Southend-on-Sea Borough Council,http://www.opendatacommunities.org/id/unitary-authority/southend,ED Neighbourhoods & Environment,Cultural and Related Services,7505,Hays Specialist Recruitment Ltd Receipts Recruitment File Only,10/06/2022,12071740,565.75,Agency Staff,Direct Employee Expenses
Southend-on-Sea Borough Council,http://www.opendatacommunities.org/id/unitary-authority/southend,ED Neighbourhoods & Environment,Cultural and Related Services,7505,Hays Specialist Recruitment Ltd Receipts Recruitment File Only,10/06/2022,12071740,"1,131.46",Agency Staff,Direct Employee Expenses
Southend-on-Sea Borough Council,http://www.opendatacommunities.org/id/unitary-authority/southend,ED Neighbourhoods & Environment,Cultural and Related Services,7505,Hays Specialist Recruitment Ltd Receipts Recruitment File Only,10/06/2022,12071740,565.75,Agency Staff,Direct Employee Expenses
Southend-on-Sea Borough Council,http://www.opendatacommunities.org/id/unitary-authority/southend,ED Neighbourhoods & Environment,Cultural and Related Services,7520,Hays Specialist Recruitment Ltd Receipts Recruitment File Only,10/06/2022,12071740,565.75,Agency Staff,Direct Employee Expenses
Southend-on-Sea Borough Council,http://www.opendatacommunities.org/id/unitary-authority/southend,ED Neighbourhoods & Environment,Cultural and Related Services,7505,Hays Specialist Recruitment Ltd Receipts Recruitment File Only,10/06/2022,12071740,730.12,Agency Staff,Direct Employee Expenses
Southend-on-Sea Borough Council,http://www.opendatacommunities.org/id/unitary-authority/southend,ED Neighbourhoods & Environment,Cultural and Related Services,7505,Hays Specialist Recruitment Ltd Receipts Recruitment File Only,10/06/2022,12071740,565.75,Agency Staff,Direct Employee Expenses
Southend-on-Sea Borough Council,http://www.opendatacommunities.org/id/unitary-authority/southend,ED Neighbourhoods & Environment,Cultural and Related Services,7505,Hays Specialist Recruitment Ltd Receipts Recruitment File Only,10/06/2022,12071740,565.75,Agency Staff,Direct Employee Expenses
Southend-on-Sea Borough Council,http://www.opendatacommunities.org/id/unitary-authority/southend,ED Neighbourhoods & Environment,Cultural and Related Services,7505,Hays Specialist Recruitment Ltd Receipts Recruitment File Only,10/06/2022,12071740,565.75,Agency Staff,Direct Employee Expenses
Southend-on-Sea Borough Council,http://www.opendatacommunities.org/id/unitary-authority/southend,ED Neighbourhoods & Environment,Cultural and Related Services,7505,Hays Specialist Recruitment Ltd Receipts Recruitment File Only,10/06/2022,12071740,565.75,Agency Staff,Direct Employee Expenses
Southend-on-Sea Borough Council,http://www.opendatacommunities.org/id/unitary-authority/southend,ED Neighbourhoods & Environment,Cultural and Related Services,7505,Hays Specialist Recruitment Ltd Receipts Recruitment File Only,10/06/2022,12071740,565.75,Agency Staff,Direct Employee Expenses
Southend-on-Sea Borough Council,http://www.opendatacommunities.org/id/unitary-authority/southend,ED Neighbourhoods & Environment,Cultural and Related Services,7505,Hays Specialist Recruitment Ltd Receipts Recruitment File Only,10/06/2022,12071740,565.75,Agency Staff,Direct Employee Expenses
Southend-on-Sea Borough Council,http://www.opendatacommunities.org/id/unitary-authority/southend,ED Neighbourhoods & Environment,Cultural and Related Services,7505,Hays Specialist Recruitment Ltd Receipts Recruitment File Only,10/06/2022,12071740,565.75,Agency Staff,Direct Employee Expenses
Southend-on-Sea Borough Council,http://www.opendatacommunities.org/id/unitary-authority/southend,ED Neighbourhoods & Environment,Cultural and Related Services,7505,Hays Specialist Recruitment Ltd Receipts Recruitment File Only,10/06/2022,12071740,565.75,Agency Staff,Direct Employee Expenses
Southend-on-Sea Borough Council,http://www.opendatacommunities.org/id/unitary-authority/southend,ED Neighbourhoods & Environment,Cultural And Related Services,4201,Hays Specialist Recruitment Ltd Receipts Recruitment File Only,10/06/2022,12071740,"3,182.35",Agency Staff,Direct Employee Expenses
Southend-on-Sea Borough Council,http://www.opendatacommunities.org/id/unitary-authority/southend,ED Neighbourhoods & Environment,Cultural and Related Services,7505,Hays Specialist Recruitment Ltd Receipts Recruitment File Only,10/06/2022,12071740,565.75,Agency Staff,Direct Employee Expenses
Southend-on-Sea Borough Council,http://www.opendatacommunities.org/id/unitary-authority/southend,ED Neighbourhoods & Environment,Cultural and Related Services,7505,Hays Specialist Recruitment Ltd Receipts Recruitment File Only,10/06/2022,12071740,565.75,Agency Staff,Direct Employee Expenses
Southend-on-Sea Borough Council,http://www.opendatacommunities.org/id/unitary-authority/southend,ED Neighbourhoods & Environment,Cultural and Related Services,7520,Hays Specialist Recruitment Ltd Receipts Recruitment File Only,10/06/2022,12071740,565.75,Agency Staff,Direct Employee Expenses
Southend-on-Sea Borough Council,http://www.opendatacommunities.org/id/unitary-authority/southend,ED Neighbourhoods & Environment,Cultural and Related Services,7505,Hays Specialist Recruitment Ltd Receipts Recruitment File Only,10/06/2022,12071740,565.75,Agency Staff,Direct Employee Expenses
Southend-on-Sea Borough Council,http://www.opendatacommunities.org/id/unitary-authority/southend,ED Neighbourhoods & Environment,Cultural and Related Services,7505,Hays Specialist Recruitment Ltd Receipts Recruitment File Only,10/06/2022,12071740,565.75,Agency Staff,Direct Employee Expenses
Southend-on-Sea Borough Council,http://www.opendatacommunities.org/id/unitary-authority/southend,ED Neighbourhoods & Environment,Cultural and Related Services,7505,Hays Specialist Recruitment Ltd Receipts Recruitment File Only,10/06/2022,12071740,565.75,Agency Staff,Direct Employee Expenses
Southend-on-Sea Borough Council,http://www.opendatacommunities.org/id/unitary-authority/southend,ED Neighbourhoods & Environment,Cultural and Related Services,7505,Hays Specialist Recruitment Ltd Receipts Recruitment File Only,10/06/2022,12071740,565.75,Agency Staff,Direct Employee Expenses
Southend-on-Sea Borough Council,http://www.opendatacommunities.org/id/unitary-authority/southend,ED Neighbourhoods & Environment,Cultural and Related Services,7505,Hays Specialist Recruitment Ltd Receipts Recruitment File Only,10/06/2022,12071740,565.75,Agency Staff,Direct Employee Expenses
Southend-on-Sea Borough Council,http://www.opendatacommunities.org/id/unitary-authority/southend,ED Neighbourhoods & Environment,Environmental And Regulatory Services,4526,Hays Specialist Recruitment Ltd Receipts Recruitment File Only,10/06/2022,12071740,"1,245.80",Agency Staff,Direct Employee Expenses
Southend-on-Sea Borough Council,http://www.opendatacommunities.org/id/unitary-authority/southend,ED Neighbourhoods & Environment,Environmental And Regulatory Services,4526,Hays Specialist Recruitment Ltd Receipts Recruitment File Only,10/06/2022,12071740,"1,245.80",Agency Staff,Direct Employee Expenses
Southend-on-Sea Borough Council,http://www.opendatacommunities.org/id/unitary-authority/southend,ED Neighbourhoods & Environment,Cultural and Related Services,7540,Hays Specialist Recruitment Ltd Receipts Recruitment File Only,10/06/2022,12071740,633.86,Agency Staff,Direct Employee Expenses
Southend-on-Sea Borough Council,http://www.opendatacommunities.org/id/unitary-authority/southend,ED Neighbourhoods & Environment,Highways And Transport Services,5021,Hays Specialist Recruitment Ltd Receipts Recruitment File Only,10/06/2022,12071740,"1,273.92",Agency Staff,Direct Employee Expenses
Southend-on-Sea Borough Council,http://www.opendatacommunities.org/id/unitary-authority/southend,ED Neighbourhoods & Environment,Highways And Transport Services,5015,Hays Specialist Recruitment Ltd Receipts Recruitment File Only,10/06/2022,12071740,"1,932.60",Agency Staff,Direct Employee Expenses
Southend-on-Sea Borough Council,http://www.opendatacommunities.org/id/unitary-authority/southend,ED Neighbourhoods & Environment,Highways And Transport Services,5180,Hays Specialist Recruitment Ltd Receipts Recruitment File Only,10/06/2022,12071740,"1,417.72",Agency Staff,Direct Employee Expenses
Southend-on-Sea Borough Council,http://www.opendatacommunities.org/id/unitary-authority/southend,ED Neighbourhoods & Environment,Highways And Transport Services,5180,Hays Specialist Recruitment Ltd Receipts Recruitment File Only,10/06/2022,12071740,768.25,Agency Staff,Direct Employee Expenses
Southend-on-Sea Borough Council,http://www.opendatacommunities.org/id/unitary-authority/southend,ED Neighbourhoods & Environment,Highways And Transport Services,5180,Hays Specialist Recruitment Ltd Receipts Recruitment File Only,10/06/2022,12071740,644.35,Agency Staff,Direct Employee Expenses
Southend-on-Sea Borough Council,http://www.opendatacommunities.org/id/unitary-authority/southend,ED Neighbourhoods & Environment,Highways And Transport Services,5015,Hays Specialist Recruitment Ltd Receipts Recruitment File Only,10/06/2022,12071740,"2,415.75",Agency Staff,Direct Employee Expenses
Southend-on-Sea Borough Council,http://www.opendatacommunities.org/id/unitary-authority/southend,ED Neighbourhoods & Environment,Highways And Transport Services,5005,Hays Specialist Recruitment Ltd Receipts Recruitment File Only,10/06/2022,12071740,"1,724.80",Agency Staff,Direct Employee Expenses
